Department Family,Entity,Date of Payment,Expense Type,Expense Area,Supplier,Voluntary & Community Sector,SME Class,Sole Trader,D-U-N-S Number,Transaction number,PSPES Level 2,Narrative,Postal Code,Amount in Sterling,Grant?
"Housing, Communities & Local Government",MHCLG,03/04/2018,Revenue Support grant payable,Local Government & Public Services,ALLERDALE BOROUGH COUNCIL,,,,230824120,5000395770,,Grant Payable by Exchequer,CA14 3YJ,"58,713.00",Yes
"Housing, Communities & Local Government",MHCLG,03/04/2018,Revenue Support grant payable,Local Government & Public Services,ARUN DC,,,,211217668,5000395772,,Grant Payable by Exchequer,BN17 5LF,"17,438.00",Yes
"Housing, Communities & Local Government",MHCLG,03/04/2018,Revenue Support grant payable,Local Government & Public Services,ASHFIELD DC,,,,235415296,5000395775,,Grant Payable by Exchequer,NG17 8DA,"62,761.00",Yes
"Housing, Communities & Local Government",MHCLG,03/04/2018,Revenue Support grant payable,Local Government & Public Services,AVON FIRE AUTHORITY,,,,424872570,5000395777,,Grant Payable by Exchequer,BS1 6EU,"1,890,069.00",Yes
"Housing, Communities & Local Government",MHCLG,03/04/2018,Revenue Support grant payable,Local Government & Public Services,BARNSLEY MBC,,Public Bodies,,211178595,5000395779,,Grant Payable by Exchequer,S70 2AQ,"1,711,966.00",Yes
"Housing, Communities & Local Government",MHCLG,03/04/2018,Revenue Support grant payable,Local Government & Public Services,BARROW BC,,,,295632913,5000395781,,Grant Payable by Exchequer,LA14 2LD,"151,956.00",Yes
"Housing, Communities & Local Government",MHCLG,03/04/2018,Revenue Support grant payable,Local Government & Public Services,BASILDON DC,,,,,5000395783,,Grant Payable by Exchequer,SS14 0DF,"25,381.00",Yes
"Housing, Communities & Local Government",MHCLG,03/04/2018,Revenue Support grant payable,Local Government & Public Services,BASINGSTOKE & DEANE BC,,,,228328506,5000395785,,Grant Payable by Exchequer,RG21 2AJ,"27,424.00",Yes
"Housing, Communities & Local Government",MHCLG,03/04/2018,Revenue Support grant payable,Local Government & Public Services,BASSETLAW DC,,,,230225054,5000395787,,Grant Payable by Exchequer,S80 2AH,"66,060.00",Yes
"Housing, Communities & Local Government",MHCLG,03/04/2018,Revenue Support grant payable,Local Government & Public Services,BEDFORD BOROUGH COUNCIL,,,,211166889,5000395834,,Grant Payable by Exchequer,MK40 1SJ,"918,111.00",Yes
"Housing, Communities & Local Government",MHCLG,03/04/2018,Revenue Support grant payable,Local Government & Public Services,BEDS & LUTON FIRE & RESCUE SERVICE,,,,387821283,5000395788,,Grant Payable by Exchequer,MK42 7NR,"951,894.00",Yes
"Housing, Communities & Local Government",MHCLG,03/04/2018,Revenue Support grant payable,Local Government & Public Services,BLABY DC,,,,,5000395793,,Grant Payable by Exchequer,LE9 5EP,"15,040.00",Yes
"Housing, Communities & Local Government",MHCLG,03/04/2018,Revenue Support grant payable,Local Government & Public Services,BLACKBURN WITH DARWEN BC,,,,,5000395795,,Grant Payable by Exchequer,BB1 7DY,"1,605,332.00",Yes
"Housing, Communities & Local Government",MHCLG,03/04/2018,Revenue Support grant payable,Local Government & Public Services,BLACKPOOL BC,,,,,5000395797,,Grant Payable by Exchequer,FY1 1NA,"1,772,167.00",Yes
"Housing, Communities & Local Government",MHCLG,03/04/2018,Revenue Support grant payable,Local Government & Public Services,BOURNEMOUTH DC,,,,,5000395799,,Grant Payable by Exchequer,BH2 6EB,"667,979.00",Yes
"Housing, Communities & Local Government",MHCLG,03/04/2018,Revenue Support grant payable,Local Government & Public Services,BRAINTREE DC,,,,226941730,5000395801,,Grant Payable by Exchequer,CM7 9HB,"24,523.00",Yes
"Housing, Communities & Local Government",MHCLG,03/04/2018,Revenue Support grant payable,Local Government & Public Services,BRECKLAND DC,,,,232611384,5000395804,,Grant Payable by Exchequer,NR19 1EE,"96,386.00",Yes
"Housing, Communities & Local Government",MHCLG,03/04/2018,Revenue Support grant payable,Local Government & Public Services,BRIGHTON & HOVE CITY COUNCIL,,Large,,228455218,5000395805,,Grant Payable by Exchequer,BN1 3JE,"1,272,920.00",Yes
"Housing, Communities & Local Government",MHCLG,03/04/2018,Revenue Support grant payable,Local Government & Public Services,BROADLAND DC,,,,219737785,5000395807,,Grant Payable by Exchequer,NR7 0DU,"39,441.00",Yes
"Housing, Communities & Local Government",MHCLG,03/04/2018,Revenue Support grant payable,Local Government & Public Services,BROXBOURNE BOROUGH COUNCIL,,,,239931918,5000395809,,Grant Payable by Exchequer,EN8 9XQ,"34,341.00",Yes
"Housing, Communities & Local Government",MHCLG,03/04/2018,Revenue Support grant payable,Local Government & Public Services,BROXTOWE BC,,,,239877640,5000395811,,Grant Payable by Exchequer,NG9 1AB,"38,051.00",Yes
"Housing, Communities & Local Government",MHCLG,03/04/2018,Revenue Support grant payable,Local Government & Public Services,BUCKS & MILTON KEYNES FIRE AUTH,,Public Bodies,,423679463,5000395814,,Grant Payable by Exchequer,HP20 1BD,"877,535.00",Yes
"Housing, Communities & Local Government",MHCLG,03/04/2018,Revenue Support grant payable,Local Government & Public Services,BURNLEY BC,,,,229413281,5000395815,,Grant Payable by Exchequer,BB11 1JA,"200,504.00",Yes
"Housing, Communities & Local Government",MHCLG,03/04/2018,Revenue Support grant payable,Local Government & Public Services,CAMBRIDGE CITY COUNCIL,,,,210357534,5000395817,,Grant Payable by Exchequer,CB1 0JH,"51,380.00",Yes
"Housing, Communities & Local Government",MHCLG,03/04/2018,Revenue Support grant payable,Local Government & Public Services,CAMBRIDGESHIRE COUNTY CNCL,,,,219047347,5000395821,,Grant Payable by Exchequer,CB3 0AP,"352,372.00",Yes
"Housing, Communities & Local Government",MHCLG,03/04/2018,Revenue Support grant payable,Local Government & Public Services,CAMBS & PETERBOROUGH FIRE AUTHORITY,,,,235999737,5000395819,,Grant Payable by Exchequer,PE29 2NA,"1,046,666.00",Yes
"Housing, Communities & Local Government",MHCLG,03/04/2018,Revenue Support grant payable,Local Government & Public Services,CANNOCK CHASE DC,,,,215064770,5000395823,,Grant Payable by Exchequer,WS11 1BG,"34,558.00",Yes
"Housing, Communities & Local Government",MHCLG,03/04/2018,Revenue Support grant payable,Local Government & Public Services,CARLISLE CITY CNCL,,,,227471059,5000395825,,Grant Payable by Exchequer,CA3 8QG,"40,369.00",Yes
"Housing, Communities & Local Government",MHCLG,03/04/2018,Revenue Support grant payable,Local Government & Public Services,CENTRAL BEDFORDSHIRE COUNCIL,,,,232624882,5000395820,,Grant Payable by Exchequer,SG17 5TQ,"421,508.00",Yes
"Housing, Communities & Local Government",MHCLG,03/04/2018,Revenue Support grant payable,Local Government & Public Services,CHARNWOOD BC,,,,,5000395827,,Grant Payable by Exchequer,LE11 2TU,"67,064.00",Yes
"Housing, Communities & Local Government",MHCLG,03/04/2018,Revenue Support grant payable,Local Government & Public Services,CHERWELL DC,,,,,5000395829,,Grant Payable by Exchequer,OX15 4AA,"57,349.00",Yes
"Housing, Communities & Local Government",MHCLG,03/04/2018,Revenue Support grant payable,Local Government & Public Services,CHESHIRE EAST BOROUGH COUNCIL,,,,293699450,5000395822,,Grant Payable by Exchequer,CW11 1HZ,"487,455.00",Yes
"Housing, Communities & Local Government",MHCLG,03/04/2018,Revenue Support grant payable,Local Government & Public Services,CHESHIRE FIRE AUTHORITY,,,,424872737,5000395831,,Grant Payable by Exchequer,CW7 2FQ,"1,504,280.00",Yes
"Housing, Communities & Local Government",MHCLG,03/04/2018,Revenue Support grant payable,Local Government & Public Services,CHESHIRE WEST AND CHESTER,,Large,,215584383,5000395824,,Grant Payable by Exchequer,CH1 2NP,"1,014,346.00",Yes
"Housing, Communities & Local Government",MHCLG,03/04/2018,Revenue Support grant payable,Local Government & Public Services,CHORLEY DC,,,,236415576,5000395833,,Grant Payable by Exchequer,PR7 1DP,"26,949.00",Yes
"Housing, Communities & Local Government",MHCLG,03/04/2018,Revenue Support grant payable,Local Government & Public Services,CLEVELAND FIRE AUTHORITY,,,,424872778,5000395835,,Grant Payable by Exchequer,TS25 5TB,"1,905,914.00",Yes
"Housing, Communities & Local Government",MHCLG,03/04/2018,Revenue Support grant payable,Local Government & Public Services,CO DURHAM & DARLINGTON FIRE & RESCU,,,,424872851,5000395847,,Grant Payable by Exchequer,DH1 1TW,"1,280,922.00",Yes
"Housing, Communities & Local Government",MHCLG,03/04/2018,Revenue Support grant payable,Local Government & Public Services,COLCHESTER BC,,,,,5000395837,,Grant Payable by Exchequer,CO3 3WG,"24,764.00",Yes
"Housing, Communities & Local Government",MHCLG,03/04/2018,Revenue Support grant payable,Local Government & Public Services,COPELAND BC,,,,236414827,5000395838,,Grant Payable by Exchequer,CA28 7NY,"33,913.00",Yes
"Housing, Communities & Local Government",MHCLG,03/04/2018,Revenue Support grant payable,Local Government & Public Services,CORBY BC,,,,,5000395839,,Grant Payable by Exchequer,NN17 1GD,"35,068.00",Yes
"Housing, Communities & Local Government",MHCLG,03/04/2018,Revenue Support grant payable,Local Government & Public Services,CRAVEN DISTRICT COUNCIL,,,,215577851,5000395840,,Grant Payable by Exchequer,BD23 1PS,"12,714.00",Yes
"Housing, Communities & Local Government",MHCLG,03/04/2018,Revenue Support grant payable,Local Government & Public Services,CRAWLEY BOROUGH COUNCIL,,,,211222500,5000395841,,Grant Payable by Exchequer,RH10 1UZ,"51,728.00",Yes
"Housing, Communities & Local Government",MHCLG,03/04/2018,Revenue Support grant payable,Local Government & Public Services,CUMBRIA COUNTY CNCL,,,,211316542,5000395842,,Grant Payable by Exchequer,CA3 8NA,"2,604,869.00",Yes
"Housing, Communities & Local Government",MHCLG,03/04/2018,Revenue Support grant payable,Local Government & Public Services,DARLINGTON BC,,,,,5000395843,,Grant Payable by Exchequer,TS19 1JA,"570,028.00",Yes
"Housing, Communities & Local Government",MHCLG,03/04/2018,Revenue Support grant payable,Local Government & Public Services,DAVENTRY DC,,,,239859333,5000395844,,Grant Payable by Exchequer,NN11 5AF,"14,139.00",Yes
"Housing, Communities & Local Government",MHCLG,03/04/2018,Revenue Support grant payable,Local Government & Public Services,DEVON & SOMERSET FIRE & RESCUE SERV,,,,424872976,5000395845,,Grant Payable by Exchequer,EX3 0NW,"2,431,640.00",Yes
"Housing, Communities & Local Government",MHCLG,03/04/2018,Revenue Support grant payable,Local Government & Public Services,DONCASTER MBC,,,,,5000395846,,Grant Payable by Exchequer,DN1 3QA,"2,531,824.00",Yes
"Housing, Communities & Local Government",MHCLG,03/04/2018,Revenue Support grant payable,Local Government & Public Services,DORSET&WILTSHIRE FIRE & RESCUE AUTH,,Large,,,5000395836,,Grant Payable by Exchequer,SP1 3NR,"1,497,685.00",Yes
"Housing, Communities & Local Government",MHCLG,03/04/2018,Revenue Support grant payable,Local Government & Public Services,DURHAM COUNTY COUNCIL,,,,228453601,5000395826,,Grant Payable by Exchequer,DH1 5UE,"3,767,411.00",Yes
"Housing, Communities & Local Government",MHCLG,03/04/2018,Revenue Support grant payable,Local Government & Public Services,EAST CAMBRIDGESHIRE DC,,,,236472023,5000395848,,Grant Payable by Exchequer,CB7 4PL,"31,833.00",Yes
"Housing, Communities & Local Government",MHCLG,03/04/2018,Revenue Support grant payable,Local Government & Public Services,EAST NORTHAMPTONSHIRE COUNCIL,,,,227475290,5000395849,,Grant Payable by Exchequer,NN14 4LZ,"37,254.00",Yes
"Housing, Communities & Local Government",MHCLG,03/04/2018,Revenue Support grant payable,Local Government & Public Services,EAST RIDING OF YORKS,,,,,5000395850,,Grant Payable by Exchequer,HU17 9AB,"1,124,499.00",Yes
"Housing, Communities & Local Government",MHCLG,03/04/2018,Revenue Support grant payable,Local Government & Public Services,EAST STAFFORDSHIRE BC,,,,226778033,5000395851,,Grant Payable by Exchequer,DE14 2EB,"34,460.00",Yes
"Housing, Communities & Local Government",MHCLG,03/04/2018,Revenue Support grant payable,Local Government & Public Services,EAST SUSSEX COUNTY CNCL,,,,,5000395852,,Grant Payable by Exchequer,BN7 1SF,"1,346,941.00",Yes
"Housing, Communities & Local Government",MHCLG,03/04/2018,Revenue Support grant payable,Local Government & Public Services,EAST SUSSEX FIRE & RESCUE SERVICE H,,,,424873057,5000395853,,Grant Payable by Exchequer,BN7 2DZ,"1,220,023.00",Yes
"Housing, Communities & Local Government",MHCLG,03/04/2018,Revenue Support grant payable,Local Government & Public Services,EASTBOURNE BC,,,,229896428,5000395854,,Grant Payable by Exchequer,BN21 4TW,"40,091.00",Yes
"Housing, Communities & Local Government",MHCLG,03/04/2018,Revenue Support grant payable,Local Government & Public Services,EASTLEIGH BOROUGH COUNCIL,,,,232669911,5000395855,,Grant Payable by Exchequer,SO5 9YN,"21,595.00",Yes
"Housing, Communities & Local Government",MHCLG,03/04/2018,Revenue Support grant payable,Local Government & Public Services,EDEN DC,,,,,5000395856,,Grant Payable by Exchequer,CA11 7QF,"7,857.00",Yes
"Housing, Communities & Local Government",MHCLG,03/04/2018,Revenue Support grant payable,Local Government & Public Services,EPPING FOREST DC,,,,775876360,5000395857,,Grant Payable by Exchequer,CM16 4BZ,"23,437.00",Yes
"Housing, Communities & Local Government",MHCLG,03/04/2018,Revenue Support grant payable,Local Government & Public Services,ESSEX COUNTY CNCL,,,,233572986,5000395858,,Grant Payable by Exchequer,CM1 1JZ,"4,116,519.00",Yes
"Housing, Communities & Local Government",MHCLG,03/04/2018,Revenue Support grant payable,Local Government & Public Services,ESSEX FIRE AUTHORITY,,,,345412402,5000395859,,Grant Payable by Exchequer,CM8 3HB,"3,115,567.00",Yes
"Housing, Communities & Local Government",MHCLG,03/04/2018,Revenue Support grant payable,Local Government & Public Services,FENLAND DC,,,,227476348,5000395860,,Grant Payable by Exchequer,PE15 8NQ,"39,942.00",Yes
"Housing, Communities & Local Government",MHCLG,03/04/2018,Revenue Support grant payable,Local Government & Public Services,FYLDE BC,,,,227479912,5000395861,,Grant Payable by Exchequer,FY8 1LW,"4,240.00",Yes
"Housing, Communities & Local Government",MHCLG,03/04/2018,Revenue Support grant payable,Local Government & Public Services,GATESHEAD COUNCIL,,,,216116041,5000395862,,Grant Payable by Exchequer,NE8 1HH,"1,928,087.00",Yes
"Housing, Communities & Local Government",MHCLG,03/04/2018,Revenue Support grant payable,Local Government & Public Services,GEDLING BC,,,,236180337,5000395863,,Grant Payable by Exchequer,NG5 6LU,"34,640.00",Yes
"Housing, Communities & Local Government",MHCLG,03/04/2018,Revenue Support grant payable,Local Government & Public Services,GOSPORT BOROUGH COUNCIL,,,,239825078,5000395864,,Grant Payable by Exchequer,PO12 1ED,"23,790.00",Yes
"Housing, Communities & Local Government",MHCLG,03/04/2018,Revenue Support grant payable,Local Government & Public Services,GREAT YARMOUTH BC,,,,292697372,5000395865,,Grant Payable by Exchequer,NR30 2QF,"229,041.00",Yes
"Housing, Communities & Local Government",MHCLG,03/04/2018,Revenue Support grant payable,Local Government & Public Services,GREATER MANCHESTER COMBINED AUT,,,,,5000395895,,Grant Payable by Exchequer,M1 6EO,"6,646,000.00",Yes
"Housing, Communities & Local Government",MHCLG,03/04/2018,Revenue Support grant payable,Local Government & Public Services,HAMBLETON DC,,Large,,503481319,5000395866,,Grant Payable by Exchequer,DL6 2UU,"33,325.00",Yes
"Housing, Communities & Local Government",MHCLG,03/04/2018,Revenue Support grant payable,Local Government & Public Services,HAMPSHIRE COUNTY COUNCIL,,,,211325832,5000395867,,Grant Payable by Exchequer,SO23 8UB,"1,869,512.00",Yes
"Housing, Communities & Local Government",MHCLG,03/04/2018,Revenue Support grant payable,Local Government & Public Services,HAMPSHIRE FIRE & RESCUE AUTHORITY,,,,211325832,5000395868,,Grant Payable by Exchequer,SO23 8UB,"2,705,845.00",Yes
"Housing, Communities & Local Government",MHCLG,03/04/2018,Revenue Support grant payable,Local Government & Public Services,HARBOROUGH DC,,Public Bodies,,232611962,5000395869,,Grant Payable by Exchequer,LE16 7AG,761.00,Yes
"Housing, Communities & Local Government",MHCLG,03/04/2018,Revenue Support grant payable,Local Government & Public Services,HARLOW COUNCIL,,,,239999055,5000395870,,Grant Payable by Exchequer,CM20 1WG,"16,063.00",Yes
"Housing, Communities & Local Government",MHCLG,03/04/2018,Revenue Support grant payable,Local Government & Public Services,HARTLEPOOL BOROUGH COUNCIL,,,,424291797,5000395871,,Grant Payable by Exchequer,TS24 8AY,"971,980.00",Yes
"Housing, Communities & Local Government",MHCLG,03/04/2018,Revenue Support grant payable,Local Government & Public Services,HASTINGS BC,,,,,5000395872,,Grant Payable by Exchequer,TN34 3WN,"138,788.00",Yes
"Housing, Communities & Local Government",MHCLG,03/04/2018,Revenue Support grant payable,Local Government & Public Services,HAVANT BC,,,,211047543,5000395873,,Grant Payable by Exchequer,PO9 2AX,"26,101.00",Yes
"Housing, Communities & Local Government",MHCLG,03/04/2018,Revenue Support grant payable,Local Government & Public Services,HEREFORD & WORCESTER FIRE & RESCUE,,,,236425484,5000395874,,Grant Payable by Exchequer,WR5 1JR,"808,825.00",Yes
"Housing, Communities & Local Government",MHCLG,03/04/2018,Revenue Support grant payable,Local Government & Public Services,HEREFORDSHIRE DISTRICT COUNCIL,,,,211510826,5000395875,,Grant Payable by Exchequer,HR1 1SH,"483,560.00",Yes
"Housing, Communities & Local Government",MHCLG,03/04/2018,Revenue Support grant payable,Local Government & Public Services,HERTFORDSHIRE COUNTY CNCL,,,,,5000395876,,Grant Payable by Exchequer,SG13 9BD,"2,033,925.00",Yes
"Housing, Communities & Local Government",MHCLG,03/04/2018,Revenue Support grant payable,Local Government & Public Services,HERTSMERE BC,,,,237549253,5000395877,,Grant Payable by Exchequer,WD6 1WA,"19,892.00",Yes
"Housing, Communities & Local Government",MHCLG,03/04/2018,Revenue Support grant payable,Local Government & Public Services,HINCKLEY & BOSWORTH BC,,,,211176144,5000395878,,Grant Payable by Exchequer,LE10 1BZ,"39,371.00",Yes
"Housing, Communities & Local Government",MHCLG,03/04/2018,Revenue Support grant payable,Local Government & Public Services,HULL CITY COUNCIL,,,,217460984,5000395885,,Grant Payable by Exchequer,HU1 2AA,"2,864,130.00",Yes
"Housing, Communities & Local Government",MHCLG,03/04/2018,Revenue Support grant payable,Local Government & Public Services,HUMBERSIDE FIRE & RESCUE SERVICE,,,,229832563,5000395879,,Grant Payable by Exchequer,HU4 7BB,"2,639,479.00",Yes
"Housing, Communities & Local Government",MHCLG,03/04/2018,Revenue Support grant payable,Local Government & Public Services,HUNTINGDONSHIRE DC,,,,235999216,5000395880,,Grant Payable by Exchequer,PE18 6TN,"54,341.00",Yes
"Housing, Communities & Local Government",MHCLG,03/04/2018,Revenue Support grant payable,Local Government & Public Services,HYNDBURN BC,,,,,5000395881,,Grant Payable by Exchequer,BB5 1EZ,"183,062.00",Yes
"Housing, Communities & Local Government",MHCLG,03/04/2018,Revenue Support grant payable,Local Government & Public Services,ISLES OF SCILLY COUNCIL,,,,214146040,5000395882,,Grant Payable by Exchequer,TR21 0LW,"163,843.00",Yes
"Housing, Communities & Local Government",MHCLG,03/04/2018,Revenue Support grant payable,Local Government & Public Services,KETTERING BC,,,,211271796,5000395883,,Grant Payable by Exchequer,NN15 7QX,"15,373.00",Yes
"Housing, Communities & Local Government",MHCLG,03/04/2018,Revenue Support grant payable,Local Government & Public Services,KINGS LYNN & WEST NORFOLK BC,,,,236417671,5000395884,,Grant Payable by Exchequer,PE30 1EX,"114,334.00",Yes
"Housing, Communities & Local Government",MHCLG,03/04/2018,Revenue Support grant payable,Local Government & Public Services,LANCASHIRE COMBINED FIRE AUTHORITY,,,,230398732,5000395887,,Grant Payable by Exchequer,PR2 3LH,"3,087,185.00",Yes
"Housing, Communities & Local Government",MHCLG,03/04/2018,Revenue Support grant payable,Local Government & Public Services,LANCASHIRE COUNTY CNCL,,,,233136584,5000395886,,Grant Payable by Exchequer,PR1 8RD,"5,128,165.00",Yes
"Housing, Communities & Local Government",MHCLG,03/04/2018,Revenue Support grant payable,Local Government & Public Services,LANCASTER CITY CNCL,,,,228669990,5000395888,,Grant Payable by Exchequer,LA1 1PJ,"84,713.00",Yes
"Housing, Communities & Local Government",MHCLG,03/04/2018,Revenue Support grant payable,Local Government & Public Services,LEICESTER CITY CNCL,,,,228219960,5000395889,,Grant Payable by Exchequer,LE1 1FZ,"3,452,201.00",Yes
"Housing, Communities & Local Government",MHCLG,03/04/2018,Revenue Support grant payable,Local Government & Public Services,LEICESTERSHIRE COUNTY CNCL,,,,423679836,5000395891,,Grant Payable by Exchequer,LE3 8RB,"769,385.00",Yes
"Housing, Communities & Local Government",MHCLG,03/04/2018,Revenue Support grant payable,Local Government & Public Services,LEICS LEICESTERSHIRE RUTLAND CFA,,,,,5000395890,,Grant Payable by Exchequer,LE4 3BU,"1,589,210.00",Yes
"Housing, Communities & Local Government",MHCLG,03/04/2018,Revenue Support grant payable,Local Government & Public Services,LUTON BC,,,,365112155,5000395893,,Grant Payable by Exchequer,LU1 2BQ,"1,434,714.00",Yes
"Housing, Communities & Local Government",MHCLG,03/04/2018,Revenue Support grant payable,Local Government & Public Services,MALVERN HILLS DC,,,,227470424,5000395894,,Grant Payable by Exchequer,WR14 3AF,"9,324.00",Yes
"Housing, Communities & Local Government",MHCLG,03/04/2018,Revenue Support grant payable,Local Government & Public Services,MANSFIELD DC,,,,237922968,5000395896,,Grant Payable by Exchequer,NG19 7BH,"65,879.00",Yes
"Housing, Communities & Local Government",MHCLG,03/04/2018,Revenue Support grant payable,Local Government & Public Services,MELTON BC,,,,346268340,5000395897,,Grant Payable by Exchequer,LE13 0UL,"4,713.00",Yes
"Housing, Communities & Local Government",MHCLG,03/04/2018,Revenue Support grant payable,Local Government & Public Services,MENDIP DISTRICT COUNCIL,,,,,5000395898,,Grant Payable by Exchequer,BA4 5BA,"34,354.00",Yes
"Housing, Communities & Local Government",MHCLG,03/04/2018,Revenue Support grant payable,Local Government & Public Services,MERSEYSIDE FIRE & RESCUE SERVICE,,,,210372331,5000395899,,Grant Payable by Exchequer,L30 4YD,"4,016,725.00",Yes
"Housing, Communities & Local Government",MHCLG,03/04/2018,Revenue Support grant payable,Local Government & Public Services,MIDDLESBROUGH BC,,,,,5000395900,,Grant Payable by Exchequer,TS1 9GA,"1,488,019.00",Yes
"Housing, Communities & Local Government",MHCLG,03/04/2018,Revenue Support grant payable,Local Government & Public Services,MILTON KEYNES BC,,,,506884659,5000395901,,Grant Payable by Exchequer,MK9 3EJ,"1,032,867.00",Yes
"Housing, Communities & Local Government",MHCLG,03/04/2018,Revenue Support grant payable,Local Government & Public Services,NEW FOREST DC,,,,,5000395902,,Grant Payable by Exchequer,SO41 9ZG,"8,314.00",Yes
"Housing, Communities & Local Government",MHCLG,03/04/2018,Revenue Support grant payable,Local Government & Public Services,NEWARK & SHERWOOD DC,,,,236186755,5000395903,,Grant Payable by Exchequer,NG23 5QX,"53,314.00",Yes
"Housing, Communities & Local Government",MHCLG,03/04/2018,Revenue Support grant payable,Local Government & Public Services,NEWCASTLE CITY COUNCIL,,,,239154040,5000395904,,Grant Payable by Exchequer,NE99 2BN,"3,185,434.00",Yes
"Housing, Communities & Local Government",MHCLG,03/04/2018,Revenue Support grant payable,Local Government & Public Services,NEWCASTLE UNDER LYME BC,,,,229894373,5000395905,,Grant Payable by Exchequer,ST5 2AG,"52,990.00",Yes
"Housing, Communities & Local Government",MHCLG,03/04/2018,Revenue Support grant payable,Local Government & Public Services,NORFOLK COUNTY COUNCIL,,,,232602789,5000395906,,Grant Payable by Exchequer,NR1 2DW,"5,223,147.00",Yes
"Housing, Communities & Local Government",MHCLG,03/04/2018,Revenue Support grant payable,Local Government & Public Services,NORTH DORSET DC,,,,236185005,5000395907,,Grant Payable by Exchequer,DT11 7LL,"16,447.00",Yes
"Housing, Communities & Local Government",MHCLG,03/04/2018,Revenue Support grant payable,Local Government & Public Services,NORTH EAST LINCOLN COUNCIL,,Public Bodies,,423962570,5000395908,,Grant Payable by Exchequer,DN35 8LN,"1,205,680.00",Yes
"Housing, Communities & Local Government",MHCLG,03/04/2018,Revenue Support grant payable,Local Government & Public Services,NORTH NORFOLK DC,,,,239975964,5000395909,,Grant Payable by Exchequer,NR27 9EN,"48,206.00",Yes
"Housing, Communities & Local Government",MHCLG,03/04/2018,Revenue Support grant payable,Local Government & Public Services,NORTH SOMERSET DC,,,,,5000395910,,Grant Payable by Exchequer,BS21 6FW,"622,705.00",Yes
"Housing, Communities & Local Government",MHCLG,03/04/2018,Revenue Support grant payable,Local Government & Public Services,NORTH TYNESIDE MBC,,,,,5000395911,,Grant Payable by Exchequer,NE27 0BY,"1,522,305.00",Yes
"Housing, Communities & Local Government",MHCLG,03/04/2018,Revenue Support grant payable,Local Government & Public Services,NORTH WARWICKSHIRE BC,,,,,5000395912,,Grant Payable by Exchequer,CV9 1DE,"17,232.00",Yes
"Housing, Communities & Local Government",MHCLG,03/04/2018,Revenue Support grant payable,Local Government & Public Services,NORTH WEST LEICESTERSHIRE DC,,,,232605782,5000395922,,Grant Payable by Exchequer,LE67 PSH,"21,179.00",Yes
"Housing, Communities & Local Government",MHCLG,03/04/2018,Revenue Support grant payable,Local Government & Public Services,NORTH YORKSHIRE CC,,,,,5000395913,,Grant Payable by Exchequer,DL7 8AL,"680,136.00",Yes
"Housing, Communities & Local Government",MHCLG,03/04/2018,Revenue Support grant payable,Local Government & Public Services,NORTH YORKSHIRE FIRE & RESCUE AUTH,,,,423679778,5000395914,,Grant Payable by Exchequer,DL6 2ND,"965,679.00",Yes
"Housing, Communities & Local Government",MHCLG,03/04/2018,Revenue Support grant payable,Local Government & Public Services,NORTHAMPTON BOROUGH COUNCIL,,Large,,228310017,5000395915,,Grant Payable by Exchequer,NN4 4FF,"79,741.00",Yes
"Housing, Communities & Local Government",MHCLG,03/04/2018,Revenue Support grant payable,Local Government & Public Services,NORTHAMPTONSHIRE COUNTY COUNCIL,,Public Bodies,,385469184,5000395916,,Grant Payable by Exchequer,NN4 7DB,"2,024,376.00",Yes
"Housing, Communities & Local Government",MHCLG,03/04/2018,Revenue Support grant payable,Local Government & Public Services,NORTHUMBERLAND COUNTY COUNCIL,,,,210308905,5000395828,,Grant Payable by Exchequer,NE61 2EF,"1,709,097.00",Yes
"Housing, Communities & Local Government",MHCLG,03/04/2018,Revenue Support grant payable,Local Government & Public Services,NORWICH CITY CNCL,,,,235981297,5000395917,,Grant Payable by Exchequer,NR2 1NH,"88,382.00",Yes
"Housing, Communities & Local Government",MHCLG,03/04/2018,Revenue Support grant payable,Local Government & Public Services,NOTTINGHAM CITY COUNCIL,,,,214495447,5000395918,,Grant Payable by Exchequer,NG2 3NG,"3,148,310.00",Yes
"Housing, Communities & Local Government",MHCLG,03/04/2018,Revenue Support grant payable,Local Government & Public Services,NOTTINGHAMSHIRE COUNTY CNCL,,,,,5000395919,,Grant Payable by Exchequer,NG2 7QP,"2,029,787.00",Yes
"Housing, Communities & Local Government",MHCLG,03/04/2018,Revenue Support grant payable,Local Government & Public Services,NOTTS & CITY NOTTINGHAM FIRE AUTH,,,,296814999,5000395920,,Grant Payable by Exchequer,NG5 8PD,"1,987,137.00",Yes
"Housing, Communities & Local Government",MHCLG,03/04/2018,Revenue Support grant payable,Local Government & Public Services,NUNEATON & BEDWORTH BC,,Large,,,5000395921,,Grant Payable by Exchequer,CV11 5AA,"24,184.00",Yes
"Housing, Communities & Local Government",MHCLG,03/04/2018,Revenue Support grant payable,Local Government & Public Services,OADBY & WIGSTON BC,,,,239831878,5000395923,,Grant Payable by Exchequer,LE8 2DR,"12,678.00",Yes
"Housing, Communities & Local Government",MHCLG,03/04/2018,Revenue Support grant payable,Local Government & Public Services,OXFORD CITY CNCL,,,,236042586,5000395924,,Grant Payable by Exchequer,OX1 1DS,"56,689.00",Yes
"Housing, Communities & Local Government",MHCLG,03/04/2018,Revenue Support grant payable,Local Government & Public Services,OXFORDSHIRE CC,,,,228216438,5000395925,,Grant Payable by Exchequer,OX4 2GQ,"528,156.00",Yes
"Housing, Communities & Local Government",MHCLG,03/04/2018,Revenue Support grant payable,Local Government & Public Services,PENDLE BC,,,,548605328,5000395926,,Grant Payable by Exchequer,BB9 7LG,"153,654.00",Yes
"Housing, Communities & Local Government",MHCLG,03/04/2018,Revenue Support grant payable,Local Government & Public Services,PETERBOROUGH CITY CNCL,,,,,5000395927,,Grant Payable by Exchequer,PE1 1HG,"1,355,019.00",Yes
"Housing, Communities & Local Government",MHCLG,03/04/2018,Revenue Support grant payable,Local Government & Public Services,POOLE BC,,,,,5000395928,,Grant Payable by Exchequer,BH15 2RU,"155,276.00",Yes
"Housing, Communities & Local Government",MHCLG,03/04/2018,Revenue Support grant payable,Local Government & Public Services,PRESTON BC,,,,232604124,5000395929,,Grant Payable by Exchequer,PR1 2RL,"59,872.00",Yes
"Housing, Communities & Local Government",MHCLG,03/04/2018,Revenue Support grant payable,Local Government & Public Services,REDCAR & CLEVELAND BOROUGH COUNCIL,,,,215175196,5000395930,,Grant Payable by Exchequer,TS6 9AR,"1,026,253.00",Yes
"Housing, Communities & Local Government",MHCLG,03/04/2018,Revenue Support grant payable,Local Government & Public Services,REDDITCH BC,,,,231421491,5000395931,,Grant Payable by Exchequer,B98 8AH,"3,190.00",Yes
"Housing, Communities & Local Government",MHCLG,03/04/2018,Revenue Support grant payable,Local Government & Public Services,RIBBLE VALLEY BC,,,,232617894,5000395932,,Grant Payable by Exchequer,BB7 2RA,"9,823.00",Yes
"Housing, Communities & Local Government",MHCLG,03/04/2018,Revenue Support grant payable,Local Government & Public Services,RICHMONDSHIRE DC,,Large,,232245142,5000395933,,Grant Payable by Exchequer,DL10 4JX,"1,328.00",Yes
"Housing, Communities & Local Government",MHCLG,03/04/2018,Revenue Support grant payable,Local Government & Public Services,ROSSENDALE BC,,,,237654020,5000395934,,Grant Payable by Exchequer,OL13 0BB,"17,053.00",Yes
"Housing, Communities & Local Government",MHCLG,03/04/2018,Revenue Support grant payable,Local Government & Public Services,ROTHER DC,,,,,5000395935,,Grant Payable by Exchequer,TN39 3JX,"6,526.00",Yes
"Housing, Communities & Local Government",MHCLG,03/04/2018,Revenue Support grant payable,Local Government & Public Services,ROTHERHAM MBC,,,,211266937,5000395936,,Grant Payable by Exchequer,S60 1AE,"1,973,068.00",Yes
"Housing, Communities & Local Government",MHCLG,03/04/2018,Revenue Support grant payable,Local Government & Public Services,ROYAL BERKSHIRE FIRE AUTHORITY,,,,424872653,5000395791,,Grant Payable by Exchequer,RG30 4FS,"1,159,687.00",Yes
"Housing, Communities & Local Government",MHCLG,03/04/2018,Revenue Support grant payable,Local Government & Public Services,RUGBY BC,,,,,5000395937,,Grant Payable by Exchequer,CV21 2RR,"13,741.00",Yes
"Housing, Communities & Local Government",MHCLG,03/04/2018,Revenue Support grant payable,Local Government & Public Services,RUSHCLIFFE BOROUGH COUNCIL,,,,,5000395938,,Grant Payable by Exchequer,NG2 5FE,"11,695.00",Yes
"Housing, Communities & Local Government",MHCLG,03/04/2018,Revenue Support grant payable,Local Government & Public Services,RUSHMOOR BC,,,,232607606,5000395939,,Grant Payable by Exchequer,GU14 7JU,"17,062.00",Yes
"Housing, Communities & Local Government",MHCLG,03/04/2018,Revenue Support grant payable,Local Government & Public Services,RYEDALE DC,,,,,5000395940,,Grant Payable by Exchequer,YO17 7HH,"12,872.00",Yes
"Housing, Communities & Local Government",MHCLG,03/04/2018,Revenue Support grant payable,Local Government & Public Services,SCARBOROUGH BC,,Large,,,5000395941,,Grant Payable by Exchequer,YO11 2HG,"60,518.00",Yes
"Housing, Communities & Local Government",MHCLG,03/04/2018,Revenue Support grant payable,Local Government & Public Services,SEDGEMOOR DC,,,,211204011,5000395942,,Grant Payable by Exchequer,TA6 3AR,"44,207.00",Yes
"Housing, Communities & Local Government",MHCLG,03/04/2018,Revenue Support grant payable,Local Government & Public Services,SELBY DC,,,,239816721,5000395943,,Grant Payable by Exchequer,YO8 9FT,"23,869.00",Yes
"Housing, Communities & Local Government",MHCLG,03/04/2018,Revenue Support grant payable,Local Government & Public Services,SHEFFIELD CITY CNCL,,Large,,,5000395944,,Grant Payable by Exchequer,S1 1UJ,"4,717,374.00",Yes
"Housing, Communities & Local Government",MHCLG,03/04/2018,Revenue Support grant payable,Local Government & Public Services,SHROPSHIRE & WREKIN FIRE AUTHORITY,,,,424873610,5000395945,,Grant Payable by Exchequer,SY1 2HJ,"520,179.00",Yes
"Housing, Communities & Local Government",MHCLG,03/04/2018,Revenue Support grant payable,Local Government & Public Services,SHROPSHIRE COUNCIL,,Large,,217036490,5000395830,,Grant Payable by Exchequer,SY2 6ND,"1,197,105.00",Yes
"Housing, Communities & Local Government",MHCLG,03/04/2018,Revenue Support grant payable,Local Government & Public Services,SOMERSET COUNTY CNCL,,,,211229406,5000395946,,Grant Payable by Exchequer,TA1 4DY,"1,447,385.00",Yes
"Housing, Communities & Local Government",MHCLG,03/04/2018,Revenue Support grant payable,Local Government & Public Services,SOUTH NORFOLK DC,,,,232605717,5000395947,,Grant Payable by Exchequer,NR15 2XE,"37,510.00",Yes
"Housing, Communities & Local Government",MHCLG,03/04/2018,Revenue Support grant payable,Local Government & Public Services,SOUTH OXFORDSHIRE DC,,,,212296766,5000395948,,Grant Payable by Exchequer,OX10 8ED,"17,278.00",Yes
"Housing, Communities & Local Government",MHCLG,03/04/2018,Revenue Support grant payable,Local Government & Public Services,SOUTH SOMERSET DC,,,,239850811,5000395949,,Grant Payable by Exchequer,BA20 2DS,"24,201.00",Yes
"Housing, Communities & Local Government",MHCLG,03/04/2018,Revenue Support grant payable,Local Government & Public Services,SOUTH STAFFORDSHIRE DC,,,,210305155,5000395950,,Grant Payable by Exchequer,WV8 1PX,"36,873.00",Yes
"Housing, Communities & Local Government",MHCLG,03/04/2018,Revenue Support grant payable,Local Government & Public Services,SOUTH TYNESIDE COUNCIL,,,,345736438,5000395951,,Grant Payable by Exchequer,NE33 2RL,"1,772,618.00",Yes
"Housing, Communities & Local Government",MHCLG,03/04/2018,Revenue Support grant payable,Local Government & Public Services,SOUTH YORKSHIRE FIRE & RESCUE AUTH,,,,424872620,5000395952,,Grant Payable by Exchequer,S1 3FG,"3,038,206.00",Yes
"Housing, Communities & Local Government",MHCLG,03/04/2018,Revenue Support grant payable,Local Government & Public Services,SOUTHEND ON SEA BC,,,,217067263,5000395953,,Grant Payable by Exchequer,SS2 6EP,"928,622.00",Yes
"Housing, Communities & Local Government",MHCLG,03/04/2018,Revenue Support grant payable,Local Government & Public Services,STAFFORD BC,,,,227476934,5000395755,,Grant Payable by Exchequer,ST16 3AQ,"18,749.00",Yes
"Housing, Communities & Local Government",MHCLG,03/04/2018,Revenue Support grant payable,Local Government & Public Services,STAFFORDSHIRE  FIRE & RESCUE SERV,,Large,,232600577,5000395757,,Grant Payable by Exchequer,ST15 0BS,"1,751,774.00",Yes
"Housing, Communities & Local Government",MHCLG,03/04/2018,Revenue Support grant payable,Local Government & Public Services,STAFFORDSHIRE COUNTY CNCL,,,,,5000395756,,Grant Payable by Exchequer,ST16 2LH,"2,296,348.00",Yes
"Housing, Communities & Local Government",MHCLG,03/04/2018,Revenue Support grant payable,Local Government & Public Services,STAFFORDSHIRE MOORLANDS DC,,,,232749775,5000395758,,Grant Payable by Exchequer,ST13 6HQ,"31,230.00",Yes
"Housing, Communities & Local Government",MHCLG,03/04/2018,Revenue Support grant payable,Local Government & Public Services,STEVENAGE BC,,,,236440186,5000395759,,Grant Payable by Exchequer,SG1 1HN,"31,611.00",Yes
"Housing, Communities & Local Government",MHCLG,03/04/2018,Revenue Support grant payable,Local Government & Public Services,STOCKTON ON TEES BC,,,,,5000395760,,Grant Payable by Exchequer,TS23 2YS,"885,557.00",Yes
"Housing, Communities & Local Government",MHCLG,03/04/2018,Revenue Support grant payable,Local Government & Public Services,STOKE ON TRENT CITY COUNCIL,,,,216037890,5000395761,,Grant Payable by Exchequer,ST4 1HH,"2,736,725.00",Yes
"Housing, Communities & Local Government",MHCLG,03/04/2018,Revenue Support grant payable,Local Government & Public Services,STRATFORD ON AVON DC,,,,227473881,5000395762,,Grant Payable by Exchequer,CV37 6HX,"10,039.00",Yes
"Housing, Communities & Local Government",MHCLG,03/04/2018,Revenue Support grant payable,Local Government & Public Services,SUNDERLAND DC,,,,215599312,5000395763,,Grant Payable by Exchequer,SR2 7DN,"3,254,119.00",Yes
"Housing, Communities & Local Government",MHCLG,03/04/2018,Revenue Support grant payable,Local Government & Public Services,SWINDON BC,,,,458639697,5000395764,,Grant Payable by Exchequer,SN1 2JH,"805,451.00",Yes
"Housing, Communities & Local Government",MHCLG,03/04/2018,Revenue Support grant payable,Local Government & Public Services,TAMWORTH BOROUGH COUNCIL,,,,232612457,5000395765,,Grant Payable by Exchequer,B79 7BZ,"44,457.00",Yes
"Housing, Communities & Local Government",MHCLG,03/04/2018,Revenue Support grant payable,Local Government & Public Services,TAUNTON DEANE BC,,,,236185294,5000395766,,Grant Payable by Exchequer,TA1 1HE,"25,181.00",Yes
"Housing, Communities & Local Government",MHCLG,03/04/2018,Revenue Support grant payable,Local Government & Public Services,TELFORD & WREKIN DC,,,,230235801,5000395767,,Grant Payable by Exchequer,TF3 4NT,"1,273,266.00",Yes
"Housing, Communities & Local Government",MHCLG,03/04/2018,Revenue Support grant payable,Local Government & Public Services,TENDRING DC,,,,,5000395768,,Grant Payable by Exchequer,CO15 1SE,"96,309.00",Yes
"Housing, Communities & Local Government",MHCLG,03/04/2018,Revenue Support grant payable,Local Government & Public Services,TEST VALLEY BC,,Large,,225442698,5000395769,,Grant Payable by Exchequer,SP10 3AJ,"5,038.00",Yes
"Housing, Communities & Local Government",MHCLG,03/04/2018,Revenue Support grant payable,Local Government & Public Services,THREE RIVERS DC,,,,,5000395771,,Grant Payable by Exchequer,WD3 1RL,"1,061.00",Yes
"Housing, Communities & Local Government",MHCLG,03/04/2018,Revenue Support grant payable,Local Government & Public Services,THURROCK  BOROUGH COUNCIL,,,,,5000395773,,Grant Payable by Exchequer,RM17 6LT,"962,782.00",Yes
"Housing, Communities & Local Government",MHCLG,03/04/2018,Revenue Support grant payable,Local Government & Public Services,TYNE & WEAR FIRE AUTHORITY,,,,215599312,5000395774,,Grant Payable by Exchequer,SR2 7DN,"3,206,686.00",Yes
"Housing, Communities & Local Government",MHCLG,03/04/2018,Revenue Support grant payable,Local Government & Public Services,VALE OF WHITE HORSE DC,,,,,5000395776,,Grant Payable by Exchequer,OX14 4SB,"14,832.00",Yes
"Housing, Communities & Local Government",MHCLG,03/04/2018,Revenue Support grant payable,Local Government & Public Services,WARRINGTON BC,,,,,5000395778,,Grant Payable by Exchequer,WA1 1BN,"523,246.00",Yes
"Housing, Communities & Local Government",MHCLG,03/04/2018,Revenue Support grant payable,Local Government & Public Services,WARWICK,,,,,5000395780,,Grant Payable by Exchequer,CV32 4NW,"27,606.00",Yes
"Housing, Communities & Local Government",MHCLG,03/04/2018,Revenue Support grant payable,Local Government & Public Services,WARWICKSHIRE COUNTY CNCL,,,,210396290,5000395782,,Grant Payable by Exchequer,CV34 4RH,"872,059.00",Yes
"Housing, Communities & Local Government",MHCLG,03/04/2018,Revenue Support grant payable,Local Government & Public Services,WATFORD COUNCIL,,,,215498572,5000395784,,Grant Payable by Exchequer,WD17 3EX,"10,287.00",Yes
"Housing, Communities & Local Government",MHCLG,03/04/2018,Revenue Support grant payable,Local Government & Public Services,WELLINGBOROUGH BOROUGH COUNCIL,,Large,,230851581,5000395786,,Grant Payable by Exchequer,NN8 1BP,"47,769.00",Yes
"Housing, Communities & Local Government",MHCLG,03/04/2018,Revenue Support grant payable,Local Government & Public Services,WELWYN HATFIELD COUNCIL,,,,210360804,5000395789,,Grant Payable by Exchequer,AL8 6AE,"9,377.00",Yes
"Housing, Communities & Local Government",MHCLG,03/04/2018,Revenue Support grant payable,Local Government & Public Services,WEST DORSET DC,,,,424295350,5000395790,,Grant Payable by Exchequer,DT1 1UZ,"27,661.00",Yes
"Housing, Communities & Local Government",MHCLG,03/04/2018,Revenue Support grant payable,Local Government & Public Services,WEST LANCASHIRE BC,,,,232240978,5000395792,,Grant Payable by Exchequer,L39 2DF,"39,013.00",Yes
"Housing, Communities & Local Government",MHCLG,03/04/2018,Revenue Support grant payable,Local Government & Public Services,WEST MIDLANDS FIRE & CIVIL DEFENCE,,,,232913731,5000395794,,Grant Payable by Exchequer,B4 7DE,"6,860,721.00",Yes
"Housing, Communities & Local Government",MHCLG,03/04/2018,Revenue Support grant payable,Local Government & Public Services,WEST OXFORDSHIRE DC,,Large,,210401379,5000395796,,Grant Payable by Exchequer,OX28 1NB,"33,528.00",Yes
"Housing, Communities & Local Government",MHCLG,03/04/2018,Revenue Support grant payable,Local Government & Public Services,WEST SOMERSET DC,,,,216015144,5000395798,,Grant Payable by Exchequer,TA4 4QA,"15,317.00",Yes
"Housing, Communities & Local Government",MHCLG,03/04/2018,Revenue Support grant payable,Local Government & Public Services,WEST SUSSEX CC,,Public Bodies,,232198762,5000395800,,Grant Payable by Exchequer,PO19 1RG,"1,090,997.00",Yes
"Housing, Communities & Local Government",MHCLG,03/04/2018,Revenue Support grant payable,Local Government & Public Services,WEST YORKSHIRE FIRE & RESCUE AUTH,,,,236428595,5000395802,,Grant Payable by Exchequer,HD1 2YU,"4,889,886.00",Yes
"Housing, Communities & Local Government",MHCLG,03/04/2018,Revenue Support grant payable,Local Government & Public Services,WILTSHIRE COUNCIL,,,,211341656,5000395832,,Grant Payable by Exchequer,BA14 4DS,"724,148.00",Yes
"Housing, Communities & Local Government",MHCLG,03/04/2018,Revenue Support grant payable,Local Government & Public Services,WINCHESTER CITY CNCL,,,,228838280,5000395803,,Grant Payable by Exchequer,SO23 9LJ,680.00,Yes
"Housing, Communities & Local Government",MHCLG,03/04/2018,Revenue Support grant payable,Local Government & Public Services,WORCESTER CITY CNCL,,,,227419751,5000395806,,Grant Payable by Exchequer,WR1 2EZ,"27,537.00",Yes
"Housing, Communities & Local Government",MHCLG,03/04/2018,Revenue Support grant payable,Local Government & Public Services,WORCESTERSHIRE COUNTY COUNCIL,,,,230359643,5000395808,,Grant Payable by Exchequer,WR5 2NP,"849,197.00",Yes
"Housing, Communities & Local Government",MHCLG,03/04/2018,Revenue Support grant payable,Local Government & Public Services,WORTHING BC,,,,236429734,5000395810,,Grant Payable by Exchequer,BN11 1HB,691.00,Yes
"Housing, Communities & Local Government",MHCLG,03/04/2018,Revenue Support grant payable,Local Government & Public Services,WYCHAVON DISTRICT COUNCIL,,,,232257139,5000395812,,Grant Payable by Exchequer,WR10 1PT,"18,992.00",Yes
"Housing, Communities & Local Government",MHCLG,03/04/2018,Revenue Support grant payable,Local Government & Public Services,WYCOMBE DC,,,,232683771,5000395813,,Grant Payable by Exchequer,HP11 1BB,"10,502.00",Yes
"Housing, Communities & Local Government",MHCLG,03/04/2018,Revenue Support grant payable,Local Government & Public Services,WYRE BC,,,,236646493,5000395816,,Grant Payable by Exchequer,FY6 7PU,"41,905.00",Yes
"Housing, Communities & Local Government",MHCLG,03/04/2018,Revenue Support grant payable,Local Government & Public Services,WYRE FOREST DISTRICT COUNCIL,,,,,5000395818,,Grant Payable by Exchequer,DY11 7WF,"9,061.00",Yes
"Housing, Communities & Local Government",MHCLG,04/04/2018,Advertising,Decentralisation and Local Growth,CARAT SCOTLAND,,Large,,519820302,5106235362,Advertising,Mayoral Campaign Media Planning_Mar 2018,EH1 3HU,"1,080.00",
"Housing, Communities & Local Government",MHCLG,04/04/2018,Advertising,Decentralisation and Local Growth,ENGINE PARTNERS UK LLP,,Large,,,5106235331,Advertising,Mayoral Campaign Media & Advertising,W1W 7RT,"29,688.24",
"Housing, Communities & Local Government",MHCLG,04/04/2018,Agency Staff,Corporate Services,BROOK STREET UK LTD,,Large,,364940028,5106235344,Contingent Labour,Support Worker - Reasonable Adjustment,AL1 4JB,582.29,
"Housing, Communities & Local Government",MHCLG,04/04/2018,Agency Staff,Decentralisation and Local Growth,BROOK STREET UK LTD,,Large,,364940028,5106235349,Contingent Labour,Temporary staff,AL1 4JB,857.83,
"Housing, Communities & Local Government",MHCLG,04/04/2018,Agency Staff,Local Government & Public Services,BROOK STREET UK LTD,,Large,,364940028,5106235346,Contingent Labour,Interim Admin support,AL1 4JB,835.39,
"Housing, Communities & Local Government",MHCLG,04/04/2018,Current (non AEF) Grants to Local Authorities,Local Government & Public Services,ROYAL BOROUGH  KENSINGTON & CHELSEA,,Large,,211124466,2100281486,,Grenfell Recovery Costs,W8 7NX,"6,800,000.00",Yes
"Housing, Communities & Local Government",MHCLG,04/04/2018,Current (non AEF) Grants to Local Authorities,Local Government & Public Services,ROYAL BOROUGH  KENSINGTON & CHELSEA,,Large,,211124466,2100281487,,Grenfell Recovery Costs,W8 7NX,"31,075,000.00",Yes
"Housing, Communities & Local Government",MHCLG,04/04/2018,Current (non AEF) Grants to Local Authorities,Local Government & Public Services,ROYAL BOROUGH  KENSINGTON & CHELSEA,,Large,,211124466,2100281488,,Grenfell Recovery Costs,W8 7NX,"3,800,000.00",Yes
"Housing, Communities & Local Government",MHCLG,04/04/2018,Current (non AEF) Grants to Local Authorities,Local Government & Public Services,WILTSHIRE COUNTY COUNCIL,,,,211341656,2100281433,,Contribution for Salibury HAZMAT incident costs,BA14 4DS,"587,500.00",Yes
"Housing, Communities & Local Government",MHCLG,04/04/2018,ERDF Work in Progress � Resource,Decentralisation and Local Growth,EXEMPLAS LIMITED,,Medium,,,7700001892,,ERDF Grant payment,AL7 3AX,"277,322.68",Yes
"Housing, Communities & Local Government",MHCLG,04/04/2018,EXP � PURCHASE OF GOODS /SERVICES R & D,Chief Finance Office,NATIONAL CENTRE FOR SOCIAL RESEARCH,,Large,,424047426,5106235364,Research,Research - English Housing Survey,EC1V 0AX,"15,393.98",
"Housing, Communities & Local Government",MHCLG,04/04/2018,EXP � PURCHASE OF GOODS /SERVICES R & D,Chief Finance Office,NATIONAL CENTRE FOR SOCIAL RESEARCH,,Large,,424047426,5106235366,Research,Research - English Housing Survey,EC1V 0AX,"6,286.33",
"Housing, Communities & Local Government",MHCLG,04/04/2018,EXP � PURCHASE OF GOODS /SERVICES R & D,Chief Finance Office,NATIONAL CENTRE FOR SOCIAL RESEARCH,,Large,,424047426,5106235368,Research,Research - English Housing Survey,EC1V 0AX,"12,606.02",
"Housing, Communities & Local Government",MHCLG,04/04/2018,"IT - PC, Network & Hardware",Chief Finance Office,X M A LTD,,Large,,298484148,5106235351,ICT Hardware,IT Equipment,NG11 7EP,"6,284.82",
"Housing, Communities & Local Government",MHCLG,04/04/2018,IT - Service Contracts,Chief Finance Office,DAISY COMMUNICATIONS LIMITED,,Large,,221263291,5106235336,IT Managed / Outsourced Services,3 months extension to Aug 17 Services,BB9 5SR,"3,759.22",
"Housing, Communities & Local Government",MHCLG,04/04/2018,IT - Software Maintenance,Chief Finance Office,ARCH CONSULTING LTD,,Small,,543735104,5106235354,IT Managed / Outsourced Services,Arch Software Subs - 2 Yr period,W4 1PF,"58,499.86",
"Housing, Communities & Local Government",MHCLG,04/04/2018,IT - Software Maintenance,Chief Finance Office,KAIZEN ASSOCIATES LTD,,Micro,,217482430,5106235363,IT Managed / Outsourced Services,Kaizen additional Service support,SE1 6SW,"43,114.24",
"Housing, Communities & Local Government",MHCLG,04/04/2018,Printing,Decentralisation and Local Growth,APS GROUP,,Micro,,212228001,5106235372,Printing Services,Warehousing and Logistics,SK3 02P,207.97,
"Housing, Communities & Local Government",MHCLG,04/04/2018,Publications,Decentralisation and Local Growth,APS GROUP,,Micro,,212228001,5106235372,Learning and Development Materials,Business Cards,SK3 02P,31.56,
"Housing, Communities & Local Government",MHCLG,04/04/2018,Services provided by other Govt Orgs,Chief Finance Office,H M TREASURY,,Public Bodies,,233590996,5106235345,IT Managed / Outsourced Services,Government Internal Audit 17/18,NR1 0HS,"135,134.56",Yes
"Housing, Communities & Local Government",MHCLG,04/04/2018,Software Licences,Decentralisation and Local Growth,BYTES SOFTWARE SERVICES LTD,,Medium,,225273754,5106234614,Software,Licence for MS Project Standard,KT22 7TW,-428.48,
"Housing, Communities & Local Government",MHCLG,04/04/2018,Steady State Service Provision,Corporate Services,CABINET OFFICE,,Public Bodies,,232159186,5106235327,Business Process Outsourcing Services,2017 people survey for DCLG & PINS,FY5 3TA,"29,604.72",
"Housing, Communities & Local Government",MHCLG,04/04/2018,Training,Corporate Services,KPMG LLP (CSL),,Large,,,5106235323,Development and Training,Civil Service Training,E14 5GL,299.00,
"Housing, Communities & Local Government",MHCLG,05/04/2018,Advertising,Decentralisation and Local Growth,ENGINE PARTNERS UK LLP,,Large,,,5106235374,Advertising,NPH - Creative Agency Services,W1W 7RT,"1,329.29",
"Housing, Communities & Local Government",MHCLG,05/04/2018,Advertising,Decentralisation and Local Growth,ENGINE PARTNERS UK LLP,,Large,,,5106235374,Advertising,NPH - Fee,W1W 7RT,110.20,
"Housing, Communities & Local Government",MHCLG,05/04/2018,Advertising,Decentralisation and Local Growth,ENGINE PARTNERS UK LLP,,Large,,,5106235374,Advertising,RTB - Creative agency services,W1W 7RT,"2,360.30",
"Housing, Communities & Local Government",MHCLG,05/04/2018,Advertising,Decentralisation and Local Growth,ENGINE PARTNERS UK LLP,,Large,,,5106235374,Advertising,PRS - Creative agency services,W1W 7RT,"7,440.20",
"Housing, Communities & Local Government",MHCLG,05/04/2018,Agency Staff,Housing & BSP,ALLEN LANE LTD,,Medium,Yes,,5106235377,Contingent Labour,BSP Recruitment - Project Specialist - C,,"2,688.00",
"Housing, Communities & Local Government",MHCLG,05/04/2018,Conferences and Meeting Facilities,Decentralisation and Local Growth,CALDER CONFERENCES  LTD,,Small,,,2100281669,Business Travel Accommodation,NPPF Conference,LS16 6RF,"46,987.20",
"Housing, Communities & Local Government",MHCLG,05/04/2018,Conferences and Meeting Facilities,Local Government & Public Services,CALDER CONFERENCES  LTD,,Small,,,2100281669,Business Travel Accommodation,UKHMF conferences,LS16 6RF,"11,096.52",
"Housing, Communities & Local Government",MHCLG,05/04/2018,Current (non AEF) Grants to Local Authorities,Local Government & Public Services,ADUR DC,,,,227472891,5000398910,,SBRR Threshold Changes Grant,BN11 1HA,"184,602.00",Yes
"Housing, Communities & Local Government",MHCLG,05/04/2018,Current (non AEF) Grants to Local Authorities,Local Government & Public Services,ADUR DC,,,,227472891,5000398912,,Support for Public Houses,BN11 1HA,"6,805.00",Yes
"Housing, Communities & Local Government",MHCLG,05/04/2018,Current (non AEF) Grants to Local Authorities,Local Government & Public Services,ALLERDALE BOROUGH COUNCIL,,,,218146780,5000398914,,Supporting Small Business,CA14 3YJ,"14,328.00",Yes
"Housing, Communities & Local Government",MHCLG,05/04/2018,Current (non AEF) Grants to Local Authorities,Local Government & Public Services,ALLERDALE BOROUGH COUNCIL,,,,218146780,5000398916,,Support for Public Houses,CA14 3YJ,"31,486.00",Yes
"Housing, Communities & Local Government",MHCLG,05/04/2018,Current (non AEF) Grants to Local Authorities,Local Government & Public Services,ALLERDALE BOROUGH COUNCIL,,,,218146780,5000398918,,SBRR Threshold Changes Grant,CA14 3YJ,"307,973.00",Yes
"Housing, Communities & Local Government",MHCLG,05/04/2018,Current (non AEF) Grants to Local Authorities,Local Government & Public Services,AMBER VALLEY BC,,,,,5000398920,,SBRR Threshold Changes Grant,DE5 3BT,"355,837.00",Yes
"Housing, Communities & Local Government",MHCLG,05/04/2018,Current (non AEF) Grants to Local Authorities,Local Government & Public Services,AMBER VALLEY BC,,,,,5000398922,,Supporting Small Business,DE5 3BT,"25,376.00",Yes
"Housing, Communities & Local Government",MHCLG,05/04/2018,Current (non AEF) Grants to Local Authorities,Local Government & Public Services,AMBER VALLEY BC,,,,,5000398924,,Support for Public Houses,DE5 3BT,"24,361.00",Yes
"Housing, Communities & Local Government",MHCLG,05/04/2018,Current (non AEF) Grants to Local Authorities,Local Government & Public Services,ARUN DC,,,,211217668,5000398067,,Supporting Small Business,BN17 5LF,"27,950.00",Yes
"Housing, Communities & Local Government",MHCLG,05/04/2018,Current (non AEF) Grants to Local Authorities,Local Government & Public Services,ARUN DC,,,,211217668,5000398068,,Support for Public Houses,BN17 5LF,"31,844.00",Yes
"Housing, Communities & Local Government",MHCLG,05/04/2018,Current (non AEF) Grants to Local Authorities,Local Government & Public Services,ARUN DC,,,,211217668,5000398069,,SBRR Threshold Changes Grant,BN17 5LF,"454,333.00",Yes
"Housing, Communities & Local Government",MHCLG,05/04/2018,Current (non AEF) Grants to Local Authorities,Local Government & Public Services,ASHFIELD DC,,,,235415296,5000398926,,SBRR Threshold Changes Grant,NG17 8DA,"236,697.00",Yes
"Housing, Communities & Local Government",MHCLG,05/04/2018,Current (non AEF) Grants to Local Authorities,Local Government & Public Services,ASHFIELD DC,,,,235415296,5000398928,,Supporting Small Business,NG17 8DA,"10,378.00",Yes
"Housing, Communities & Local Government",MHCLG,05/04/2018,Current (non AEF) Grants to Local Authorities,Local Government & Public Services,ASHFIELD DC,,,,235415296,5000398930,,Support for Public Houses,NG17 8DA,"15,662.00",Yes
"Housing, Communities & Local Government",MHCLG,05/04/2018,Current (non AEF) Grants to Local Authorities,Local Government & Public Services,ASHFORD BC,,,,229467071,5000398070,,Supporting Small Business,TN23 1PL,"15,225.00",Yes
"Housing, Communities & Local Government",MHCLG,05/04/2018,Current (non AEF) Grants to Local Authorities,Local Government & Public Services,ASHFORD BC,,,,229467071,5000398071,,Support for Public Houses,TN23 1PL,"35,526.00",Yes
"Housing, Communities & Local Government",MHCLG,05/04/2018,Current (non AEF) Grants to Local Authorities,Local Government & Public Services,ASHFORD BC,,,,229467071,5000398072,,SBRR Threshold Changes Grant,TN23 1PL,"372,870.00",Yes
"Housing, Communities & Local Government",MHCLG,05/04/2018,Current (non AEF) Grants to Local Authorities,Local Government & Public Services,AYLESBURY VALE DC(HSG),,,,396710709,5000398073,,SBRR Threshold Changes Grant,HP19 8FF,"553,882.00",Yes
"Housing, Communities & Local Government",MHCLG,05/04/2018,Current (non AEF) Grants to Local Authorities,Local Government & Public Services,AYLESBURY VALE DC(HSG),,,,396710709,5000398074,,Supporting Small Business,HP19 8FF,"23,650.00",Yes
"Housing, Communities & Local Government",MHCLG,05/04/2018,Current (non AEF) Grants to Local Authorities,Local Government & Public Services,AYLESBURY VALE DC(HSG),,,,396710709,5000398075,,Support for Public Houses,HP19 8FF,"39,840.00",Yes
"Housing, Communities & Local Government",MHCLG,05/04/2018,Current (non AEF) Grants to Local Authorities,Local Government & Public Services,BABERGH DC,,,,232618405,5000398076,,SBRR Threshold Changes Grant,IP7 6SJ,"287,519.00",Yes
"Housing, Communities & Local Government",MHCLG,05/04/2018,Current (non AEF) Grants to Local Authorities,Local Government & Public Services,BABERGH DC,,,,232618405,5000398077,,Supporting Small Business,IP7 6SJ,"22,123.00",Yes
"Housing, Communities & Local Government",MHCLG,05/04/2018,Current (non AEF) Grants to Local Authorities,Local Government & Public Services,BABERGH DC,,,,232618405,5000398078,,Support for Public Houses,IP7 6SJ,"25,615.00",Yes
"Housing, Communities & Local Government",MHCLG,05/04/2018,Current (non AEF) Grants to Local Authorities,Local Government & Public Services,BARKING & DAGENHAM LB (HSG),,,,217142293,5000398080,,Supporting Small Business,RM10 7BY,"29,243.00",Yes
"Housing, Communities & Local Government",MHCLG,05/04/2018,Current (non AEF) Grants to Local Authorities,Local Government & Public Services,BARKING & DAGENHAM LB (HSG),,,,217142293,5000398082,,Support for Public Houses,RM10 7BY,"13,601.00",Yes
"Housing, Communities & Local Government",MHCLG,05/04/2018,Current (non AEF) Grants to Local Authorities,Local Government & Public Services,BARKING & DAGENHAM LB (HSG),,,,217142293,5000398083,,SBRR Threshold Changes Grant,RM10 7BY,"711,898.00",Yes
"Housing, Communities & Local Government",MHCLG,05/04/2018,Current (non AEF) Grants to Local Authorities,Local Government & Public Services,BARNSLEY MBC,,,,211178595,5000398937,,SBRR Threshold Changes Grant,S70 2AQ,"534,124.00",Yes
"Housing, Communities & Local Government",MHCLG,05/04/2018,Current (non AEF) Grants to Local Authorities,Local Government & Public Services,BARNSLEY MBC,,,,211178595,5000398939,,Supporting Small Business,S70 2AQ,"8,570.00",Yes
"Housing, Communities & Local Government",MHCLG,05/04/2018,Current (non AEF) Grants to Local Authorities,Local Government & Public Services,BARNSLEY MBC,,,,211178595,5000398941,,Support for Public Houses,S70 2AQ,"46,963.00",Yes
"Housing, Communities & Local Government",MHCLG,05/04/2018,Current (non AEF) Grants to Local Authorities,Local Government & Public Services,BARROW BC,,,,295632913,5000398943,,Supporting Small Business,LA14 2LD,"1,316.00",Yes
"Housing, Communities & Local Government",MHCLG,05/04/2018,Current (non AEF) Grants to Local Authorities,Local Government & Public Services,BARROW BC,,,,295632913,5000398946,,Support for Public Houses,LA14 2LD,"17,295.00",Yes
"Housing, Communities & Local Government",MHCLG,05/04/2018,Current (non AEF) Grants to Local Authorities,Local Government & Public Services,BARROW BC,,,,295632913,5000398948,,SBRR Threshold Changes Grant,LA14 2LD,"149,092.00",Yes
"Housing, Communities & Local Government",MHCLG,05/04/2018,Current (non AEF) Grants to Local Authorities,Local Government & Public Services,BASILDON BOROUGH COUNCIL,,,,,5000398950,,SBRR Threshold Changes Grant,SS14 0DF,"507,234.00",Yes
"Housing, Communities & Local Government",MHCLG,05/04/2018,Current (non AEF) Grants to Local Authorities,Local Government & Public Services,BASILDON BOROUGH COUNCIL,,,,,5000398951,,Supporting Small Business,SS14 0DF,"21,460.00",Yes
"Housing, Communities & Local Government",MHCLG,05/04/2018,Current (non AEF) Grants to Local Authorities,Local Government & Public Services,BASILDON BOROUGH COUNCIL,,,,,5000398953,,Support for Public Houses,SS14 0DF,"12,180.00",Yes
"Housing, Communities & Local Government",MHCLG,05/04/2018,Current (non AEF) Grants to Local Authorities,Local Government & Public Services,BASINGSTOKE & DEANE BC,,,,228328506,5000398079,,SBRR Threshold Changes Grant,RG21 2AJ,"251,015.00",Yes
"Housing, Communities & Local Government",MHCLG,05/04/2018,Current (non AEF) Grants to Local Authorities,Local Government & Public Services,BASINGSTOKE & DEANE BC,,,,228328506,5000398081,,Supporting Small Business,RG21 2AJ,"16,123.00",Yes
"Housing, Communities & Local Government",MHCLG,05/04/2018,Current (non AEF) Grants to Local Authorities,Local Government & Public Services,BASINGSTOKE & DEANE BC,,,,228328506,5000398084,,Support for Public Houses,RG21 2AJ,"46,107.00",Yes
"Housing, Communities & Local Government",MHCLG,05/04/2018,Current (non AEF) Grants to Local Authorities,Local Government & Public Services,BASSETLAW DC (HSG),,,,,5000398085,,SBRR Threshold Changes Grant,S80 2AH,"300,351.00",Yes
"Housing, Communities & Local Government",MHCLG,05/04/2018,Current (non AEF) Grants to Local Authorities,Local Government & Public Services,BASSETLAW DC (HSG),,,,,5000398087,,Supporting Small Business,S80 2AH,"22,025.00",Yes
"Housing, Communities & Local Government",MHCLG,05/04/2018,Current (non AEF) Grants to Local Authorities,Local Government & Public Services,BASSETLAW DC (HSG),,,,,5000398089,,Support for Public Houses,S80 2AH,"33,196.00",Yes
"Housing, Communities & Local Government",MHCLG,05/04/2018,Current (non AEF) Grants to Local Authorities,Local Government & Public Services,BATH & NE SOMERSET DC (HSG),,,,214502499,5000398091,,SBRR Threshold Changes Grant,BA1 5AW,"1,174,437.00",Yes
"Housing, Communities & Local Government",MHCLG,05/04/2018,Current (non AEF) Grants to Local Authorities,Local Government & Public Services,BATH & NE SOMERSET DC (HSG),,,,214502499,5000398092,,Supporting Small Business,BA1 5AW,"30,451.00",Yes
"Housing, Communities & Local Government",MHCLG,05/04/2018,Current (non AEF) Grants to Local Authorities,Local Government & Public Services,BATH & NE SOMERSET DC (HSG),,,,214502499,5000398095,,Support for Public Houses,BA1 5AW,"101,502.00",Yes
"Housing, Communities & Local Government",MHCLG,05/04/2018,Current (non AEF) Grants to Local Authorities,Local Government & Public Services,BEDFORD UNITARY AUTHORITY,,,,225682160,5000399014,,Supporting Small Business,MK40 1SJ,"7,485.00",Yes
"Housing, Communities & Local Government",MHCLG,05/04/2018,Current (non AEF) Grants to Local Authorities,Local Government & Public Services,BEDFORD UNITARY AUTHORITY,,,,225682160,5000399015,,Support for Public Houses,MK40 1SJ,"17,681.00",Yes
"Housing, Communities & Local Government",MHCLG,05/04/2018,Current (non AEF) Grants to Local Authorities,Local Government & Public Services,BEDFORD UNITARY AUTHORITY,,,,225682160,5000399016,,SBRR Threshold Changes Grant,MK40 1SJ,"492,551.00",Yes
"Housing, Communities & Local Government",MHCLG,05/04/2018,Current (non AEF) Grants to Local Authorities,Local Government & Public Services,BEXLEY LB (HSG),,,,,5000398097,,SBRR Threshold Changes Grant,DA8 1TL,"793,444.00",Yes
"Housing, Communities & Local Government",MHCLG,05/04/2018,Current (non AEF) Grants to Local Authorities,Local Government & Public Services,BEXLEY LB (HSG),,,,,5000398099,,Supporting Small Business,DA8 1TL,"31,747.00",Yes
"Housing, Communities & Local Government",MHCLG,05/04/2018,Current (non AEF) Grants to Local Authorities,Local Government & Public Services,BEXLEY LB (HSG),,,,,5000398100,,Support for Public Houses,DA8 1TL,"28,013.00",Yes
"Housing, Communities & Local Government",MHCLG,05/04/2018,Current (non AEF) Grants to Local Authorities,Local Government & Public Services,BIRMINGHAM CITY CNCL,,,,213780559,5000398086,,SBRR Threshold Changes Grant,B2 2AJ,"6,701,613.00",Yes
"Housing, Communities & Local Government",MHCLG,05/04/2018,Current (non AEF) Grants to Local Authorities,Local Government & Public Services,BIRMINGHAM CITY CNCL,,,,213780559,5000398088,,Supporting Small Business,B2 2AJ,"523,724.00",Yes
"Housing, Communities & Local Government",MHCLG,05/04/2018,Current (non AEF) Grants to Local Authorities,Local Government & Public Services,BIRMINGHAM CITY CNCL,,,,213780559,5000398090,,Support for Public Houses,B2 2AJ,"189,577.00",Yes
"Housing, Communities & Local Government",MHCLG,05/04/2018,Current (non AEF) Grants to Local Authorities,Local Government & Public Services,BLABY DC (HSG),,,,,5000398102,,SBRR Threshold Changes Grant,LE9 5EP,"177,792.00",Yes
"Housing, Communities & Local Government",MHCLG,05/04/2018,Current (non AEF) Grants to Local Authorities,Local Government & Public Services,BLABY DC (HSG),,,,,5000398104,,Support for Public Houses,LE9 5EP,"15,733.00",Yes
"Housing, Communities & Local Government",MHCLG,05/04/2018,Current (non AEF) Grants to Local Authorities,Local Government & Public Services,BLABY DC (HSG),,,,,5000398106,,Supporting Small Business,LE9 5EP,"7,208.00",Yes
"Housing, Communities & Local Government",MHCLG,05/04/2018,Current (non AEF) Grants to Local Authorities,Local Government & Public Services,BLACKBURN WITH DARWEN BC,,,,,5000398093,,SBRR Threshold Changes Grant,BB1 7DY,"460,769.00",Yes
"Housing, Communities & Local Government",MHCLG,05/04/2018,Current (non AEF) Grants to Local Authorities,Local Government & Public Services,BLACKPOOL BC,,,,,5000398094,,SBRR Threshold Changes Grant,FY1 1NA,"595,237.00",Yes
"Housing, Communities & Local Government",MHCLG,05/04/2018,Current (non AEF) Grants to Local Authorities,Local Government & Public Services,BLACKPOOL BC,,,,,5000398096,,Supporting Small Business,FY1 1NA,"5,537.00",Yes
"Housing, Communities & Local Government",MHCLG,05/04/2018,Current (non AEF) Grants to Local Authorities,Local Government & Public Services,BLACKPOOL BC,,,,,5000398098,,Support for Public Houses,FY1 1NA,"13,294.00",Yes
"Housing, Communities & Local Government",MHCLG,05/04/2018,Current (non AEF) Grants to Local Authorities,Local Government & Public Services,BOLSOVER DC,,,,235516523,5000398101,,SBRR Threshold Changes Grant,S43 4JY,"135,444.00",Yes
"Housing, Communities & Local Government",MHCLG,05/04/2018,Current (non AEF) Grants to Local Authorities,Local Government & Public Services,BOLSOVER DC,,,,235516523,5000398103,,Support for Public Houses,S43 4JY,"7,733.00",Yes
"Housing, Communities & Local Government",MHCLG,05/04/2018,Current (non AEF) Grants to Local Authorities,Local Government & Public Services,BOLSOVER DC,,,,235516523,5000398105,,Supporting Small Business,S43 4JY,"6,034.00",Yes
"Housing, Communities & Local Government",MHCLG,05/04/2018,Current (non AEF) Grants to Local Authorities,Local Government & Public Services,BOLTON MBC,,,,,5000398107,,SBRR Threshold Changes Grant,BL1 1RU,"1,886,925.00",Yes
"Housing, Communities & Local Government",MHCLG,05/04/2018,Current (non AEF) Grants to Local Authorities,Local Government & Public Services,BOLTON MBC,,,,,5000398109,,Supporting Small Business,BL1 1RU,"48,721.00",Yes
"Housing, Communities & Local Government",MHCLG,05/04/2018,Current (non AEF) Grants to Local Authorities,Local Government & Public Services,BOLTON MBC,,,,,5000398111,,Support for Public Houses,BL1 1RU,"101,502.00",Yes
"Housing, Communities & Local Government",MHCLG,05/04/2018,Current (non AEF) Grants to Local Authorities,Local Government & Public Services,BOSTON BC,,,,236417713,5000398108,,SBRR Threshold Changes Grant,PE21 8QR,"175,984.00",Yes
"Housing, Communities & Local Government",MHCLG,05/04/2018,Current (non AEF) Grants to Local Authorities,Local Government & Public Services,BOSTON BC,,,,236417713,5000398110,,Supporting Small Business,PE21 8QR,"5,585.00",Yes
"Housing, Communities & Local Government",MHCLG,05/04/2018,Current (non AEF) Grants to Local Authorities,Local Government & Public Services,BOSTON BC,,,,236417713,5000398112,,Support for Public Houses,PE21 8QR,"9,870.00",Yes
"Housing, Communities & Local Government",MHCLG,05/04/2018,Current (non AEF) Grants to Local Authorities,Local Government & Public Services,BOURNEMOUTH DC,,,,,5000398113,,SBRR Threshold Changes Grant,BH2 6EB,"569,596.00",Yes
"Housing, Communities & Local Government",MHCLG,05/04/2018,Current (non AEF) Grants to Local Authorities,Local Government & Public Services,BOURNEMOUTH DC,,,,,5000398115,,Supporting Small Business,BH2 6EB,"33,027.00",Yes
"Housing, Communities & Local Government",MHCLG,05/04/2018,Current (non AEF) Grants to Local Authorities,Local Government & Public Services,BOURNEMOUTH DC,,,,,5000398116,,Support for Public Houses,BH2 6EB,"7,613.00",Yes
"Housing, Communities & Local Government",MHCLG,05/04/2018,Current (non AEF) Grants to Local Authorities,Local Government & Public Services,BRACKNELL FOREST DC,,,,236184867,5000398119,,SBRR Threshold Changes Grant,RG12 1AQ,"175,175.00",Yes
"Housing, Communities & Local Government",MHCLG,05/04/2018,Current (non AEF) Grants to Local Authorities,Local Government & Public Services,BRACKNELL FOREST DC,,,,236184867,5000398121,,Supporting Small Business,RG12 1AQ,"14,789.00",Yes
"Housing, Communities & Local Government",MHCLG,05/04/2018,Current (non AEF) Grants to Local Authorities,Local Government & Public Services,BRACKNELL FOREST DC,,,,236184867,5000398122,,Support for Public Houses,RG12 1AQ,"10,353.00",Yes
"Housing, Communities & Local Government",MHCLG,05/04/2018,Current (non AEF) Grants to Local Authorities,Local Government & Public Services,BRADFORD MBC,,,,,5000398124,,SBRR Threshold Changes Grant,BD1 1HX,"1,928,637.00",Yes
"Housing, Communities & Local Government",MHCLG,05/04/2018,Current (non AEF) Grants to Local Authorities,Local Government & Public Services,BRADFORD MBC,,,,,5000398126,,Supporting Small Business,BD1 1HX,"33,137.00",Yes
"Housing, Communities & Local Government",MHCLG,05/04/2018,Current (non AEF) Grants to Local Authorities,Local Government & Public Services,BRADFORD MBC,,,,,5000398128,,Support for Public Houses,BD1 1HX,"88,119.00",Yes
"Housing, Communities & Local Government",MHCLG,05/04/2018,Current (non AEF) Grants to Local Authorities,Local Government & Public Services,BRAINTREE DC,,,,226941730,5000398114,,SBRR Threshold Changes Grant,CM7 6HB,"437,807.00",Yes
"Housing, Communities & Local Government",MHCLG,05/04/2018,Current (non AEF) Grants to Local Authorities,Local Government & Public Services,BRAINTREE DC,,,,226941730,5000398117,,Supporting Small Business,CM7 6HB,"16,596.00",Yes
"Housing, Communities & Local Government",MHCLG,05/04/2018,Current (non AEF) Grants to Local Authorities,Local Government & Public Services,BRAINTREE DC,,,,226941730,5000398118,,Support for Public Houses,CM7 6HB,"30,797.00",Yes
"Housing, Communities & Local Government",MHCLG,05/04/2018,Current (non AEF) Grants to Local Authorities,Local Government & Public Services,BRECKLAND DC,,,,232611384,5000398120,,SBRR Threshold Changes Grant,NR19 1EE,"393,152.00",Yes
"Housing, Communities & Local Government",MHCLG,05/04/2018,Current (non AEF) Grants to Local Authorities,Local Government & Public Services,BRECKLAND DC,,,,232611384,5000398123,,Supporting Small Business,NR19 1EE,"20,176.00",Yes
"Housing, Communities & Local Government",MHCLG,05/04/2018,Current (non AEF) Grants to Local Authorities,Local Government & Public Services,BRECKLAND DC,,,,232611384,5000398125,,Support for Public Houses,NR19 1EE,"18,421.00",Yes
"Housing, Communities & Local Government",MHCLG,05/04/2018,Current (non AEF) Grants to Local Authorities,Local Government & Public Services,BRENT LB (HSG),,,,,5000398127,,SBRR Threshold Changes Grant,HA9 9HD,"1,436,419.00",Yes
"Housing, Communities & Local Government",MHCLG,05/04/2018,Current (non AEF) Grants to Local Authorities,Local Government & Public Services,BRENT LB (HSG),,,,,5000398129,,Supporting Small Business,HA9 9HD,"98,275.00",Yes
"Housing, Communities & Local Government",MHCLG,05/04/2018,Current (non AEF) Grants to Local Authorities,Local Government & Public Services,BRENT LB (HSG),,,,,5000398131,,Support for Public Houses,HA9 9HD,"34,003.00",Yes
"Housing, Communities & Local Government",MHCLG,05/04/2018,Current (non AEF) Grants to Local Authorities,Local Government & Public Services,BRENTWOOD BC,,,,227473188,5000398130,,Supporting Small Business,CM15 8AY,"7,963.00",Yes
"Housing, Communities & Local Government",MHCLG,05/04/2018,Current (non AEF) Grants to Local Authorities,Local Government & Public Services,BRENTWOOD BC,,,,227473188,5000398132,,Support for Public Houses,CM15 8AY,"22,838.00",Yes
"Housing, Communities & Local Government",MHCLG,05/04/2018,Current (non AEF) Grants to Local Authorities,Local Government & Public Services,BRENTWOOD BC,,,,227473188,5000398134,,SBRR Threshold Changes Grant,CM15 8AY,"234,136.00",Yes
"Housing, Communities & Local Government",MHCLG,05/04/2018,Current (non AEF) Grants to Local Authorities,Local Government & Public Services,BRIGHTON & HOVE CITY COUNCIL,,Large,,228455218,5000398137,,SBRR Threshold Changes Grant,BN1 3JE,"1,087,212.00",Yes
"Housing, Communities & Local Government",MHCLG,05/04/2018,Current (non AEF) Grants to Local Authorities,Local Government & Public Services,BRIGHTON & HOVE CITY COUNCIL,,Large,,228455218,5000398139,,Supporting Small Business,BN1 3JE,"76,711.00",Yes
"Housing, Communities & Local Government",MHCLG,05/04/2018,Current (non AEF) Grants to Local Authorities,Local Government & Public Services,BRIGHTON & HOVE CITY COUNCIL,,Large,,228455218,5000398141,,Support for Public Houses,BN1 3JE,"102,524.00",Yes
"Housing, Communities & Local Government",MHCLG,05/04/2018,Current (non AEF) Grants to Local Authorities,Local Government & Public Services,BRISTOL CITY COUNCIL (HSG),,,,211103882,5000398133,,SBRR Threshold Changes Grant,BS3 9FS,"2,529,837.00",Yes
"Housing, Communities & Local Government",MHCLG,05/04/2018,Current (non AEF) Grants to Local Authorities,Local Government & Public Services,BRISTOL CITY COUNCIL (HSG),,,,211103882,5000398135,,Supporting Small Business,BS3 9FS,"55,826.00",Yes
"Housing, Communities & Local Government",MHCLG,05/04/2018,Current (non AEF) Grants to Local Authorities,Local Government & Public Services,BRISTOL CITY COUNCIL (HSG),,,,211103882,5000398136,,Support for Public Houses,BS3 9FS,"182,704.00",Yes
"Housing, Communities & Local Government",MHCLG,05/04/2018,Current (non AEF) Grants to Local Authorities,Local Government & Public Services,BROADLAND DC,,Large,,219737785,5000398138,,SBRR Threshold Changes Grant,NR7 0DU,"285,337.00",Yes
"Housing, Communities & Local Government",MHCLG,05/04/2018,Current (non AEF) Grants to Local Authorities,Local Government & Public Services,BROADLAND DC,,Large,,219737785,5000398140,,Supporting Small Business,NR7 0DU,"16,240.00",Yes
"Housing, Communities & Local Government",MHCLG,05/04/2018,Current (non AEF) Grants to Local Authorities,Local Government & Public Services,BROADLAND DC,,Large,,219737785,5000398142,,Support for Public Houses,NR7 0DU,"21,315.00",Yes
"Housing, Communities & Local Government",MHCLG,05/04/2018,Current (non AEF) Grants to Local Authorities,Local Government & Public Services,BROMLEY LB,,,,211331954,5000398143,,SBRR Threshold Changes Grant,BR1 3UH,"1,567,415.00",Yes
"Housing, Communities & Local Government",MHCLG,05/04/2018,Current (non AEF) Grants to Local Authorities,Local Government & Public Services,BROMLEY LB,,,,211331954,5000398144,,Supporting Small Business,BR1 3UH,"117,978.00",Yes
"Housing, Communities & Local Government",MHCLG,05/04/2018,Current (non AEF) Grants to Local Authorities,Local Government & Public Services,BROMLEY LB,,,,211331954,5000398146,,Support for Public Houses,BR1 3UH,"42,164.00",Yes
"Housing, Communities & Local Government",MHCLG,05/04/2018,Current (non AEF) Grants to Local Authorities,Local Government & Public Services,BROMSGROVE DC,,,,236654745,5000398145,,SBRR Threshold Changes Grant,B60 1AA,"371,060.00",Yes
"Housing, Communities & Local Government",MHCLG,05/04/2018,Current (non AEF) Grants to Local Authorities,Local Government & Public Services,BROMSGROVE DC,,,,236654745,5000398147,,Supporting Small Business,B60 1AA,"9,386.00",Yes
"Housing, Communities & Local Government",MHCLG,05/04/2018,Current (non AEF) Grants to Local Authorities,Local Government & Public Services,BROMSGROVE DC,,,,236654745,5000398148,,Support for Public Houses,B60 1AA,"22,365.00",Yes
"Housing, Communities & Local Government",MHCLG,05/04/2018,Current (non AEF) Grants to Local Authorities,Local Government & Public Services,BROXBOURNE BC,,Public Bodies,,239931918,5000398149,,SBRR Threshold Changes Grant,EN8 9XG,"346,189.00",Yes
"Housing, Communities & Local Government",MHCLG,05/04/2018,Current (non AEF) Grants to Local Authorities,Local Government & Public Services,BROXBOURNE BC,,Public Bodies,,239931918,5000398151,,Supporting Small Business,EN8 9XG,"11,389.00",Yes
"Housing, Communities & Local Government",MHCLG,05/04/2018,Current (non AEF) Grants to Local Authorities,Local Government & Public Services,BROXBOURNE BC,,Public Bodies,,239931918,5000398153,,Support for Public Houses,EN8 9XG,"11,531.00",Yes
"Housing, Communities & Local Government",MHCLG,05/04/2018,Current (non AEF) Grants to Local Authorities,Local Government & Public Services,BROXTOWE BC,,,,239877640,5000398155,,SBRR Threshold Changes Grant,NG9 1AB,"228,462.00",Yes
"Housing, Communities & Local Government",MHCLG,05/04/2018,Current (non AEF) Grants to Local Authorities,Local Government & Public Services,BROXTOWE BC,,,,239877640,5000398157,,Supporting Small Business,NG9 1AB,"5,413.00",Yes
"Housing, Communities & Local Government",MHCLG,05/04/2018,Current (non AEF) Grants to Local Authorities,Local Government & Public Services,BROXTOWE BC,,,,239877640,5000398158,,Support for Public Houses,NG9 1AB,"17,700.00",Yes
"Housing, Communities & Local Government",MHCLG,05/04/2018,Current (non AEF) Grants to Local Authorities,Local Government & Public Services,BURNLEY BC,,,,229413281,5000398160,,SBRR Threshold Changes Grant,BB11 1JA,"247,257.00",Yes
"Housing, Communities & Local Government",MHCLG,05/04/2018,Current (non AEF) Grants to Local Authorities,Local Government & Public Services,BURNLEY BC,,,,229413281,5000398162,,Support for Public Houses,BB11 1JA,"20,300.00",Yes
"Housing, Communities & Local Government",MHCLG,05/04/2018,Current (non AEF) Grants to Local Authorities,Local Government & Public Services,BURNLEY BC,,,,229413281,5000398164,,Supporting Small Business,BB11 1JA,"5,583.00",Yes
"Housing, Communities & Local Government",MHCLG,05/04/2018,Current (non AEF) Grants to Local Authorities,Local Government & Public Services,BURY MBC,,,,,5000398166,,SBRR Threshold Changes Grant,BL9 0SW,"1,176,741.00",Yes
"Housing, Communities & Local Government",MHCLG,05/04/2018,Current (non AEF) Grants to Local Authorities,Local Government & Public Services,BURY MBC,,,,,5000398168,,Supporting Small Business,BL9 0SW,"45,270.00",Yes
"Housing, Communities & Local Government",MHCLG,05/04/2018,Current (non AEF) Grants to Local Authorities,Local Government & Public Services,BURY MBC,,,,,5000398171,,Support for Public Houses,BL9 0SW,"87,715.00",Yes
"Housing, Communities & Local Government",MHCLG,05/04/2018,Current (non AEF) Grants to Local Authorities,Local Government & Public Services,CALDERDALE MBC,,,,,5000398173,,Supporting Small Business,HX1 1YP,"27,913.00",Yes
"Housing, Communities & Local Government",MHCLG,05/04/2018,Current (non AEF) Grants to Local Authorities,Local Government & Public Services,CALDERDALE MBC,,,,,5000398175,,Support for Public Houses,HX1 1YP,"53,289.00",Yes
"Housing, Communities & Local Government",MHCLG,05/04/2018,Current (non AEF) Grants to Local Authorities,Local Government & Public Services,CALDERDALE MBC,,,,,5000398177,,SBRR Threshold Changes Grant,HX1 1YP,"1,032,213.00",Yes
"Housing, Communities & Local Government",MHCLG,05/04/2018,Current (non AEF) Grants to Local Authorities,Local Government & Public Services,CAMBRIDGE CITY COUNCIL,,,,210357534,5000398179,,SBRR Threshold Changes Grant,CB1 0JH,"345,620.00",Yes
"Housing, Communities & Local Government",MHCLG,05/04/2018,Current (non AEF) Grants to Local Authorities,Local Government & Public Services,CAMDEN LB,,,,211651836,5000398181,,SBRR Threshold Changes Grant,WC1H 8NG,"716,206.00",Yes
"Housing, Communities & Local Government",MHCLG,05/04/2018,Current (non AEF) Grants to Local Authorities,Local Government & Public Services,CANNOCK CHASE DC,,,,215064770,5000398183,,SBRR Threshold Changes Grant,WS11 1BG,"376,593.00",Yes
"Housing, Communities & Local Government",MHCLG,05/04/2018,Current (non AEF) Grants to Local Authorities,Local Government & Public Services,CANNOCK CHASE DC,,,,215064770,5000398185,,Supporting Small Business,WS11 1BG,"3,494.00",Yes
"Housing, Communities & Local Government",MHCLG,05/04/2018,Current (non AEF) Grants to Local Authorities,Local Government & Public Services,CANNOCK CHASE DC,,,,215064770,5000398187,,Support for Public Houses,WS11 1BG,"18,270.00",Yes
"Housing, Communities & Local Government",MHCLG,05/04/2018,Current (non AEF) Grants to Local Authorities,Local Government & Public Services,CANTERBURY CITY CNCL,,,,,5000398150,,SBRR Threshold Changes Grant,CT1 1YW,"449,808.00",Yes
"Housing, Communities & Local Government",MHCLG,05/04/2018,Current (non AEF) Grants to Local Authorities,Local Government & Public Services,CANTERBURY CITY CNCL,,,,,5000398152,,Supporting Small Business,CT1 1YW,"45,052.00",Yes
"Housing, Communities & Local Government",MHCLG,05/04/2018,Current (non AEF) Grants to Local Authorities,Local Government & Public Services,CANTERBURY CITY CNCL,,,,,5000398154,,Support for Public Houses,CT1 1YW,"34,552.00",Yes
"Housing, Communities & Local Government",MHCLG,05/04/2018,Current (non AEF) Grants to Local Authorities,Local Government & Public Services,CARLISLE CITY CNCL,,,,227471059,5000398156,,SBRR Threshold Changes Grant,CA3 8QG,"317,818.00",Yes
"Housing, Communities & Local Government",MHCLG,05/04/2018,Current (non AEF) Grants to Local Authorities,Local Government & Public Services,CARLISLE CITY CNCL,,,,227471059,5000398159,,Supporting Small Business,CA3 8QG,"8,192.00",Yes
"Housing, Communities & Local Government",MHCLG,05/04/2018,Current (non AEF) Grants to Local Authorities,Local Government & Public Services,CARLISLE CITY CNCL,,,,227471059,5000398161,,Support for Public Houses,CA3 8QG,"21,602.00",Yes
"Housing, Communities & Local Government",MHCLG,05/04/2018,Current (non AEF) Grants to Local Authorities,Local Government & Public Services,CASTLE POINT BC,,Public Bodies,,228217931,5000398190,,Supporting Small Business,SS7 1TF,"4,146.00",Yes
"Housing, Communities & Local Government",MHCLG,05/04/2018,Current (non AEF) Grants to Local Authorities,Local Government & Public Services,CASTLE POINT BC,,Public Bodies,,228217931,5000398191,,Support for Public Houses,SS7 1TF,"5,583.00",Yes
"Housing, Communities & Local Government",MHCLG,05/04/2018,Current (non AEF) Grants to Local Authorities,Local Government & Public Services,CASTLE POINT BC,,Public Bodies,,228217931,5000398193,,SBRR Threshold Changes Grant,SS7 1TF,"251,956.00",Yes
"Housing, Communities & Local Government",MHCLG,05/04/2018,Current (non AEF) Grants to Local Authorities,Local Government & Public Services,CENTRAL BEDFORDSHIRE COUNCIL,,,,232624882,5000399005,,SBRR Threshold Changes Grant,SG17 5TQ,"789,963.00",Yes
"Housing, Communities & Local Government",MHCLG,05/04/2018,Current (non AEF) Grants to Local Authorities,Local Government & Public Services,CENTRAL BEDFORDSHIRE COUNCIL,,,,232624882,5000399006,,Supporting Small Business,SG17 5TQ,"9,914.00",Yes
"Housing, Communities & Local Government",MHCLG,05/04/2018,Current (non AEF) Grants to Local Authorities,Local Government & Public Services,CENTRAL BEDFORDSHIRE COUNCIL,,,,232624882,5000399007,,Support for Public Houses,SG17 5TQ,"65,636.00",Yes
"Housing, Communities & Local Government",MHCLG,05/04/2018,Current (non AEF) Grants to Local Authorities,Local Government & Public Services,CHARNWOOD BC,,,,,5000398195,,SBRR Threshold Changes Grant,LE11 2TU,"560,135.00",Yes
"Housing, Communities & Local Government",MHCLG,05/04/2018,Current (non AEF) Grants to Local Authorities,Local Government & Public Services,CHARNWOOD BC,,,,,5000398197,,Support for Public Houses,LE11 2TU,"29,918.00",Yes
"Housing, Communities & Local Government",MHCLG,05/04/2018,Current (non AEF) Grants to Local Authorities,Local Government & Public Services,CHARNWOOD BC,,,,,5000398199,,Supporting Small Business,LE11 2TU,"27,893.00",Yes
"Housing, Communities & Local Government",MHCLG,05/04/2018,Current (non AEF) Grants to Local Authorities,Local Government & Public Services,CHELMSFORD BC,,,,,5000398201,,SBRR Threshold Changes Grant,CM1 1JE,"487,751.00",Yes
"Housing, Communities & Local Government",MHCLG,05/04/2018,Current (non AEF) Grants to Local Authorities,Local Government & Public Services,CHELMSFORD BC,,,,,5000398203,,Supporting Small Business,CM1 1JE,"19,793.00",Yes
"Housing, Communities & Local Government",MHCLG,05/04/2018,Current (non AEF) Grants to Local Authorities,Local Government & Public Services,CHELMSFORD BC,,,,,5000398205,,Support for Public Houses,CM1 1JE,"41,616.00",Yes
"Housing, Communities & Local Government",MHCLG,05/04/2018,Current (non AEF) Grants to Local Authorities,Local Government & Public Services,CHELTENHAM BC,,,,,5000398207,,SBRR Threshold Changes Grant,GL50 1PW,"321,163.00",Yes
"Housing, Communities & Local Government",MHCLG,05/04/2018,Current (non AEF) Grants to Local Authorities,Local Government & Public Services,CHELTENHAM BC,,,,,5000398209,,Supporting Small Business,GL50 1PW,"6,598.00",Yes
"Housing, Communities & Local Government",MHCLG,05/04/2018,Current (non AEF) Grants to Local Authorities,Local Government & Public Services,CHELTENHAM BC,,,,,5000398211,,Support for Public Houses,GL50 1PW,"17,763.00",Yes
"Housing, Communities & Local Government",MHCLG,05/04/2018,Current (non AEF) Grants to Local Authorities,Local Government & Public Services,CHERWELL DC,,,,,5000398163,,SBRR Threshold Changes Grant,OX15 4AA,"402,494.00",Yes
"Housing, Communities & Local Government",MHCLG,05/04/2018,Current (non AEF) Grants to Local Authorities,Local Government & Public Services,CHERWELL DC,,,,,5000398165,,Supporting Small Business,OX15 4AA,"25,249.00",Yes
"Housing, Communities & Local Government",MHCLG,05/04/2018,Current (non AEF) Grants to Local Authorities,Local Government & Public Services,CHERWELL DC,,,,,5000398167,,Support for Public Houses,OX15 4AA,"35,227.00",Yes
"Housing, Communities & Local Government",MHCLG,05/04/2018,Current (non AEF) Grants to Local Authorities,Local Government & Public Services,CHESHIRE EAST COUNCIL,,Large,,,5000399008,,SBRR Threshold Changes Grant,CW11 1HZ,"1,128,302.00",Yes
"Housing, Communities & Local Government",MHCLG,05/04/2018,Current (non AEF) Grants to Local Authorities,Local Government & Public Services,CHESHIRE EAST COUNCIL,,Large,,,5000399009,,Supporting Small Business,CW11 1HZ,"33,702.00",Yes
"Housing, Communities & Local Government",MHCLG,05/04/2018,Current (non AEF) Grants to Local Authorities,Local Government & Public Services,CHESHIRE EAST COUNCIL,,Large,,,5000399010,,Support for Public Houses,CW11 1HZ,"92,521.00",Yes
"Housing, Communities & Local Government",MHCLG,05/04/2018,Current (non AEF) Grants to Local Authorities,Local Government & Public Services,CHESHIRE WEST & CHESTER UA,,Large,,215584383,5000399011,,SBRR Threshold Changes Grant,CH1 2NP,"1,092,569.00",Yes
"Housing, Communities & Local Government",MHCLG,05/04/2018,Current (non AEF) Grants to Local Authorities,Local Government & Public Services,CHESHIRE WEST & CHESTER UA,,Large,,215584383,5000399012,,Supporting Small Business,CH1 2NP,"32,988.00",Yes
"Housing, Communities & Local Government",MHCLG,05/04/2018,Current (non AEF) Grants to Local Authorities,Local Government & Public Services,CHESHIRE WEST & CHESTER UA,,Large,,215584383,5000399013,,Support for Public Houses,CH1 2NP,"73,589.00",Yes
"Housing, Communities & Local Government",MHCLG,05/04/2018,Current (non AEF) Grants to Local Authorities,Local Government & Public Services,CHESTERFIELD BC,,,,232102301,5000398213,,SBRR Threshold Changes Grant,S40 1LP,"369,980.00",Yes
"Housing, Communities & Local Government",MHCLG,05/04/2018,Current (non AEF) Grants to Local Authorities,Local Government & Public Services,CHESTERFIELD BC,,,,232102301,5000398215,,Supporting Small Business,S40 1LP,"9,634.00",Yes
"Housing, Communities & Local Government",MHCLG,05/04/2018,Current (non AEF) Grants to Local Authorities,Local Government & Public Services,CHESTERFIELD BC,,,,232102301,5000398218,,Support for Public Houses,S40 1LP,"37,005.00",Yes
"Housing, Communities & Local Government",MHCLG,05/04/2018,Current (non AEF) Grants to Local Authorities,Local Government & Public Services,CHICHESTER DC,,,,739800998,5000398169,,SBRR Threshold Changes Grant,PO19 1TY,"451,442.00",Yes
"Housing, Communities & Local Government",MHCLG,05/04/2018,Current (non AEF) Grants to Local Authorities,Local Government & Public Services,CHICHESTER DC,,,,739800998,5000398170,,Support for Public Houses,PO19 1TY,"48,315.00",Yes
"Housing, Communities & Local Government",MHCLG,05/04/2018,Current (non AEF) Grants to Local Authorities,Local Government & Public Services,CHICHESTER DC,,,,739800998,5000398172,,Supporting Small Business,PO19 1TY,"22,522.00",Yes
"Housing, Communities & Local Government",MHCLG,05/04/2018,Current (non AEF) Grants to Local Authorities,Local Government & Public Services,CHILTERN DC (HSG),,,,,5000398174,,SBRR Threshold Changes Grant,HP6 5AW,"276,807.00",Yes
"Housing, Communities & Local Government",MHCLG,05/04/2018,Current (non AEF) Grants to Local Authorities,Local Government & Public Services,CHILTERN DC (HSG),,,,,5000398176,,Supporting Small Business,HP6 5AW,"10,161.00",Yes
"Housing, Communities & Local Government",MHCLG,05/04/2018,Current (non AEF) Grants to Local Authorities,Local Government & Public Services,CHILTERN DC (HSG),,,,,5000398178,,Support for Public Houses,HP6 5AW,"22,172.00",Yes
"Housing, Communities & Local Government",MHCLG,05/04/2018,Current (non AEF) Grants to Local Authorities,Local Government & Public Services,CHORLEY BOROUGH COUNCIL,,,,236415576,5000398219,,SBRR Threshold Changes Grant,PR7 1DP,"257,371.00",Yes
"Housing, Communities & Local Government",MHCLG,05/04/2018,Current (non AEF) Grants to Local Authorities,Local Government & Public Services,CHORLEY BOROUGH COUNCIL,,,,236415576,5000398221,,Support for Public Houses,PR7 1DP,"28,932.00",Yes
"Housing, Communities & Local Government",MHCLG,05/04/2018,Current (non AEF) Grants to Local Authorities,Local Government & Public Services,CHORLEY BOROUGH COUNCIL,,,,236415576,5000398223,,Supporting Small Business,PR7 1DP,"14,428.00",Yes
"Housing, Communities & Local Government",MHCLG,05/04/2018,Current (non AEF) Grants to Local Authorities,Local Government & Public Services,CHRISTCHURCH BC (HSG),,,,227415213,5000398180,,Supporting Small Business,BH23 1AZ,"1,544.00",Yes
"Housing, Communities & Local Government",MHCLG,05/04/2018,Current (non AEF) Grants to Local Authorities,Local Government & Public Services,CHRISTCHURCH BC (HSG),,,,227415213,5000398182,,Support for Public Houses,BH23 1AZ,"8,348.00",Yes
"Housing, Communities & Local Government",MHCLG,05/04/2018,Current (non AEF) Grants to Local Authorities,Local Government & Public Services,CHRISTCHURCH BC (HSG),,,,227415213,5000398184,,SBRR Threshold Changes Grant,BH23 1AZ,"185,980.00",Yes
"Housing, Communities & Local Government",MHCLG,05/04/2018,Current (non AEF) Grants to Local Authorities,Local Government & Public Services,CITY OF LINCOLN COUNCIL,,,,,5000398513,,SBRR Threshold Changes Grant,LN1 1DB,"295,038.00",Yes
"Housing, Communities & Local Government",MHCLG,05/04/2018,Current (non AEF) Grants to Local Authorities,Local Government & Public Services,CITY OF LINCOLN COUNCIL,,,,,5000398515,,Supporting Small Business,LN1 1DB,"3,076.00",Yes
"Housing, Communities & Local Government",MHCLG,05/04/2018,Current (non AEF) Grants to Local Authorities,Local Government & Public Services,CITY OF LINCOLN COUNCIL,,,,,5000398517,,Support for Public Houses,LN1 1DB,"25,883.00",Yes
"Housing, Communities & Local Government",MHCLG,05/04/2018,Current (non AEF) Grants to Local Authorities,Local Government & Public Services,CITY OF LONDON (HSG),,,,217471460,5000398186,,SBRR Threshold Changes Grant,EC2P 2EJ,"78,939.00",Yes
"Housing, Communities & Local Government",MHCLG,05/04/2018,Current (non AEF) Grants to Local Authorities,Local Government & Public Services,CITY OF LONDON (HSG),,,,217471460,5000398188,,Supporting Small Business,EC2P 2EJ,"20,573.00",Yes
"Housing, Communities & Local Government",MHCLG,05/04/2018,Current (non AEF) Grants to Local Authorities,Local Government & Public Services,CITY OF LONDON (HSG),,,,217471460,5000398189,,Support for Public Houses,EC2P 2EJ,"40,321.00",Yes
"Housing, Communities & Local Government",MHCLG,05/04/2018,Current (non AEF) Grants to Local Authorities,Local Government & Public Services,CITY OF SUNDERLAND (HSG),,,,215599312,5000398192,,SBRR Threshold Changes Grant,SR2 7DN,"603,012.00",Yes
"Housing, Communities & Local Government",MHCLG,05/04/2018,Current (non AEF) Grants to Local Authorities,Local Government & Public Services,CITY OF SUNDERLAND (HSG),,,,215599312,5000398194,,Supporting Small Business,SR2 7DN,"19,959.00",Yes
"Housing, Communities & Local Government",MHCLG,05/04/2018,Current (non AEF) Grants to Local Authorities,Local Government & Public Services,CITY OF SUNDERLAND (HSG),,,,215599312,5000398196,,Support for Public Houses,SR2 7DN,"50,751.00",Yes
"Housing, Communities & Local Government",MHCLG,05/04/2018,Current (non AEF) Grants to Local Authorities,Local Government & Public Services,CITY OF WAKEFIELD MDC,,,,,5000398921,,SBRR Threshold Changes Grant,WF1 2QW,"1,017,108.00",Yes
"Housing, Communities & Local Government",MHCLG,05/04/2018,Current (non AEF) Grants to Local Authorities,Local Government & Public Services,CITY OF WAKEFIELD MDC,,,,,5000398923,,Supporting Small Business,WF1 2QW,"36,949.00",Yes
"Housing, Communities & Local Government",MHCLG,05/04/2018,Current (non AEF) Grants to Local Authorities,Local Government & Public Services,CITY OF WAKEFIELD MDC,,,,,5000398925,,Support for Public Houses,WF1 2QW,"62,823.00",Yes
"Housing, Communities & Local Government",MHCLG,05/04/2018,Current (non AEF) Grants to Local Authorities,Local Government & Public Services,COLCHESTER BC,,,,,5000398225,,Supporting Small Business,CO3 3WG,"15,225.00",Yes
"Housing, Communities & Local Government",MHCLG,05/04/2018,Current (non AEF) Grants to Local Authorities,Local Government & Public Services,COLCHESTER BC,,,,,5000398227,,Support for Public Houses,CO3 3WG,"35,526.00",Yes
"Housing, Communities & Local Government",MHCLG,05/04/2018,Current (non AEF) Grants to Local Authorities,Local Government & Public Services,COLCHESTER BC,,,,,5000398229,,SBRR Threshold Changes Grant,CO3 3WG,"595,182.00",Yes
"Housing, Communities & Local Government",MHCLG,05/04/2018,Current (non AEF) Grants to Local Authorities,Local Government & Public Services,COPELAND BC,,,,236414827,5000398198,,SBRR Threshold Changes Grant,CA28 7NY,"138,794.00",Yes
"Housing, Communities & Local Government",MHCLG,05/04/2018,Current (non AEF) Grants to Local Authorities,Local Government & Public Services,COPELAND BC,,,,236414827,5000398200,,Supporting Small Business,CA28 7NY,"7,845.00",Yes
"Housing, Communities & Local Government",MHCLG,05/04/2018,Current (non AEF) Grants to Local Authorities,Local Government & Public Services,COPELAND BC,,,,236414827,5000398202,,Support for Public Houses,CA28 7NY,"34,003.00",Yes
"Housing, Communities & Local Government",MHCLG,05/04/2018,Current (non AEF) Grants to Local Authorities,Local Government & Public Services,CORBY BC,,,,,5000398204,,Supporting Small Business,NN17 1GD,"2,821.00",Yes
"Housing, Communities & Local Government",MHCLG,05/04/2018,Current (non AEF) Grants to Local Authorities,Local Government & Public Services,CORBY BC,,,,,5000398206,,Support for Public Houses,NN17 1GD,"3,427.00",Yes
"Housing, Communities & Local Government",MHCLG,05/04/2018,Current (non AEF) Grants to Local Authorities,Local Government & Public Services,CORBY BC,,,,,5000398208,,SBRR Threshold Changes Grant,NN17 1GD,"164,013.00",Yes
"Housing, Communities & Local Government",MHCLG,05/04/2018,Current (non AEF) Grants to Local Authorities,Local Government & Public Services,CORNWALL UNITARY AUTHORITY,,,,211334404,5000399020,,Supporting Small Business,TR1 3AY,"197,929.00",Yes
"Housing, Communities & Local Government",MHCLG,05/04/2018,Current (non AEF) Grants to Local Authorities,Local Government & Public Services,CORNWALL UNITARY AUTHORITY,,,,211334404,5000399021,,Support for Public Houses,TR1 3AY,"233,455.00",Yes
"Housing, Communities & Local Government",MHCLG,05/04/2018,Current (non AEF) Grants to Local Authorities,Local Government & Public Services,CORNWALL UNITARY AUTHORITY,,,,211334404,5000399022,,SBRR Threshold Changes Grant,TR1 3AY,"4,821,185.00",Yes
"Housing, Communities & Local Government",MHCLG,05/04/2018,Current (non AEF) Grants to Local Authorities,Local Government & Public Services,COTSWOLD DC,,,,232462085,5000398210,,SBRR Threshold Changes Grant,GL7 1PX,"163,442.00",Yes
"Housing, Communities & Local Government",MHCLG,05/04/2018,Current (non AEF) Grants to Local Authorities,Local Government & Public Services,COTSWOLD DC,,,,232462085,5000398212,,Support for Public Houses,GL7 1PX,"50,979.00",Yes
"Housing, Communities & Local Government",MHCLG,05/04/2018,Current (non AEF) Grants to Local Authorities,Local Government & Public Services,COTSWOLD DC,,,,232462085,5000398214,,Supporting Small Business,GL7 1PX,"19,666.00",Yes
"Housing, Communities & Local Government",MHCLG,05/04/2018,Current (non AEF) Grants to Local Authorities,Local Government & Public Services,COVENTRY CITY CNCL,,,,210384802,5000398231,,SBRR Threshold Changes Grant,CV1 2QL,"1,475,227.00",Yes
"Housing, Communities & Local Government",MHCLG,05/04/2018,Current (non AEF) Grants to Local Authorities,Local Government & Public Services,COVENTRY CITY CNCL,,,,210384802,5000398233,,Supporting Small Business,CV1 2QL,"57,394.00",Yes
"Housing, Communities & Local Government",MHCLG,05/04/2018,Current (non AEF) Grants to Local Authorities,Local Government & Public Services,COVENTRY CITY CNCL,,,,210384802,5000398235,,Support for Public Houses,CV1 2QL,"95,651.00",Yes
"Housing, Communities & Local Government",MHCLG,05/04/2018,Current (non AEF) Grants to Local Authorities,Local Government & Public Services,CRAVEN DC (HSG),,,,,5000398216,,Supporting Small Business,BD23 1FJ,"10,430.00",Yes
"Housing, Communities & Local Government",MHCLG,05/04/2018,Current (non AEF) Grants to Local Authorities,Local Government & Public Services,CRAVEN DC (HSG),,,,,5000398217,,Support for Public Houses,BD23 1FJ,"28,671.00",Yes
"Housing, Communities & Local Government",MHCLG,05/04/2018,Current (non AEF) Grants to Local Authorities,Local Government & Public Services,CRAVEN DC (HSG),,,,,5000398220,,SBRR Threshold Changes Grant,BD23 1FJ,"246,795.00",Yes
"Housing, Communities & Local Government",MHCLG,05/04/2018,Current (non AEF) Grants to Local Authorities,Local Government & Public Services,CRAWLEY BC,,,,211222500,5000398222,,SBRR Threshold Changes Grant,RH10 1UZ,"216,147.00",Yes
"Housing, Communities & Local Government",MHCLG,05/04/2018,Current (non AEF) Grants to Local Authorities,Local Government & Public Services,CRAWLEY BC,,,,211222500,5000398224,,Supporting Small Business,RH10 1UZ,"8,605.00",Yes
"Housing, Communities & Local Government",MHCLG,05/04/2018,Current (non AEF) Grants to Local Authorities,Local Government & Public Services,CRAWLEY BC,,,,211222500,5000398226,,Support for Public Houses,RH10 1UZ,"12,633.00",Yes
"Housing, Communities & Local Government",MHCLG,05/04/2018,Current (non AEF) Grants to Local Authorities,Local Government & Public Services,CROYDON LB,,,,212419973,5000398237,,SBRR Threshold Changes Grant,CR0 1EA,"1,173,914.00",Yes
"Housing, Communities & Local Government",MHCLG,05/04/2018,Current (non AEF) Grants to Local Authorities,Local Government & Public Services,CROYDON LB,,,,212419973,5000398239,,Supporting Small Business,CR0 1EA,"239,997.00",Yes
"Housing, Communities & Local Government",MHCLG,05/04/2018,Current (non AEF) Grants to Local Authorities,Local Government & Public Services,CROYDON LB,,,,212419973,5000398241,,Support for Public Houses,CR0 1EA,"37,910.00",Yes
"Housing, Communities & Local Government",MHCLG,05/04/2018,Current (non AEF) Grants to Local Authorities,Local Government & Public Services,DACORUM BC,,,,236448643,5000398243,,Supporting Small Business,HP1 1DN,"12,309.00",Yes
"Housing, Communities & Local Government",MHCLG,05/04/2018,Current (non AEF) Grants to Local Authorities,Local Government & Public Services,DACORUM BC,,,,236448643,5000398245,,Support for Public Houses,HP1 1DN,"25,109.00",Yes
"Housing, Communities & Local Government",MHCLG,05/04/2018,Current (non AEF) Grants to Local Authorities,Local Government & Public Services,DACORUM BC,,,,236448643,5000398247,,SBRR Threshold Changes Grant,HP1 1DN,"374,039.00",Yes
"Housing, Communities & Local Government",MHCLG,05/04/2018,Current (non AEF) Grants to Local Authorities,Local Government & Public Services,DARLINGTON BC,,,,,5000398249,,SBRR Threshold Changes Grant,TS19 1JA,"289,642.00",Yes
"Housing, Communities & Local Government",MHCLG,05/04/2018,Current (non AEF) Grants to Local Authorities,Local Government & Public Services,DARLINGTON BC,,,,,5000398251,,Supporting Small Business,TS19 1JA,"10,584.00",Yes
"Housing, Communities & Local Government",MHCLG,05/04/2018,Current (non AEF) Grants to Local Authorities,Local Government & Public Services,DARLINGTON BC,,,,,5000398253,,Support for Public Houses,TS19 1JA,"23,208.00",Yes
"Housing, Communities & Local Government",MHCLG,05/04/2018,Current (non AEF) Grants to Local Authorities,Local Government & Public Services,DARTFORD BC,,,,225694942,5000398228,,SBRR Threshold Changes Grant,DA1 1DR,"285,826.00",Yes
"Housing, Communities & Local Government",MHCLG,05/04/2018,Current (non AEF) Grants to Local Authorities,Local Government & Public Services,DARTFORD BC,,,,225694942,5000398230,,Supporting Small Business,DA1 1DR,"3,324.00",Yes
"Housing, Communities & Local Government",MHCLG,05/04/2018,Current (non AEF) Grants to Local Authorities,Local Government & Public Services,DARTFORD BC,,,,225694942,5000398232,,Support for Public Houses,DA1 1DR,"22,057.00",Yes
"Housing, Communities & Local Government",MHCLG,05/04/2018,Current (non AEF) Grants to Local Authorities,Local Government & Public Services,DAVENTRY DC,,,,239859333,5000398234,,SBRR Threshold Changes Grant,NN11 5AF,"229,089.00",Yes
"Housing, Communities & Local Government",MHCLG,05/04/2018,Current (non AEF) Grants to Local Authorities,Local Government & Public Services,DAVENTRY DC,,,,239859333,5000398236,,Supporting Small Business,NN11 5AF,"8,206.00",Yes
"Housing, Communities & Local Government",MHCLG,05/04/2018,Current (non AEF) Grants to Local Authorities,Local Government & Public Services,DAVENTRY DC,,,,239859333,5000398238,,Support for Public Houses,NN11 5AF,"19,435.00",Yes
"Housing, Communities & Local Government",MHCLG,05/04/2018,Current (non AEF) Grants to Local Authorities,Local Government & Public Services,DERBY CITY CNCL,,,,229641378,5000398255,,SBRR Threshold Changes Grant,DE1 2FS,"561,471.00",Yes
"Housing, Communities & Local Government",MHCLG,05/04/2018,Current (non AEF) Grants to Local Authorities,Local Government & Public Services,DERBY CITY CNCL,,,,229641378,5000398257,,Supporting Small Business,DE1 2FS,"47,420.00",Yes
"Housing, Communities & Local Government",MHCLG,05/04/2018,Current (non AEF) Grants to Local Authorities,Local Government & Public Services,DERBY CITY CNCL,,,,229641378,5000398259,,Support for Public Houses,DE1 2FS,"50,819.00",Yes
"Housing, Communities & Local Government",MHCLG,05/04/2018,Current (non AEF) Grants to Local Authorities,Local Government & Public Services,DERBYSHIRE DALES DC,,,,,5000398240,,SBRR Threshold Changes Grant,DE4 3NN,"303,913.00",Yes
"Housing, Communities & Local Government",MHCLG,05/04/2018,Current (non AEF) Grants to Local Authorities,Local Government & Public Services,DERBYSHIRE DALES DC,,,,,5000398242,,Supporting Small Business,DE4 3NN,"43,697.00",Yes
"Housing, Communities & Local Government",MHCLG,05/04/2018,Current (non AEF) Grants to Local Authorities,Local Government & Public Services,DERBYSHIRE DALES DC,,,,,5000398244,,Support for Public Houses,DE4 3NN,"41,842.00",Yes
"Housing, Communities & Local Government",MHCLG,05/04/2018,Current (non AEF) Grants to Local Authorities,Local Government & Public Services,DONCASTER MBC,,,,,5000398261,,SBRR Threshold Changes Grant,DN1 3QA,"657,943.00",Yes
"Housing, Communities & Local Government",MHCLG,05/04/2018,Current (non AEF) Grants to Local Authorities,Local Government & Public Services,DONCASTER MBC,,,,,5000398263,,Supporting Small Business,DN1 3QA,"22,454.00",Yes
"Housing, Communities & Local Government",MHCLG,05/04/2018,Current (non AEF) Grants to Local Authorities,Local Government & Public Services,DONCASTER MBC,,,,,5000398265,,Support for Public Houses,DN1 3QA,"44,590.00",Yes
"Housing, Communities & Local Government",MHCLG,05/04/2018,Current (non AEF) Grants to Local Authorities,Local Government & Public Services,DOVER DC,,,,,5000398246,,SBRR Threshold Changes Grant,CT16 3PD,"361,069.00",Yes
"Housing, Communities & Local Government",MHCLG,05/04/2018,Current (non AEF) Grants to Local Authorities,Local Government & Public Services,DOVER DC,,,,,5000398248,,Supporting Small Business,CT16 3PD,"19,067.00",Yes
"Housing, Communities & Local Government",MHCLG,05/04/2018,Current (non AEF) Grants to Local Authorities,Local Government & Public Services,DOVER DC,,,,,5000398250,,Support for Public Houses,CT16 3PD,"23,781.00",Yes
"Housing, Communities & Local Government",MHCLG,05/04/2018,Current (non AEF) Grants to Local Authorities,Local Government & Public Services,DUDLEY MBC,,,,,5000398267,,SBRR Threshold Changes Grant,DY1 1HF,"1,663,683.00",Yes
"Housing, Communities & Local Government",MHCLG,05/04/2018,Current (non AEF) Grants to Local Authorities,Local Government & Public Services,DUDLEY MBC,,,,,5000398269,,Supporting Small Business,DY1 1HF,"23,498.00",Yes
"Housing, Communities & Local Government",MHCLG,05/04/2018,Current (non AEF) Grants to Local Authorities,Local Government & Public Services,DUDLEY MBC,,,,,5000398271,,Support for Public Houses,DY1 1HF,"72,363.00",Yes
"Housing, Communities & Local Government",MHCLG,05/04/2018,Current (non AEF) Grants to Local Authorities,Local Government & Public Services,DURHAM COUNTY COUNCIL,,,,224004882,5000399023,,SBRR Threshold Changes Grant,DH1 5UE,"1,097,595.00",Yes
"Housing, Communities & Local Government",MHCLG,05/04/2018,Current (non AEF) Grants to Local Authorities,Local Government & Public Services,DURHAM COUNTY COUNCIL,,,,224004882,5000399024,,Supporting Small Business,DH1 5UE,"42,126.00",Yes
"Housing, Communities & Local Government",MHCLG,05/04/2018,Current (non AEF) Grants to Local Authorities,Local Government & Public Services,DURHAM COUNTY COUNCIL,,,,224004882,5000399025,,Support for Public Houses,DH1 5UE,"97,442.00",Yes
"Housing, Communities & Local Government",MHCLG,05/04/2018,Current (non AEF) Grants to Local Authorities,Local Government & Public Services,EALING LB,,,,,5000398273,,Supporting Small Business,W5 2HL,"148,254.00",Yes
"Housing, Communities & Local Government",MHCLG,05/04/2018,Current (non AEF) Grants to Local Authorities,Local Government & Public Services,EALING LB,,,,,5000398275,,Support for Public Houses,W5 2HL,"34,003.00",Yes
"Housing, Communities & Local Government",MHCLG,05/04/2018,Current (non AEF) Grants to Local Authorities,Local Government & Public Services,EALING LB,,,,,5000398277,,SBRR Threshold Changes Grant,W5 2HL,"1,410,983.00",Yes
"Housing, Communities & Local Government",MHCLG,05/04/2018,Current (non AEF) Grants to Local Authorities,Local Government & Public Services,EAST CAMBRIDGESHIRE DC,,,,236472023,5000398252,,SBRR Threshold Changes Grant,CB7 4PL,"256,590.00",Yes
"Housing, Communities & Local Government",MHCLG,05/04/2018,Current (non AEF) Grants to Local Authorities,Local Government & Public Services,EAST CAMBRIDGESHIRE DC,,,,236472023,5000398254,,Supporting Small Business,CB7 4PL,"19,872.00",Yes
"Housing, Communities & Local Government",MHCLG,05/04/2018,Current (non AEF) Grants to Local Authorities,Local Government & Public Services,EAST CAMBRIDGESHIRE DC,,,,236472023,5000398256,,Support for Public Houses,CB7 4PL,"17,538.00",Yes
"Housing, Communities & Local Government",MHCLG,05/04/2018,Current (non AEF) Grants to Local Authorities,Local Government & Public Services,EAST DEVON DC,,,,,5000398258,,SBRR Threshold Changes Grant,EX10 8HL,"536,844.00",Yes
"Housing, Communities & Local Government",MHCLG,05/04/2018,Current (non AEF) Grants to Local Authorities,Local Government & Public Services,EAST DORSET DC,,,,228470456,5000398279,,SBRR Threshold Changes Grant,BH21 4HN,"335,372.00",Yes
"Housing, Communities & Local Government",MHCLG,05/04/2018,Current (non AEF) Grants to Local Authorities,Local Government & Public Services,EAST DORSET DC,,,,228470456,5000398281,,Supporting Small Business,BH21 4HN,"11,975.00",Yes
"Housing, Communities & Local Government",MHCLG,05/04/2018,Current (non AEF) Grants to Local Authorities,Local Government & Public Services,EAST DORSET DC,,,,228470456,5000398283,,Support for Public Houses,BH21 4HN,"21,272.00",Yes
"Housing, Communities & Local Government",MHCLG,05/04/2018,Current (non AEF) Grants to Local Authorities,Local Government & Public Services,EAST HAMPSHIRE DC,,,,,5000398260,,Supporting Small Business,GU31 4EX,"27,913.00",Yes
"Housing, Communities & Local Government",MHCLG,05/04/2018,Current (non AEF) Grants to Local Authorities,Local Government & Public Services,EAST HAMPSHIRE DC,,,,,5000398262,,Support for Public Houses,GU31 4EX,"34,511.00",Yes
"Housing, Communities & Local Government",MHCLG,05/04/2018,Current (non AEF) Grants to Local Authorities,Local Government & Public Services,EAST HAMPSHIRE DC,,,,,5000398264,,SBRR Threshold Changes Grant,GU31 4EX,"386,092.00",Yes
"Housing, Communities & Local Government",MHCLG,05/04/2018,Current (non AEF) Grants to Local Authorities,Local Government & Public Services,EAST HERTFORDSHIRE DC,,,,236176954,5000398266,,SBRR Threshold Changes Grant,SG13 8EQ,"514,787.00",Yes
"Housing, Communities & Local Government",MHCLG,05/04/2018,Current (non AEF) Grants to Local Authorities,Local Government & Public Services,EAST HERTFORDSHIRE DC,,,,236176954,5000398268,,Supporting Small Business,SG13 8EQ,"15,225.00",Yes
"Housing, Communities & Local Government",MHCLG,05/04/2018,Current (non AEF) Grants to Local Authorities,Local Government & Public Services,EAST HERTFORDSHIRE DC,,,,236176954,5000398270,,Support for Public Houses,SG13 8EQ,"30,451.00",Yes
"Housing, Communities & Local Government",MHCLG,05/04/2018,Current (non AEF) Grants to Local Authorities,Local Government & Public Services,EAST LINDSEY DC,,,,,5000398272,,Support for Public Houses,LN11 8UP,"53,040.00",Yes
"Housing, Communities & Local Government",MHCLG,05/04/2018,Current (non AEF) Grants to Local Authorities,Local Government & Public Services,EAST LINDSEY DC,,,,,5000398274,,Supporting Small Business,LN11 8UP,"39,911.00",Yes
"Housing, Communities & Local Government",MHCLG,05/04/2018,Current (non AEF) Grants to Local Authorities,Local Government & Public Services,EAST LINDSEY DC,,,,,5000398276,,SBRR Threshold Changes Grant,LN11 8UP,"495,994.00",Yes
"Housing, Communities & Local Government",MHCLG,05/04/2018,Current (non AEF) Grants to Local Authorities,Local Government & Public Services,EAST NORTHAMPTONSHIRE COUNCIL,,,,227475290,5000398278,,SBRR Threshold Changes Grant,NN14 4LZ,"219,774.00",Yes
"Housing, Communities & Local Government",MHCLG,05/04/2018,Current (non AEF) Grants to Local Authorities,Local Government & Public Services,EAST NORTHAMPTONSHIRE COUNCIL,,,,227475290,5000398280,,Supporting Small Business,NN14 4LZ,"4,858.00",Yes
"Housing, Communities & Local Government",MHCLG,05/04/2018,Current (non AEF) Grants to Local Authorities,Local Government & Public Services,EAST NORTHAMPTONSHIRE COUNCIL,,,,227475290,5000398282,,Support for Public Houses,NN14 4LZ,"21,199.00",Yes
"Housing, Communities & Local Government",MHCLG,05/04/2018,Current (non AEF) Grants to Local Authorities,Local Government & Public Services,EAST RIDING OF YORKS (HSG),,,,423159987,5000398284,,Supporting Small Business,HU17 9BA,"70,401.00",Yes
"Housing, Communities & Local Government",MHCLG,05/04/2018,Current (non AEF) Grants to Local Authorities,Local Government & Public Services,EAST RIDING OF YORKS (HSG),,,,423159987,5000398286,,Support for Public Houses,HU17 9BA,"81,579.00",Yes
"Housing, Communities & Local Government",MHCLG,05/04/2018,Current (non AEF) Grants to Local Authorities,Local Government & Public Services,EAST RIDING OF YORKS (HSG),,,,423159987,5000398288,,SBRR Threshold Changes Grant,HU17 9BA,"1,064,069.00",Yes
"Housing, Communities & Local Government",MHCLG,05/04/2018,Current (non AEF) Grants to Local Authorities,Local Government & Public Services,EAST STAFFORDSHIRE BC,,,,226778033,5000398290,,SBRR Threshold Changes Grant,DE14 2EB,"363,971.00",Yes
"Housing, Communities & Local Government",MHCLG,05/04/2018,Current (non AEF) Grants to Local Authorities,Local Government & Public Services,EAST STAFFORDSHIRE BC,,,,226778033,5000398292,,Supporting Small Business,DE14 2EB,"25,258.00",Yes
"Housing, Communities & Local Government",MHCLG,05/04/2018,Current (non AEF) Grants to Local Authorities,Local Government & Public Services,EAST STAFFORDSHIRE BC,,,,226778033,5000398293,,Support for Public Houses,DE14 2EB,"13,930.00",Yes
"Housing, Communities & Local Government",MHCLG,05/04/2018,Current (non AEF) Grants to Local Authorities,Local Government & Public Services,EASTBOURNE BC,,,,229896428,5000398285,,SBRR Threshold Changes Grant,BN21 4TW,"309,305.00",Yes
"Housing, Communities & Local Government",MHCLG,05/04/2018,Current (non AEF) Grants to Local Authorities,Local Government & Public Services,EASTBOURNE BC,,,,229896428,5000398287,,Supporting Small Business,BN21 4TW,"26,398.00",Yes
"Housing, Communities & Local Government",MHCLG,05/04/2018,Current (non AEF) Grants to Local Authorities,Local Government & Public Services,EASTBOURNE BC,,,,229896428,5000398289,,Support for Public Houses,BN21 4TW,"13,970.00",Yes
"Housing, Communities & Local Government",MHCLG,05/04/2018,Current (non AEF) Grants to Local Authorities,Local Government & Public Services,EASTLEIGH BOROUGH COUNCIL,,,,232669911,5000398291,,SBRR Threshold Changes Grant,SO5 9YN,"330,200.00",Yes
"Housing, Communities & Local Government",MHCLG,05/04/2018,Current (non AEF) Grants to Local Authorities,Local Government & Public Services,EDEN DC (HSG),,,,,5000398295,,SBRR Threshold Changes Grant,CA11 7QF,"243,566.00",Yes
"Housing, Communities & Local Government",MHCLG,05/04/2018,Current (non AEF) Grants to Local Authorities,Local Government & Public Services,EDEN DC (HSG),,,,,5000398297,,Supporting Small Business,CA11 7QF,"12,688.00",Yes
"Housing, Communities & Local Government",MHCLG,05/04/2018,Current (non AEF) Grants to Local Authorities,Local Government & Public Services,EDEN DC (HSG),,,,,5000398299,,Support for Public Houses,CA11 7QF,"30,958.00",Yes
"Housing, Communities & Local Government",MHCLG,05/04/2018,Current (non AEF) Grants to Local Authorities,Local Government & Public Services,ELMBRIDGE BC (HSG),,,,,5000398301,,Supporting Small Business,KT10 9SD,"48,278.00",Yes
"Housing, Communities & Local Government",MHCLG,05/04/2018,Current (non AEF) Grants to Local Authorities,Local Government & Public Services,ELMBRIDGE BC (HSG),,,,,5000398303,,Support for Public Houses,KT10 9SD,"17,763.00",Yes
"Housing, Communities & Local Government",MHCLG,05/04/2018,Current (non AEF) Grants to Local Authorities,Local Government & Public Services,ELMBRIDGE BC (HSG),,,,,5000398305,,SBRR Threshold Changes Grant,KT10 9SD,"362,304.00",Yes
"Housing, Communities & Local Government",MHCLG,05/04/2018,Current (non AEF) Grants to Local Authorities,Local Government & Public Services,ENFIELD LB,,,,,5000398294,,SBRR Threshold Changes Grant,EN1 3XF,"1,144,603.00",Yes
"Housing, Communities & Local Government",MHCLG,05/04/2018,Current (non AEF) Grants to Local Authorities,Local Government & Public Services,ENFIELD LB,,,,,5000398296,,Supporting Small Business,EN1 3XF,"33,851.00",Yes
"Housing, Communities & Local Government",MHCLG,05/04/2018,Current (non AEF) Grants to Local Authorities,Local Government & Public Services,ENFIELD LB,,,,,5000398298,,Support for Public Houses,EN1 3XF,"28,183.00",Yes
"Housing, Communities & Local Government",MHCLG,05/04/2018,Current (non AEF) Grants to Local Authorities,Local Government & Public Services,EPPING FOREST DC,,,,775876360,5000398300,,SBRR Threshold Changes Grant,CM16 4BZ,"493,482.00",Yes
"Housing, Communities & Local Government",MHCLG,05/04/2018,Current (non AEF) Grants to Local Authorities,Local Government & Public Services,EPPING FOREST DC,,,,775876360,5000398302,,Supporting Small Business,CM16 4BZ,"15,458.00",Yes
"Housing, Communities & Local Government",MHCLG,05/04/2018,Current (non AEF) Grants to Local Authorities,Local Government & Public Services,EPPING FOREST DC,,,,775876360,5000398304,,Support for Public Houses,CM16 4BZ,"27,913.00",Yes
"Housing, Communities & Local Government",MHCLG,05/04/2018,Current (non AEF) Grants to Local Authorities,Local Government & Public Services,EPSOM & EWELL BC,,,,225423094,5000398306,,Support for Public Houses,KT18 5BY,"7,186.00",Yes
"Housing, Communities & Local Government",MHCLG,05/04/2018,Current (non AEF) Grants to Local Authorities,Local Government & Public Services,EPSOM & EWELL BC,,,,225423094,5000398307,,Supporting Small Business,KT18 5BY,"9,578.00",Yes
"Housing, Communities & Local Government",MHCLG,05/04/2018,Current (non AEF) Grants to Local Authorities,Local Government & Public Services,EPSOM & EWELL BC,,,,225423094,5000398309,,SBRR Threshold Changes Grant,KT18 5BY,"194,693.00",Yes
"Housing, Communities & Local Government",MHCLG,05/04/2018,Current (non AEF) Grants to Local Authorities,Local Government & Public Services,EREWASH BC,,,,211209762,5000398312,,Supporting Small Business,DE7 5RP,"11,589.00",Yes
"Housing, Communities & Local Government",MHCLG,05/04/2018,Current (non AEF) Grants to Local Authorities,Local Government & Public Services,EREWASH BC,,,,211209762,5000398313,,Support for Public Houses,DE7 5RP,"21,784.00",Yes
"Housing, Communities & Local Government",MHCLG,05/04/2018,Current (non AEF) Grants to Local Authorities,Local Government & Public Services,EREWASH BC,,,,211209762,5000398315,,SBRR Threshold Changes Grant,DE7 5RP,"400,773.00",Yes
"Housing, Communities & Local Government",MHCLG,05/04/2018,Current (non AEF) Grants to Local Authorities,Local Government & Public Services,EXETER CITY COUNCIL,,,,,5000398318,,SBRR Threshold Changes Grant,EX1 1JW,"372,225.00",Yes
"Housing, Communities & Local Government",MHCLG,05/04/2018,Current (non AEF) Grants to Local Authorities,Local Government & Public Services,EXETER CITY COUNCIL,,,,,5000398320,,Supporting Small Business,EX1 1JW,"10,798.00",Yes
"Housing, Communities & Local Government",MHCLG,05/04/2018,Current (non AEF) Grants to Local Authorities,Local Government & Public Services,EXETER CITY COUNCIL,,,,,5000398321,,Support for Public Houses,EX1 1JW,"27,913.00",Yes
"Housing, Communities & Local Government",MHCLG,05/04/2018,Current (non AEF) Grants to Local Authorities,Local Government & Public Services,FAREHAM BC,,,,228474144,5000398308,,Supporting Small Business,PO16 7PU,"5,235.00",Yes
"Housing, Communities & Local Government",MHCLG,05/04/2018,Current (non AEF) Grants to Local Authorities,Local Government & Public Services,FAREHAM BC,,,,228474144,5000398310,,Support for Public Houses,PO16 7PU,"18,270.00",Yes
"Housing, Communities & Local Government",MHCLG,05/04/2018,Current (non AEF) Grants to Local Authorities,Local Government & Public Services,FAREHAM BC,,,,228474144,5000398311,,SBRR Threshold Changes Grant,PO16 7PU,"332,636.00",Yes
"Housing, Communities & Local Government",MHCLG,05/04/2018,Current (non AEF) Grants to Local Authorities,Local Government & Public Services,FENLAND DC,,,,227476348,5000398314,,SBRR Threshold Changes Grant,PE15 8NQ,"296,841.00",Yes
"Housing, Communities & Local Government",MHCLG,05/04/2018,Current (non AEF) Grants to Local Authorities,Local Government & Public Services,FENLAND DC,,,,227476348,5000398316,,Supporting Small Business,PE15 8NQ,"12,423.00",Yes
"Housing, Communities & Local Government",MHCLG,05/04/2018,Current (non AEF) Grants to Local Authorities,Local Government & Public Services,FENLAND DC,,,,227476348,5000398317,,Support for Public Houses,PE15 8NQ,"11,165.00",Yes
"Housing, Communities & Local Government",MHCLG,05/04/2018,Current (non AEF) Grants to Local Authorities,Local Government & Public Services,FOREST HEATH DISTRICT COUNCIL,,,,236678116,5000398319,,SBRR Threshold Changes Grant,IP28 7EY,"217,705.00",Yes
"Housing, Communities & Local Government",MHCLG,05/04/2018,Current (non AEF) Grants to Local Authorities,Local Government & Public Services,FOREST HEATH DISTRICT COUNCIL,,,,236678116,5000398322,,Supporting Small Business,IP28 7EY,"10,844.00",Yes
"Housing, Communities & Local Government",MHCLG,05/04/2018,Current (non AEF) Grants to Local Authorities,Local Government & Public Services,FOREST HEATH DISTRICT COUNCIL,,,,236678116,5000398324,,Support for Public Houses,IP28 7EY,"12,162.00",Yes
"Housing, Communities & Local Government",MHCLG,05/04/2018,Current (non AEF) Grants to Local Authorities,Local Government & Public Services,FOREST OF DEAN DC,,,,211278890,5000398326,,Supporting Small Business,GL16 8HG,"12,180.00",Yes
"Housing, Communities & Local Government",MHCLG,05/04/2018,Current (non AEF) Grants to Local Authorities,Local Government & Public Services,FOREST OF DEAN DC,,,,211278890,5000398328,,Support for Public Houses,GL16 8HG,"17,763.00",Yes
"Housing, Communities & Local Government",MHCLG,05/04/2018,Current (non AEF) Grants to Local Authorities,Local Government & Public Services,FOREST OF DEAN DC,,,,211278890,5000398329,,SBRR Threshold Changes Grant,GL16 8HG,"195,410.00",Yes
"Housing, Communities & Local Government",MHCLG,05/04/2018,Current (non AEF) Grants to Local Authorities,Local Government & Public Services,FYLDE BC,,,,227479912,5000398323,,SBRR Threshold Changes Grant,FY8 1LW,"270,675.00",Yes
"Housing, Communities & Local Government",MHCLG,05/04/2018,Current (non AEF) Grants to Local Authorities,Local Government & Public Services,FYLDE BC,,,,227479912,5000398325,,Supporting Small Business,FY8 1LW,"4,218.00",Yes
"Housing, Communities & Local Government",MHCLG,05/04/2018,Current (non AEF) Grants to Local Authorities,Local Government & Public Services,FYLDE BC,,,,227479912,5000398327,,Support for Public Houses,FY8 1LW,"5,592.00",Yes
"Housing, Communities & Local Government",MHCLG,05/04/2018,Current (non AEF) Grants to Local Authorities,Local Government & Public Services,GATESHEAD COUNCIL,,,,216116041,5000398330,,SBRR Threshold Changes Grant,NE8 1HH,"532,968.00",Yes
"Housing, Communities & Local Government",MHCLG,05/04/2018,Current (non AEF) Grants to Local Authorities,Local Government & Public Services,GATESHEAD COUNCIL,,,,216116041,5000398332,,Supporting Small Business,NE8 1HH,"26,739.00",Yes
"Housing, Communities & Local Government",MHCLG,05/04/2018,Current (non AEF) Grants to Local Authorities,Local Government & Public Services,GATESHEAD COUNCIL,,,,216116041,5000398334,,Support for Public Houses,NE8 1HH,"34,589.00",Yes
"Housing, Communities & Local Government",MHCLG,05/04/2018,Current (non AEF) Grants to Local Authorities,Local Government & Public Services,GEDLING BC,,,,236180337,5000398336,,SBRR Threshold Changes Grant,NG5 6LU,"236,111.00",Yes
"Housing, Communities & Local Government",MHCLG,05/04/2018,Current (non AEF) Grants to Local Authorities,Local Government & Public Services,GEDLING BC,,,,236180337,5000398338,,Supporting Small Business,NG5 6LU,"9,895.00",Yes
"Housing, Communities & Local Government",MHCLG,05/04/2018,Current (non AEF) Grants to Local Authorities,Local Government & Public Services,GEDLING BC,,,,236180337,5000398340,,Support for Public Houses,NG5 6LU,"17,931.00",Yes
"Housing, Communities & Local Government",MHCLG,05/04/2018,Current (non AEF) Grants to Local Authorities,Local Government & Public Services,GLOUCESTER CITY CNCL,,,,230841392,5000398342,,SBRR Threshold Changes Grant,GL1 2EQ,"318,492.00",Yes
"Housing, Communities & Local Government",MHCLG,05/04/2018,Current (non AEF) Grants to Local Authorities,Local Government & Public Services,GLOUCESTER CITY CNCL,,,,230841392,5000398344,,Supporting Small Business,GL1 2EQ,"4,741.00",Yes
"Housing, Communities & Local Government",MHCLG,05/04/2018,Current (non AEF) Grants to Local Authorities,Local Government & Public Services,GLOUCESTER CITY CNCL,,,,230841392,5000398346,,Support for Public Houses,GL1 2EQ,"19,644.00",Yes
"Housing, Communities & Local Government",MHCLG,05/04/2018,Current (non AEF) Grants to Local Authorities,Local Government & Public Services,GOSPORT BOROUGH COUNCIL,,,,239825078,5000398348,,SBRR Threshold Changes Grant,PO12 1ED,"224,416.00",Yes
"Housing, Communities & Local Government",MHCLG,05/04/2018,Current (non AEF) Grants to Local Authorities,Local Government & Public Services,GOSPORT BOROUGH COUNCIL,,,,239825078,5000398350,,Supporting Small Business,PO12 1ED,"2,538.00",Yes
"Housing, Communities & Local Government",MHCLG,05/04/2018,Current (non AEF) Grants to Local Authorities,Local Government & Public Services,GOSPORT BOROUGH COUNCIL,,,,239825078,5000398352,,Support for Public Houses,PO12 1ED,"12,688.00",Yes
"Housing, Communities & Local Government",MHCLG,05/04/2018,Current (non AEF) Grants to Local Authorities,Local Government & Public Services,GRAVESHAM BC,,,,236178612,5000398354,,Supporting Small Business,DA12 1AU,"15,920.00",Yes
"Housing, Communities & Local Government",MHCLG,05/04/2018,Current (non AEF) Grants to Local Authorities,Local Government & Public Services,GRAVESHAM BC,,,,236178612,5000398356,,Support for Public Houses,DA12 1AU,"22,942.00",Yes
"Housing, Communities & Local Government",MHCLG,05/04/2018,Current (non AEF) Grants to Local Authorities,Local Government & Public Services,GRAVESHAM BC,,,,236178612,5000398358,,SBRR Threshold Changes Grant,DA12 1AU,"259,827.00",Yes
"Housing, Communities & Local Government",MHCLG,05/04/2018,Current (non AEF) Grants to Local Authorities,Local Government & Public Services,GREAT YARMOUTH BC,,,,292697372,5000398360,,SBRR Threshold Changes Grant,NR30 2QG,"300,731.00",Yes
"Housing, Communities & Local Government",MHCLG,05/04/2018,Current (non AEF) Grants to Local Authorities,Local Government & Public Services,GREAT YARMOUTH BC,,,,292697372,5000398362,,Supporting Small Business,NR30 2QG,"12,688.00",Yes
"Housing, Communities & Local Government",MHCLG,05/04/2018,Current (non AEF) Grants to Local Authorities,Local Government & Public Services,GREAT YARMOUTH BC,,,,292697372,5000398364,,Support for Public Houses,NR30 2QG,"30,451.00",Yes
"Housing, Communities & Local Government",MHCLG,05/04/2018,Current (non AEF) Grants to Local Authorities,Local Government & Public Services,GREENWICH LB,,,,,5000398366,,Supporting Small Business,SE18 6HQ,"55,085.00",Yes
"Housing, Communities & Local Government",MHCLG,05/04/2018,Current (non AEF) Grants to Local Authorities,Local Government & Public Services,GREENWICH LB,,,,,5000398368,,Support for Public Houses,SE18 6HQ,"68,006.00",Yes
"Housing, Communities & Local Government",MHCLG,05/04/2018,Current (non AEF) Grants to Local Authorities,Local Government & Public Services,GREENWICH LB,,,,,5000398370,,SBRR Threshold Changes Grant,SE18 6HQ,"699,487.00",Yes
"Housing, Communities & Local Government",MHCLG,05/04/2018,Current (non AEF) Grants to Local Authorities,Local Government & Public Services,GUILDFORD BC,,,,236663720,5000398331,,SBRR Threshold Changes Grant,GU2 5BB,"320,634.00",Yes
"Housing, Communities & Local Government",MHCLG,05/04/2018,Current (non AEF) Grants to Local Authorities,Local Government & Public Services,GUILDFORD BC,,,,236663720,5000398333,,Supporting Small Business,GU2 5BB,"16,695.00",Yes
"Housing, Communities & Local Government",MHCLG,05/04/2018,Current (non AEF) Grants to Local Authorities,Local Government & Public Services,GUILDFORD BC,,,,236663720,5000398335,,Support for Public Houses,GU2 5BB,"32,616.00",Yes
"Housing, Communities & Local Government",MHCLG,05/04/2018,Current (non AEF) Grants to Local Authorities,Local Government & Public Services,HALTON BC (HSG),,,,,5000398337,,SBRR Threshold Changes Grant,WA8 7QF,"522,832.00",Yes
"Housing, Communities & Local Government",MHCLG,05/04/2018,Current (non AEF) Grants to Local Authorities,Local Government & Public Services,HALTON BC (HSG),,,,,5000398339,,Supporting Small Business,WA8 7QF,"14,873.00",Yes
"Housing, Communities & Local Government",MHCLG,05/04/2018,Current (non AEF) Grants to Local Authorities,Local Government & Public Services,HALTON BC (HSG),,,,,5000398341,,Support for Public Houses,WA8 7QF,"12,166.00",Yes
"Housing, Communities & Local Government",MHCLG,05/04/2018,Current (non AEF) Grants to Local Authorities,Local Government & Public Services,HAMBLETON DC (HSG),,,,503481319,5000398343,,SBRR Threshold Changes Grant,DL6 2UU,"356,982.00",Yes
"Housing, Communities & Local Government",MHCLG,05/04/2018,Current (non AEF) Grants to Local Authorities,Local Government & Public Services,HAMBLETON DC (HSG),,,,503481319,5000398345,,Supporting Small Business,DL6 2UU,"17,864.00",Yes
"Housing, Communities & Local Government",MHCLG,05/04/2018,Current (non AEF) Grants to Local Authorities,Local Government & Public Services,HAMBLETON DC (HSG),,,,503481319,5000398347,,Support for Public Houses,DL6 2UU,"40,670.00",Yes
"Housing, Communities & Local Government",MHCLG,05/04/2018,Current (non AEF) Grants to Local Authorities,Local Government & Public Services,HAMMERSMITH & FULHAM LB,,,,216929489,5000398378,,SBRR Threshold Changes Grant,W6 9JU,"698,623.00",Yes
"Housing, Communities & Local Government",MHCLG,05/04/2018,Current (non AEF) Grants to Local Authorities,Local Government & Public Services,HAMMERSMITH & FULHAM LB,,,,216929489,5000398380,,Supporting Small Business,W6 9JU,"37,302.00",Yes
"Housing, Communities & Local Government",MHCLG,05/04/2018,Current (non AEF) Grants to Local Authorities,Local Government & Public Services,HAMMERSMITH & FULHAM LB,,,,216929489,5000398382,,Support for Public Houses,W6 9JU,"17,682.00",Yes
"Housing, Communities & Local Government",MHCLG,05/04/2018,Current (non AEF) Grants to Local Authorities,Local Government & Public Services,HARBOROUGH DC (HSG),,,,212935774,5000398349,,SBRR Threshold Changes Grant,LE16 7AG,"261,828.00",Yes
"Housing, Communities & Local Government",MHCLG,05/04/2018,Current (non AEF) Grants to Local Authorities,Local Government & Public Services,HARBOROUGH DC (HSG),,,,212935774,5000398351,,Supporting Small Business,LE16 7AG,"26,103.00",Yes
"Housing, Communities & Local Government",MHCLG,05/04/2018,Current (non AEF) Grants to Local Authorities,Local Government & Public Services,HARBOROUGH DC (HSG),,,,212935774,5000398353,,Support for Public Houses,LE16 7AG,"25,376.00",Yes
"Housing, Communities & Local Government",MHCLG,05/04/2018,Current (non AEF) Grants to Local Authorities,Local Government & Public Services,HARINGEY LB,,,,217471767,5000398384,,SBRR Threshold Changes Grant,N22 4TR,"1,258,157.00",Yes
"Housing, Communities & Local Government",MHCLG,05/04/2018,Current (non AEF) Grants to Local Authorities,Local Government & Public Services,HARINGEY LB,,,,217471767,5000398386,,Supporting Small Business,N22 4TR,"61,041.00",Yes
"Housing, Communities & Local Government",MHCLG,05/04/2018,Current (non AEF) Grants to Local Authorities,Local Government & Public Services,HARINGEY LB,,,,217471767,5000398388,,Support for Public Houses,N22 4TR,"28,317.00",Yes
"Housing, Communities & Local Government",MHCLG,05/04/2018,Current (non AEF) Grants to Local Authorities,Local Government & Public Services,HARLOW DISTRICT COUNCIL,,Large,,239999055,5000398390,,SBRR Threshold Changes Grant,CM20 1WG,"211,615.00",Yes
"Housing, Communities & Local Government",MHCLG,05/04/2018,Current (non AEF) Grants to Local Authorities,Local Government & Public Services,HARLOW DISTRICT COUNCIL,,Large,,239999055,5000398392,,Supporting Small Business,CM20 1WG,"4,566.00",Yes
"Housing, Communities & Local Government",MHCLG,05/04/2018,Current (non AEF) Grants to Local Authorities,Local Government & Public Services,HARLOW DISTRICT COUNCIL,,Large,,239999055,5000398394,,Support for Public Houses,CM20 1WG,"4,543.00",Yes
"Housing, Communities & Local Government",MHCLG,05/04/2018,Current (non AEF) Grants to Local Authorities,Local Government & Public Services,HARROGATE BC,,,,236660031,5000398355,,SBRR Threshold Changes Grant,HG1 2SG,"639,799.00",Yes
"Housing, Communities & Local Government",MHCLG,05/04/2018,Current (non AEF) Grants to Local Authorities,Local Government & Public Services,HARROGATE BC,,,,236660031,5000398357,,Support for Public Houses,HG1 2SG,"49,413.00",Yes
"Housing, Communities & Local Government",MHCLG,05/04/2018,Current (non AEF) Grants to Local Authorities,Local Government & Public Services,HARROGATE BC,,,,236660031,5000398359,,Supporting Small Business,HG1 2SG,"22,266.00",Yes
"Housing, Communities & Local Government",MHCLG,05/04/2018,Current (non AEF) Grants to Local Authorities,Local Government & Public Services,HARROW LB,,,,,5000398396,,SBRR Threshold Changes Grant,HA1 2UZ,"1,228,876.00",Yes
"Housing, Communities & Local Government",MHCLG,05/04/2018,Current (non AEF) Grants to Local Authorities,Local Government & Public Services,HARROW LB,,,,,5000398398,,Supporting Small Business,HA1 2UZ,"88,408.00",Yes
"Housing, Communities & Local Government",MHCLG,05/04/2018,Current (non AEF) Grants to Local Authorities,Local Government & Public Services,HARROW LB,,,,,5000398400,,Support for Public Houses,HA1 2UZ,"20,402.00",Yes
"Housing, Communities & Local Government",MHCLG,05/04/2018,Current (non AEF) Grants to Local Authorities,Local Government & Public Services,HART DC,,,,229723895,5000398402,,Supporting Small Business,GU13 8AE,"13,015.00",Yes
"Housing, Communities & Local Government",MHCLG,05/04/2018,Current (non AEF) Grants to Local Authorities,Local Government & Public Services,HART DC,,,,229723895,5000398404,,Support for Public Houses,GU13 8AE,"9,135.00",Yes
"Housing, Communities & Local Government",MHCLG,05/04/2018,Current (non AEF) Grants to Local Authorities,Local Government & Public Services,HART DC,,,,229723895,5000398406,,SBRR Threshold Changes Grant,GU13 8AE,"236,381.00",Yes
"Housing, Communities & Local Government",MHCLG,05/04/2018,Current (non AEF) Grants to Local Authorities,Local Government & Public Services,HARTLEPOOL BOROUGH COUNCIL,,,,424291797,5000398408,,SBRR Threshold Changes Grant,TS24 8AY,"200,139.00",Yes
"Housing, Communities & Local Government",MHCLG,05/04/2018,Current (non AEF) Grants to Local Authorities,Local Government & Public Services,HARTLEPOOL BOROUGH COUNCIL,,,,424291797,5000398410,,Supporting Small Business,TS24 8AY,"17,035.00",Yes
"Housing, Communities & Local Government",MHCLG,05/04/2018,Current (non AEF) Grants to Local Authorities,Local Government & Public Services,HARTLEPOOL BOROUGH COUNCIL,,,,424291797,5000398412,,Support for Public Houses,TS24 8AY,"12,575.00",Yes
"Housing, Communities & Local Government",MHCLG,05/04/2018,Current (non AEF) Grants to Local Authorities,Local Government & Public Services,HASTINGS BC,,,,,5000398414,,Supporting Small Business,TN34 3WN,"16,494.00",Yes
"Housing, Communities & Local Government",MHCLG,05/04/2018,Current (non AEF) Grants to Local Authorities,Local Government & Public Services,HASTINGS BC,,,,,5000398416,,Support for Public Houses,TN34 3WN,"16,240.00",Yes
"Housing, Communities & Local Government",MHCLG,05/04/2018,Current (non AEF) Grants to Local Authorities,Local Government & Public Services,HASTINGS BC,,,,,5000398419,,SBRR Threshold Changes Grant,TN34 3WN,"282,739.00",Yes
"Housing, Communities & Local Government",MHCLG,05/04/2018,Current (non AEF) Grants to Local Authorities,Local Government & Public Services,HAVANT BC,,,,211047543,5000398421,,SBRR Threshold Changes Grant,PO9 2AX,"304,285.00",Yes
"Housing, Communities & Local Government",MHCLG,05/04/2018,Current (non AEF) Grants to Local Authorities,Local Government & Public Services,HAVERING LB,,,,211209770,5000398423,,SBRR Threshold Changes Grant,RM1 3BB,"923,344.00",Yes
"Housing, Communities & Local Government",MHCLG,05/04/2018,Current (non AEF) Grants to Local Authorities,Local Government & Public Services,HAVERING LB,,,,211209770,5000398425,,Supporting Small Business,RM1 3BB,"105,410.00",Yes
"Housing, Communities & Local Government",MHCLG,05/04/2018,Current (non AEF) Grants to Local Authorities,Local Government & Public Services,HAVERING LB,,,,211209770,5000398427,,Support for Public Houses,RM1 3BB,"24,482.00",Yes
"Housing, Communities & Local Government",MHCLG,05/04/2018,Current (non AEF) Grants to Local Authorities,Local Government & Public Services,HEREFORDSHIRE COUNCIL,,,,,5000398361,,SBRR Threshold Changes Grant,HR4 0XH,"698,166.00",Yes
"Housing, Communities & Local Government",MHCLG,05/04/2018,Current (non AEF) Grants to Local Authorities,Local Government & Public Services,HEREFORDSHIRE COUNCIL,,,,,5000398363,,Supporting Small Business,HR4 0XH,"74,279.00",Yes
"Housing, Communities & Local Government",MHCLG,05/04/2018,Current (non AEF) Grants to Local Authorities,Local Government & Public Services,HEREFORDSHIRE COUNCIL,,,,,5000398365,,Support for Public Houses,HR4 0XH,"52,756.00",Yes
"Housing, Communities & Local Government",MHCLG,05/04/2018,Current (non AEF) Grants to Local Authorities,Local Government & Public Services,HERTSMERE BC,,,,237549253,5000398429,,Supporting Small Business,WD6 1WA,"8,474.00",Yes
"Housing, Communities & Local Government",MHCLG,05/04/2018,Current (non AEF) Grants to Local Authorities,Local Government & Public Services,HERTSMERE BC,,,,237549253,5000398431,,Support for Public Houses,WD6 1WA,"11,436.00",Yes
"Housing, Communities & Local Government",MHCLG,05/04/2018,Current (non AEF) Grants to Local Authorities,Local Government & Public Services,HERTSMERE BC,,,,237549253,5000398433,,SBRR Threshold Changes Grant,WD6 1WA,"477,366.00",Yes
"Housing, Communities & Local Government",MHCLG,05/04/2018,Current (non AEF) Grants to Local Authorities,Local Government & Public Services,HIGH PEAK BC,,,,239967771,5000398367,,SBRR Threshold Changes Grant,SK17 6EL,"306,272.00",Yes
"Housing, Communities & Local Government",MHCLG,05/04/2018,Current (non AEF) Grants to Local Authorities,Local Government & Public Services,HIGH PEAK BC,,,,239967771,5000398369,,Supporting Small Business,SK17 6EL,"25,572.00",Yes
"Housing, Communities & Local Government",MHCLG,05/04/2018,Current (non AEF) Grants to Local Authorities,Local Government & Public Services,HIGH PEAK BC,,,,239967771,5000398371,,Support for Public Houses,SK17 6EL,"28,178.00",Yes
"Housing, Communities & Local Government",MHCLG,05/04/2018,Current (non AEF) Grants to Local Authorities,Local Government & Public Services,HILLINGDON LB,,,,211198585,5000398435,,Supporting Small Business,UB8 1UW,"25,246.00",Yes
"Housing, Communities & Local Government",MHCLG,05/04/2018,Current (non AEF) Grants to Local Authorities,Local Government & Public Services,HILLINGDON LB,,,,211198585,5000398437,,Support for Public Houses,UB8 1UW,"28,251.00",Yes
"Housing, Communities & Local Government",MHCLG,05/04/2018,Current (non AEF) Grants to Local Authorities,Local Government & Public Services,HILLINGDON LB,,,,211198585,5000398439,,SBRR Threshold Changes Grant,UB8 1UW,"971,589.00",Yes
"Housing, Communities & Local Government",MHCLG,05/04/2018,Current (non AEF) Grants to Local Authorities,Local Government & Public Services,HINCKLEY & BOSWORTH BC,,,,211176144,5000398373,,SBRR Threshold Changes Grant,LE10 1BZ,"300,044.00",Yes
"Housing, Communities & Local Government",MHCLG,05/04/2018,Current (non AEF) Grants to Local Authorities,Local Government & Public Services,HINCKLEY & BOSWORTH BC,,,,211176144,5000398375,,Supporting Small Business,LE10 1BZ,"21,979.00",Yes
"Housing, Communities & Local Government",MHCLG,05/04/2018,Current (non AEF) Grants to Local Authorities,Local Government & Public Services,HINCKLEY & BOSWORTH BC,,,,211176144,5000398377,,Support for Public Houses,LE10 1BZ,"25,376.00",Yes
"Housing, Communities & Local Government",MHCLG,05/04/2018,Current (non AEF) Grants to Local Authorities,Local Government & Public Services,HORSHAM DC,,,,229776588,5000398379,,Supporting Small Business,RH12 1RL,"34,738.00",Yes
"Housing, Communities & Local Government",MHCLG,05/04/2018,Current (non AEF) Grants to Local Authorities,Local Government & Public Services,HORSHAM DC,,,,229776588,5000398381,,Support for Public Houses,RH12 1RL,"42,860.00",Yes
"Housing, Communities & Local Government",MHCLG,05/04/2018,Current (non AEF) Grants to Local Authorities,Local Government & Public Services,HORSHAM DC,,,,229776588,5000398383,,SBRR Threshold Changes Grant,RH12 1RL,"440,137.00",Yes
"Housing, Communities & Local Government",MHCLG,05/04/2018,Current (non AEF) Grants to Local Authorities,Local Government & Public Services,HOUNSLOW LB,,Public Bodies,,210388999,5000398441,,SBRR Threshold Changes Grant,TW3 4DN,"723,864.00",Yes
"Housing, Communities & Local Government",MHCLG,05/04/2018,Current (non AEF) Grants to Local Authorities,Local Government & Public Services,HOUNSLOW LB,,Public Bodies,,210388999,5000398443,,Supporting Small Business,TW3 4DN,"14,757.00",Yes
"Housing, Communities & Local Government",MHCLG,05/04/2018,Current (non AEF) Grants to Local Authorities,Local Government & Public Services,HOUNSLOW LB,,Public Bodies,,210388999,5000398445,,Support for Public Houses,TW3 4DN,"45,564.00",Yes
"Housing, Communities & Local Government",MHCLG,05/04/2018,Current (non AEF) Grants to Local Authorities,Local Government & Public Services,HULL CITY COUNCIL,,,,217460984,5000398484,,SBRR Threshold Changes Grant,HU1 2AA,"901,196.00",Yes
"Housing, Communities & Local Government",MHCLG,05/04/2018,Current (non AEF) Grants to Local Authorities,Local Government & Public Services,HULL CITY COUNCIL,,,,217460984,5000398486,,Supporting Small Business,HU1 2AA,"11,177.00",Yes
"Housing, Communities & Local Government",MHCLG,05/04/2018,Current (non AEF) Grants to Local Authorities,Local Government & Public Services,HULL CITY COUNCIL,,,,217460984,5000398488,,Support for Public Houses,HU1 2AA,"38,594.00",Yes
"Housing, Communities & Local Government",MHCLG,05/04/2018,Current (non AEF) Grants to Local Authorities,Local Government & Public Services,HUNTINGDONSHIRE DC,,,,235999216,5000398385,,SBRR Threshold Changes Grant,PE18 6TN,"801,464.00",Yes
"Housing, Communities & Local Government",MHCLG,05/04/2018,Current (non AEF) Grants to Local Authorities,Local Government & Public Services,HUNTINGDONSHIRE DC,,,,235999216,5000398387,,Supporting Small Business,PE18 6TN,"17,353.00",Yes
"Housing, Communities & Local Government",MHCLG,05/04/2018,Current (non AEF) Grants to Local Authorities,Local Government & Public Services,HUNTINGDONSHIRE DC,,,,235999216,5000398389,,Support for Public Houses,PE18 6TN,"38,497.00",Yes
"Housing, Communities & Local Government",MHCLG,05/04/2018,Current (non AEF) Grants to Local Authorities,Local Government & Public Services,HYNDBURN BC,,,,,5000398447,,Supporting Small Business,BB5 1EZ,"5,075.00",Yes
"Housing, Communities & Local Government",MHCLG,05/04/2018,Current (non AEF) Grants to Local Authorities,Local Government & Public Services,HYNDBURN BC,,,,,5000398449,,Support for Public Houses,BB5 1EZ,"22,838.00",Yes
"Housing, Communities & Local Government",MHCLG,05/04/2018,Current (non AEF) Grants to Local Authorities,Local Government & Public Services,HYNDBURN BC,,,,,5000398450,,SBRR Threshold Changes Grant,BB5 1EZ,"225,197.00",Yes
"Housing, Communities & Local Government",MHCLG,05/04/2018,Current (non AEF) Grants to Local Authorities,Local Government & Public Services,IPSWICH BC,,,,226861391,5000398452,,Supporting Small Business,IP1 2DE,"3,961.00",Yes
"Housing, Communities & Local Government",MHCLG,05/04/2018,Current (non AEF) Grants to Local Authorities,Local Government & Public Services,IPSWICH BC,,,,226861391,5000398454,,Support for Public Houses,IP1 2DE,"17,442.00",Yes
"Housing, Communities & Local Government",MHCLG,05/04/2018,Current (non AEF) Grants to Local Authorities,Local Government & Public Services,IPSWICH BC,,,,226861391,5000398456,,SBRR Threshold Changes Grant,IP1 2DE,"371,032.00",Yes
"Housing, Communities & Local Government",MHCLG,05/04/2018,Current (non AEF) Grants to Local Authorities,Local Government & Public Services,ISLE OF WIGHT CNCL,,,,236431730,5000398458,,SBRR Threshold Changes Grant,PO30 1UD,"557,233.00",Yes
"Housing, Communities & Local Government",MHCLG,05/04/2018,Current (non AEF) Grants to Local Authorities,Local Government & Public Services,ISLE OF WIGHT CNCL,,,,236431730,5000398460,,Supporting Small Business,PO30 1UD,"14,879.00",Yes
"Housing, Communities & Local Government",MHCLG,05/04/2018,Current (non AEF) Grants to Local Authorities,Local Government & Public Services,ISLE OF WIGHT CNCL,,,,236431730,5000398462,,Support for Public Houses,PO30 1UD,"44,029.00",Yes
"Housing, Communities & Local Government",MHCLG,05/04/2018,Current (non AEF) Grants to Local Authorities,Local Government & Public Services,ISLES OF SCILLY COUNCIL,,,,214146040,5000398464,,SBRR Threshold Changes Grant,TR21 0LW,"35,755.00",Yes
"Housing, Communities & Local Government",MHCLG,05/04/2018,Current (non AEF) Grants to Local Authorities,Local Government & Public Services,ISLINGTON LB,,,,225716729,5000398466,,SBRR Threshold Changes Grant,N1 1XR,"1,099,676.00",Yes
"Housing, Communities & Local Government",MHCLG,05/04/2018,Current (non AEF) Grants to Local Authorities,Local Government & Public Services,ISLINGTON LB,,,,225716729,5000398468,,Supporting Small Business,N1 1XR,"231,763.00",Yes
"Housing, Communities & Local Government",MHCLG,05/04/2018,Current (non AEF) Grants to Local Authorities,Local Government & Public Services,ISLINGTON LB,,,,225716729,5000398470,,Support for Public Houses,N1 1XR,"96,362.00",Yes
"Housing, Communities & Local Government",MHCLG,05/04/2018,Current (non AEF) Grants to Local Authorities,Local Government & Public Services,KETTERING BC,,,,211271796,5000398478,,Supporting Small Business,NN15 7QX,508.00,Yes
"Housing, Communities & Local Government",MHCLG,05/04/2018,Current (non AEF) Grants to Local Authorities,Local Government & Public Services,KETTERING BC,,,,211271796,5000398480,,Support for Public Houses,NN15 7QX,"12,688.00",Yes
"Housing, Communities & Local Government",MHCLG,05/04/2018,Current (non AEF) Grants to Local Authorities,Local Government & Public Services,KETTERING BC,,,,211271796,5000398482,,SBRR Threshold Changes Grant,NN15 7QX,"291,614.00",Yes
"Housing, Communities & Local Government",MHCLG,05/04/2018,Current (non AEF) Grants to Local Authorities,Local Government & Public Services,KINGS LYNN & WEST NORFOLK BC,,,,236417671,5000398391,,Supporting Small Business,PE30 1EX,"36,033.00",Yes
"Housing, Communities & Local Government",MHCLG,05/04/2018,Current (non AEF) Grants to Local Authorities,Local Government & Public Services,KINGS LYNN & WEST NORFOLK BC,,,,236417671,5000398393,,Support for Public Houses,PE30 1EX,"22,838.00",Yes
"Housing, Communities & Local Government",MHCLG,05/04/2018,Current (non AEF) Grants to Local Authorities,Local Government & Public Services,KINGS LYNN & WEST NORFOLK BC,,,,236417671,5000398395,,SBRR Threshold Changes Grant,PE30 1EX,"378,519.00",Yes
"Housing, Communities & Local Government",MHCLG,05/04/2018,Current (non AEF) Grants to Local Authorities,Local Government & Public Services,KINGSTON UPON THAMES  (HSG),,,,211379941,5000398397,,SBRR Threshold Changes Grant,KT1 1EU,"596,725.00",Yes
"Housing, Communities & Local Government",MHCLG,05/04/2018,Current (non AEF) Grants to Local Authorities,Local Government & Public Services,KINGSTON UPON THAMES  (HSG),,,,211379941,5000398399,,Supporting Small Business,KT1 1EU,"19,635.00",Yes
"Housing, Communities & Local Government",MHCLG,05/04/2018,Current (non AEF) Grants to Local Authorities,Local Government & Public Services,KINGSTON UPON THAMES  (HSG),,,,211379941,5000398401,,Support for Public Houses,KT1 1EU,"36,226.00",Yes
"Housing, Communities & Local Government",MHCLG,05/04/2018,Current (non AEF) Grants to Local Authorities,Local Government & Public Services,KIRKLEES COUNCIL (HSG),,Large,,,5000398403,,SBRR Threshold Changes Grant,HD1 2YU,"1,360,945.00",Yes
"Housing, Communities & Local Government",MHCLG,05/04/2018,Current (non AEF) Grants to Local Authorities,Local Government & Public Services,KIRKLEES COUNCIL (HSG),,Large,,,5000398405,,Supporting Small Business,HD1 2YU,"40,896.00",Yes
"Housing, Communities & Local Government",MHCLG,05/04/2018,Current (non AEF) Grants to Local Authorities,Local Government & Public Services,KIRKLEES COUNCIL (HSG),,Large,,,5000398407,,Support for Public Houses,HD1 2YU,"48,486.00",Yes
"Housing, Communities & Local Government",MHCLG,05/04/2018,Current (non AEF) Grants to Local Authorities,Local Government & Public Services,KNOWSLEY MBC,,,,,5000398490,,SBRR Threshold Changes Grant,L36 9YZ,"574,542.00",Yes
"Housing, Communities & Local Government",MHCLG,05/04/2018,Current (non AEF) Grants to Local Authorities,Local Government & Public Services,KNOWSLEY MBC,,,,,5000398492,,Supporting Small Business,L36 9YZ,"8,862.00",Yes
"Housing, Communities & Local Government",MHCLG,05/04/2018,Current (non AEF) Grants to Local Authorities,Local Government & Public Services,KNOWSLEY MBC,,,,,5000398494,,Support for Public Houses,L36 9YZ,"18,349.00",Yes
"Housing, Communities & Local Government",MHCLG,05/04/2018,Current (non AEF) Grants to Local Authorities,Local Government & Public Services,LANCASTER CITY COUNCIL,,,,228669990,5000398409,,SBRR Threshold Changes Grant,LA1 1PJ,"354,476.00",Yes
"Housing, Communities & Local Government",MHCLG,05/04/2018,Current (non AEF) Grants to Local Authorities,Local Government & Public Services,LANCASTER CITY COUNCIL,,,,228669990,5000398411,,Supporting Small Business,LA1 1PJ,"14,570.00",Yes
"Housing, Communities & Local Government",MHCLG,05/04/2018,Current (non AEF) Grants to Local Authorities,Local Government & Public Services,LANCASTER CITY COUNCIL,,,,228669990,5000398413,,Support for Public Houses,LA1 1PJ,"46,183.00",Yes
"Housing, Communities & Local Government",MHCLG,05/04/2018,Current (non AEF) Grants to Local Authorities,Local Government & Public Services,LEEDS CITY CNCL,,Micro,,,5000398502,,SBRR Threshold Changes Grant,LS1 1JF,"2,493,214.00",Yes
"Housing, Communities & Local Government",MHCLG,05/04/2018,Current (non AEF) Grants to Local Authorities,Local Government & Public Services,LEEDS CITY CNCL,,Micro,,,5000398504,,Supporting Small Business,LS1 1JF,"55,970.00",Yes
"Housing, Communities & Local Government",MHCLG,05/04/2018,Current (non AEF) Grants to Local Authorities,Local Government & Public Services,LEEDS CITY CNCL,,Micro,,,5000398505,,Support for Public Houses,LS1 1JF,"124,270.00",Yes
"Housing, Communities & Local Government",MHCLG,05/04/2018,Current (non AEF) Grants to Local Authorities,Local Government & Public Services,LEICESTER CITY CNCL,,,,228219960,5000398415,,SBRR Threshold Changes Grant,LE1 1FZ,"1,166,676.00",Yes
"Housing, Communities & Local Government",MHCLG,05/04/2018,Current (non AEF) Grants to Local Authorities,Local Government & Public Services,LEICESTER CITY CNCL,,,,228219960,5000398417,,Supporting Small Business,LE1 1FZ,"91,859.00",Yes
"Housing, Communities & Local Government",MHCLG,05/04/2018,Current (non AEF) Grants to Local Authorities,Local Government & Public Services,LEICESTER CITY CNCL,,,,228219960,5000398418,,Support for Public Houses,LE1 1FZ,"40,601.00",Yes
"Housing, Communities & Local Government",MHCLG,05/04/2018,Current (non AEF) Grants to Local Authorities,Local Government & Public Services,LEWES DC,,,,213090082,5000398420,,SBRR Threshold Changes Grant,BN7 1AB,"364,552.00",Yes
"Housing, Communities & Local Government",MHCLG,05/04/2018,Current (non AEF) Grants to Local Authorities,Local Government & Public Services,LEWES DC,,,,213090082,5000398422,,Support for Public Houses,BN7 1AB,"18,447.00",Yes
"Housing, Communities & Local Government",MHCLG,05/04/2018,Current (non AEF) Grants to Local Authorities,Local Government & Public Services,LEWES DC,,,,213090082,5000398424,,Supporting Small Business,BN7 1AB,"13,769.00",Yes
"Housing, Communities & Local Government",MHCLG,05/04/2018,Current (non AEF) Grants to Local Authorities,Local Government & Public Services,LEWISHAM LB (HSG),,Large,,235653300,5000398426,,SBRR Threshold Changes Grant,SE6 4RU,"1,089,989.00",Yes
"Housing, Communities & Local Government",MHCLG,05/04/2018,Current (non AEF) Grants to Local Authorities,Local Government & Public Services,LEWISHAM LB (HSG),,Large,,235653300,5000398428,,Supporting Small Business,SE6 4RU,"133,257.00",Yes
"Housing, Communities & Local Government",MHCLG,05/04/2018,Current (non AEF) Grants to Local Authorities,Local Government & Public Services,LEWISHAM LB (HSG),,Large,,235653300,5000398430,,Support for Public Houses,SE6 4RU,"14,913.00",Yes
"Housing, Communities & Local Government",MHCLG,05/04/2018,Current (non AEF) Grants to Local Authorities,Local Government & Public Services,LICHFIELD DC,,,,236780086,5000398507,,SBRR Threshold Changes Grant,WS13 6YX,"276,768.00",Yes
"Housing, Communities & Local Government",MHCLG,05/04/2018,Current (non AEF) Grants to Local Authorities,Local Government & Public Services,LICHFIELD DC,,,,236780086,5000398509,,Supporting Small Business,WS13 6YX,"16,224.00",Yes
"Housing, Communities & Local Government",MHCLG,05/04/2018,Current (non AEF) Grants to Local Authorities,Local Government & Public Services,LICHFIELD DC,,,,236780086,5000398511,,Support for Public Houses,WS13 6YX,"24,113.00",Yes
"Housing, Communities & Local Government",MHCLG,05/04/2018,Current (non AEF) Grants to Local Authorities,Local Government & Public Services,LIVERPOOL CITY COUNCIL,,,,,5000398519,,SBRR Threshold Changes Grant,L2 2DH,"2,095,164.00",Yes
"Housing, Communities & Local Government",MHCLG,05/04/2018,Current (non AEF) Grants to Local Authorities,Local Government & Public Services,LIVERPOOL CITY COUNCIL,,,,,5000398521,,Supporting Small Business,L2 2DH,"123,888.00",Yes
"Housing, Communities & Local Government",MHCLG,05/04/2018,Current (non AEF) Grants to Local Authorities,Local Government & Public Services,LIVERPOOL CITY COUNCIL,,,,,5000398523,,Support for Public Houses,L2 2DH,"188,311.00",Yes
"Housing, Communities & Local Government",MHCLG,05/04/2018,Current (non AEF) Grants to Local Authorities,Local Government & Public Services,LONDON BOROUGH OF BARNET,,,,211049507,5000398932,,SBRR Threshold Changes Grant,NN1 1NP,"1,155,500.00",Yes
"Housing, Communities & Local Government",MHCLG,05/04/2018,Current (non AEF) Grants to Local Authorities,Local Government & Public Services,LONDON BOROUGH OF BARNET,,,,211049507,5000398934,,Supporting Small Business,NN1 1NP,"114,413.00",Yes
"Housing, Communities & Local Government",MHCLG,05/04/2018,Current (non AEF) Grants to Local Authorities,Local Government & Public Services,LONDON BOROUGH OF BARNET,,,,211049507,5000398936,,Support for Public Houses,NN1 1NP,"46,924.00",Yes
"Housing, Communities & Local Government",MHCLG,05/04/2018,Current (non AEF) Grants to Local Authorities,Local Government & Public Services,LONDON BOROUGH OF HACKNEY,,,,225221597,5000398372,,SBRR Threshold Changes Grant,E8 4RU,"1,440,130.00",Yes
"Housing, Communities & Local Government",MHCLG,05/04/2018,Current (non AEF) Grants to Local Authorities,Local Government & Public Services,LONDON BOROUGH OF HACKNEY,,,,225221597,5000398374,,Supporting Small Business,E8 4RU,"502,941.00",Yes
"Housing, Communities & Local Government",MHCLG,05/04/2018,Current (non AEF) Grants to Local Authorities,Local Government & Public Services,LONDON BOROUGH OF HACKNEY,,,,225221597,5000398376,,Support for Public Houses,E8 4RU,"94,529.00",Yes
"Housing, Communities & Local Government",MHCLG,05/04/2018,Current (non AEF) Grants to Local Authorities,Local Government & Public Services,LONDON BOROUGH OF LAMBETH,,,,228216479,5000398496,,SBRR Threshold Changes Grant,SW2 1RL,"1,209,548.00",Yes
"Housing, Communities & Local Government",MHCLG,05/04/2018,Current (non AEF) Grants to Local Authorities,Local Government & Public Services,LONDON BOROUGH OF LAMBETH,,,,228216479,5000398498,,Supporting Small Business,SW2 1RL,"326,431.00",Yes
"Housing, Communities & Local Government",MHCLG,05/04/2018,Current (non AEF) Grants to Local Authorities,Local Government & Public Services,LONDON BOROUGH OF LAMBETH,,,,228216479,5000398500,,Support for Public Houses,SW2 1RL,"71,407.00",Yes
"Housing, Communities & Local Government",MHCLG,05/04/2018,Current (non AEF) Grants to Local Authorities,Local Government & Public Services,LONDON BOROUGH OF NEWHAM,,,,211381004,5000398575,,Supporting Small Business,E16 2QU,"102,010.00",Yes
"Housing, Communities & Local Government",MHCLG,05/04/2018,Current (non AEF) Grants to Local Authorities,Local Government & Public Services,LONDON BOROUGH OF NEWHAM,,,,211381004,5000398577,,Support for Public Houses,E16 2QU,"23,802.00",Yes
"Housing, Communities & Local Government",MHCLG,05/04/2018,Current (non AEF) Grants to Local Authorities,Local Government & Public Services,LONDON BOROUGH OF NEWHAM,,,,211381004,5000398579,,SBRR Threshold Changes Grant,E16 2QU,"1,277,768.00",Yes
"Housing, Communities & Local Government",MHCLG,05/04/2018,Current (non AEF) Grants to Local Authorities,Local Government & Public Services,LONDON BOROUGH OF REDBRIDGE,,,,211341417,5000398675,,SBRR Threshold Changes Grant,IG1 1NN,"1,000,961.00",Yes
"Housing, Communities & Local Government",MHCLG,05/04/2018,Current (non AEF) Grants to Local Authorities,Local Government & Public Services,LONDON BOROUGH OF REDBRIDGE,,,,211341417,5000398677,,Supporting Small Business,IG1 1NN,"123,142.00",Yes
"Housing, Communities & Local Government",MHCLG,05/04/2018,Current (non AEF) Grants to Local Authorities,Local Government & Public Services,LONDON BOROUGH OF REDBRIDGE,,,,211341417,5000398679,,Support for Public Houses,IG1 1NN,"17,002.00",Yes
"Housing, Communities & Local Government",MHCLG,05/04/2018,Current (non AEF) Grants to Local Authorities,Local Government & Public Services,LUTON BC,,,,365112155,5000398525,,SBRR Threshold Changes Grant,LU1 2BQ,"520,716.00",Yes
"Housing, Communities & Local Government",MHCLG,05/04/2018,Current (non AEF) Grants to Local Authorities,Local Government & Public Services,LUTON BC,,,,365112155,5000398527,,Supporting Small Business,LU1 2BQ,"17,649.00",Yes
"Housing, Communities & Local Government",MHCLG,05/04/2018,Current (non AEF) Grants to Local Authorities,Local Government & Public Services,LUTON BC,,,,365112155,5000398529,,Support for Public Houses,LU1 2BQ,"8,120.00",Yes
"Housing, Communities & Local Government",MHCLG,05/04/2018,Current (non AEF) Grants to Local Authorities,Local Government & Public Services,MAIDSTONE BC,,Public Bodies,,293004214,5000398432,,SBRR Threshold Changes Grant,ME15 6JQ,"358,964.00",Yes
"Housing, Communities & Local Government",MHCLG,05/04/2018,Current (non AEF) Grants to Local Authorities,Local Government & Public Services,MAIDSTONE BC,,Public Bodies,,293004214,5000398434,,Supporting Small Business,ME15 6JQ,"8,699.00",Yes
"Housing, Communities & Local Government",MHCLG,05/04/2018,Current (non AEF) Grants to Local Authorities,Local Government & Public Services,MAIDSTONE BC,,Public Bodies,,293004214,5000398436,,Support for Public Houses,ME15 6JQ,"33,409.00",Yes
"Housing, Communities & Local Government",MHCLG,05/04/2018,Current (non AEF) Grants to Local Authorities,Local Government & Public Services,MALDON DC,,,,424668663,5000398438,,SBRR Threshold Changes Grant,CM9 7DL,"251,400.00",Yes
"Housing, Communities & Local Government",MHCLG,05/04/2018,Current (non AEF) Grants to Local Authorities,Local Government & Public Services,MALDON DC,,,,424668663,5000398440,,Supporting Small Business,CM9 7DL,"5,850.00",Yes
"Housing, Communities & Local Government",MHCLG,05/04/2018,Current (non AEF) Grants to Local Authorities,Local Government & Public Services,MALDON DC,,,,424668663,5000398442,,Support for Public Houses,CM9 7DL,"11,673.00",Yes
"Housing, Communities & Local Government",MHCLG,05/04/2018,Current (non AEF) Grants to Local Authorities,Local Government & Public Services,MALVERN HILLS DC,,,,227470424,5000398531,,SBRR Threshold Changes Grant,WR14 3AF,"236,136.00",Yes
"Housing, Communities & Local Government",MHCLG,05/04/2018,Current (non AEF) Grants to Local Authorities,Local Government & Public Services,MALVERN HILLS DC,,,,227470424,5000398534,,Supporting Small Business,WR14 3AF,"11,503.00",Yes
"Housing, Communities & Local Government",MHCLG,05/04/2018,Current (non AEF) Grants to Local Authorities,Local Government & Public Services,MALVERN HILLS DC,,,,227470424,5000398536,,Support for Public Houses,WR14 3AF,"22,953.00",Yes
"Housing, Communities & Local Government",MHCLG,05/04/2018,Current (non AEF) Grants to Local Authorities,Local Government & Public Services,MANCHESTER CITY CNCL (HSG),,,,211241393,5000398444,,SBRR Threshold Changes Grant,M60 2JR,"2,945,484.00",Yes
"Housing, Communities & Local Government",MHCLG,05/04/2018,Current (non AEF) Grants to Local Authorities,Local Government & Public Services,MANCHESTER CITY CNCL (HSG),,,,211241393,5000398446,,Supporting Small Business,M60 2JR,"185,749.00",Yes
"Housing, Communities & Local Government",MHCLG,05/04/2018,Current (non AEF) Grants to Local Authorities,Local Government & Public Services,MANCHESTER CITY CNCL (HSG),,,,211241393,5000398448,,Support for Public Houses,M60 2JR,"226,350.00",Yes
"Housing, Communities & Local Government",MHCLG,05/04/2018,Current (non AEF) Grants to Local Authorities,Local Government & Public Services,MANSFIELD DC,,,,237922968,5000398538,,SBRR Threshold Changes Grant,NG19 7BH,"238,347.00",Yes
"Housing, Communities & Local Government",MHCLG,05/04/2018,Current (non AEF) Grants to Local Authorities,Local Government & Public Services,MANSFIELD DC,,,,237922968,5000398540,,Supporting Small Business,NG19 7BH,"4,314.00",Yes
"Housing, Communities & Local Government",MHCLG,05/04/2018,Current (non AEF) Grants to Local Authorities,Local Government & Public Services,MANSFIELD DC,,,,237922968,5000398542,,Support for Public Houses,NG19 7BH,"12,688.00",Yes
"Housing, Communities & Local Government",MHCLG,05/04/2018,Current (non AEF) Grants to Local Authorities,Local Government & Public Services,MEDWAY TOWNS D C (HSG),,,,,5000398451,,Supporting Small Business,ME4 4TR,"19,105.00",Yes
"Housing, Communities & Local Government",MHCLG,05/04/2018,Current (non AEF) Grants to Local Authorities,Local Government & Public Services,MEDWAY TOWNS D C (HSG),,,,,5000398453,,Support for Public Houses,ME4 4TR,"37,354.00",Yes
"Housing, Communities & Local Government",MHCLG,05/04/2018,Current (non AEF) Grants to Local Authorities,Local Government & Public Services,MEDWAY TOWNS D C (HSG),,,,,5000398455,,SBRR Threshold Changes Grant,ME4 4TR,"677,429.00",Yes
"Housing, Communities & Local Government",MHCLG,05/04/2018,Current (non AEF) Grants to Local Authorities,Local Government & Public Services,MELTON BC,,,,346268340,5000398457,,SBRR Threshold Changes Grant,LE13 0UL,"262,628.00",Yes
"Housing, Communities & Local Government",MHCLG,05/04/2018,Current (non AEF) Grants to Local Authorities,Local Government & Public Services,MELTON BC,,,,346268340,5000398459,,Supporting Small Business,LE13 0UL,"9,874.00",Yes
"Housing, Communities & Local Government",MHCLG,05/04/2018,Current (non AEF) Grants to Local Authorities,Local Government & Public Services,MELTON BC,,,,346268340,5000398461,,Support for Public Houses,LE13 0UL,"13,787.00",Yes
"Housing, Communities & Local Government",MHCLG,05/04/2018,Current (non AEF) Grants to Local Authorities,Local Government & Public Services,MENDIP DISTRICT COUNCIL,,,,,5000398463,,Supporting Small Business,BA4 5BA,"30,451.00",Yes
"Housing, Communities & Local Government",MHCLG,05/04/2018,Current (non AEF) Grants to Local Authorities,Local Government & Public Services,MENDIP DISTRICT COUNCIL,,,,,5000398465,,Support for Public Houses,BA4 5BA,"30,451.00",Yes
"Housing, Communities & Local Government",MHCLG,05/04/2018,Current (non AEF) Grants to Local Authorities,Local Government & Public Services,MENDIP DISTRICT COUNCIL,,,,,5000398467,,SBRR Threshold Changes Grant,BA4 5BA,"403,255.00",Yes
"Housing, Communities & Local Government",MHCLG,05/04/2018,Current (non AEF) Grants to Local Authorities,Local Government & Public Services,MERTON LB,,,,,5000398544,,SBRR Threshold Changes Grant,SM4 5DX,"708,026.00",Yes
"Housing, Communities & Local Government",MHCLG,05/04/2018,Current (non AEF) Grants to Local Authorities,Local Government & Public Services,MERTON LB,,,,,5000398546,,Supporting Small Business,SM4 5DX,"17,151.00",Yes
"Housing, Communities & Local Government",MHCLG,05/04/2018,Current (non AEF) Grants to Local Authorities,Local Government & Public Services,MERTON LB,,,,,5000398548,,Support for Public Houses,SM4 5DX,"18,110.00",Yes
"Housing, Communities & Local Government",MHCLG,05/04/2018,Current (non AEF) Grants to Local Authorities,Local Government & Public Services,MID DEVON DC,,,,213241137,5000398469,,SBRR Threshold Changes Grant,EX16 6PP,"251,609.00",Yes
"Housing, Communities & Local Government",MHCLG,05/04/2018,Current (non AEF) Grants to Local Authorities,Local Government & Public Services,MID DEVON DC,,,,213241137,5000398471,,Supporting Small Business,EX16 6PP,"12,210.00",Yes
"Housing, Communities & Local Government",MHCLG,05/04/2018,Current (non AEF) Grants to Local Authorities,Local Government & Public Services,MID DEVON DC,,,,213241137,5000398473,,Support for Public Houses,EX16 6PP,"32,327.00",Yes
"Housing, Communities & Local Government",MHCLG,05/04/2018,Current (non AEF) Grants to Local Authorities,Local Government & Public Services,MID SUFFOLK DISTRICT COUNCIL,,,,223387239,5000398475,,Supporting Small Business,IP6 8DL,"30,162.00",Yes
"Housing, Communities & Local Government",MHCLG,05/04/2018,Current (non AEF) Grants to Local Authorities,Local Government & Public Services,MID SUFFOLK DISTRICT COUNCIL,,,,223387239,5000398477,,Support for Public Houses,IP6 8DL,"20,917.00",Yes
"Housing, Communities & Local Government",MHCLG,05/04/2018,Current (non AEF) Grants to Local Authorities,Local Government & Public Services,MID SUFFOLK DISTRICT COUNCIL,,,,223387239,5000398479,,SBRR Threshold Changes Grant,IP6 8DL,"225,244.00",Yes
"Housing, Communities & Local Government",MHCLG,05/04/2018,Current (non AEF) Grants to Local Authorities,Local Government & Public Services,MID SUSSEX DC,,,,236675989,5000398481,,SBRR Threshold Changes Grant,RH16 1SS,"430,116.00",Yes
"Housing, Communities & Local Government",MHCLG,05/04/2018,Current (non AEF) Grants to Local Authorities,Local Government & Public Services,MID SUSSEX DC,,,,236675989,5000398483,,Supporting Small Business,RH16 1SS,"29,709.00",Yes
"Housing, Communities & Local Government",MHCLG,05/04/2018,Current (non AEF) Grants to Local Authorities,Local Government & Public Services,MID SUSSEX DC,,,,236675989,5000398485,,Support for Public Houses,RH16 1SS,"34,511.00",Yes
"Housing, Communities & Local Government",MHCLG,05/04/2018,Current (non AEF) Grants to Local Authorities,Local Government & Public Services,MIDDLESBROUGH BC,,Large,,,5000398550,,SBRR Threshold Changes Grant,TS1 9GA,"277,755.00",Yes
"Housing, Communities & Local Government",MHCLG,05/04/2018,Current (non AEF) Grants to Local Authorities,Local Government & Public Services,MIDDLESBROUGH BC,,Large,,,5000398552,,Supporting Small Business,TS1 9GA,"7,613.00",Yes
"Housing, Communities & Local Government",MHCLG,05/04/2018,Current (non AEF) Grants to Local Authorities,Local Government & Public Services,MIDDLESBROUGH BC,,Large,,,5000398554,,Support for Public Houses,TS1 9GA,"22,330.00",Yes
"Housing, Communities & Local Government",MHCLG,05/04/2018,Current (non AEF) Grants to Local Authorities,Local Government & Public Services,MILTON KEYNES BC,,,,,5000398556,,SBRR Threshold Changes Grant,MK9 3WJ,"517,798.00",Yes
"Housing, Communities & Local Government",MHCLG,05/04/2018,Current (non AEF) Grants to Local Authorities,Local Government & Public Services,MILTON KEYNES BC,,,,,5000398559,,Supporting Small Business,MK9 3WJ,"21,315.00",Yes
"Housing, Communities & Local Government",MHCLG,05/04/2018,Current (non AEF) Grants to Local Authorities,Local Government & Public Services,MILTON KEYNES BC,,,,,5000398561,,Support for Public Houses,MK9 3WJ,"18,270.00",Yes
"Housing, Communities & Local Government",MHCLG,05/04/2018,Current (non AEF) Grants to Local Authorities,Local Government & Public Services,MOLE VALLEY DC,,,,225385772,5000398487,,SBRR Threshold Changes Grant,RH4 1SJ,"303,259.00",Yes
"Housing, Communities & Local Government",MHCLG,05/04/2018,Current (non AEF) Grants to Local Authorities,Local Government & Public Services,MOLE VALLEY DC,,,,225385772,5000398489,,Supporting Small Business,RH4 1SJ,"25,938.00",Yes
"Housing, Communities & Local Government",MHCLG,05/04/2018,Current (non AEF) Grants to Local Authorities,Local Government & Public Services,MOLE VALLEY DC,,,,225385772,5000398491,,Support for Public Houses,RH4 1SJ,"19,116.00",Yes
"Housing, Communities & Local Government",MHCLG,05/04/2018,Current (non AEF) Grants to Local Authorities,Local Government & Public Services,NEW FOREST DC,,Public Bodies,,,5000398493,,SBRR Threshold Changes Grant,SO43 7PA,"687,182.00",Yes
"Housing, Communities & Local Government",MHCLG,05/04/2018,Current (non AEF) Grants to Local Authorities,Local Government & Public Services,NEW FOREST DC,,Public Bodies,,,5000398495,,Supporting Small Business,SO43 7PA,"12,688.00",Yes
"Housing, Communities & Local Government",MHCLG,05/04/2018,Current (non AEF) Grants to Local Authorities,Local Government & Public Services,NEW FOREST DC,,Public Bodies,,,5000398497,,Support for Public Houses,SO43 7PA,"40,601.00",Yes
"Housing, Communities & Local Government",MHCLG,05/04/2018,Current (non AEF) Grants to Local Authorities,Local Government & Public Services,NEWARK & SHERWOOD DC (HSG),,,,236186755,5000398499,,SBRR Threshold Changes Grant,NG23 5QX,"318,874.00",Yes
"Housing, Communities & Local Government",MHCLG,05/04/2018,Current (non AEF) Grants to Local Authorities,Local Government & Public Services,NEWARK & SHERWOOD DC (HSG),,,,236186755,5000398501,,Supporting Small Business,NG23 5QX,"13,185.00",Yes
"Housing, Communities & Local Government",MHCLG,05/04/2018,Current (non AEF) Grants to Local Authorities,Local Government & Public Services,NEWARK & SHERWOOD DC (HSG),,,,236186755,5000398503,,Support for Public Houses,NG23 5QX,"19,256.00",Yes
"Housing, Communities & Local Government",MHCLG,05/04/2018,Current (non AEF) Grants to Local Authorities,Local Government & Public Services,NEWCASTLE UNDER LYME BC,,,,229894373,5000398563,,SBRR Threshold Changes Grant,ST5 2AG,"269,655.00",Yes
"Housing, Communities & Local Government",MHCLG,05/04/2018,Current (non AEF) Grants to Local Authorities,Local Government & Public Services,NEWCASTLE UNDER LYME BC,,,,229894373,5000398565,,Supporting Small Business,ST5 2AG,"11,726.00",Yes
"Housing, Communities & Local Government",MHCLG,05/04/2018,Current (non AEF) Grants to Local Authorities,Local Government & Public Services,NEWCASTLE UNDER LYME BC,,,,229894373,5000398567,,Support for Public Houses,ST5 2AG,"22,390.00",Yes
"Housing, Communities & Local Government",MHCLG,05/04/2018,Current (non AEF) Grants to Local Authorities,Local Government & Public Services,NEWCASTLE UPON TYNE DC,,,,239154040,5000398569,,Support for Public Houses,NE99 2BN,"53,287.00",Yes
"Housing, Communities & Local Government",MHCLG,05/04/2018,Current (non AEF) Grants to Local Authorities,Local Government & Public Services,NEWCASTLE UPON TYNE DC,,,,239154040,5000398571,,Supporting Small Business,NE99 2BN,"29,563.00",Yes
"Housing, Communities & Local Government",MHCLG,05/04/2018,Current (non AEF) Grants to Local Authorities,Local Government & Public Services,NEWCASTLE UPON TYNE DC,,,,239154040,5000398573,,SBRR Threshold Changes Grant,NE99 2BN,"868,002.00",Yes
"Housing, Communities & Local Government",MHCLG,05/04/2018,Current (non AEF) Grants to Local Authorities,Local Government & Public Services,NORTH DEVON DC,,,,,5000398506,,SBRR Threshold Changes Grant,EX32 2GR,"461,274.00",Yes
"Housing, Communities & Local Government",MHCLG,05/04/2018,Current (non AEF) Grants to Local Authorities,Local Government & Public Services,NORTH DEVON DC,,,,,5000398508,,Supporting Small Business,EX32 2GR,"12,110.00",Yes
"Housing, Communities & Local Government",MHCLG,05/04/2018,Current (non AEF) Grants to Local Authorities,Local Government & Public Services,NORTH DEVON DC,,,,,5000398510,,Support for Public Houses,EX32 2GR,"38,063.00",Yes
"Housing, Communities & Local Government",MHCLG,05/04/2018,Current (non AEF) Grants to Local Authorities,Local Government & Public Services,NORTH DORSET DC,,,,236185005,5000398512,,SBRR Threshold Changes Grant,DT11 7LL,"233,623.00",Yes
"Housing, Communities & Local Government",MHCLG,05/04/2018,Current (non AEF) Grants to Local Authorities,Local Government & Public Services,NORTH DORSET DC,,,,236185005,5000398514,,Supporting Small Business,DT11 7LL,"9,560.00",Yes
"Housing, Communities & Local Government",MHCLG,05/04/2018,Current (non AEF) Grants to Local Authorities,Local Government & Public Services,NORTH DORSET DC,,,,236185005,5000398516,,Support for Public Houses,DT11 7LL,"20,769.00",Yes
"Housing, Communities & Local Government",MHCLG,05/04/2018,Current (non AEF) Grants to Local Authorities,Local Government & Public Services,NORTH EAST DERBYSHIRE DC,,,,238879308,5000398581,,Supporting Small Business,S42 6NG,"14,801.00",Yes
"Housing, Communities & Local Government",MHCLG,05/04/2018,Current (non AEF) Grants to Local Authorities,Local Government & Public Services,NORTH EAST DERBYSHIRE DC,,,,238879308,5000398582,,Support for Public Houses,S42 6NG,"25,299.00",Yes
"Housing, Communities & Local Government",MHCLG,05/04/2018,Current (non AEF) Grants to Local Authorities,Local Government & Public Services,NORTH EAST DERBYSHIRE DC,,,,238879308,5000398584,,SBRR Threshold Changes Grant,S42 6NG,"206,870.00",Yes
"Housing, Communities & Local Government",MHCLG,05/04/2018,Current (non AEF) Grants to Local Authorities,Local Government & Public Services,NORTH EAST LINCOLN DC (HSG),,,,211242737,5000398518,,SBRR Threshold Changes Grant,DN35 8LN,"359,915.00",Yes
"Housing, Communities & Local Government",MHCLG,05/04/2018,Current (non AEF) Grants to Local Authorities,Local Government & Public Services,NORTH EAST LINCOLN DC (HSG),,,,211242737,5000398520,,Supporting Small Business,DN35 8LN,"14,125.00",Yes
"Housing, Communities & Local Government",MHCLG,05/04/2018,Current (non AEF) Grants to Local Authorities,Local Government & Public Services,NORTH EAST LINCOLN DC (HSG),,,,211242737,5000398522,,Support for Public Houses,DN35 8LN,"24,028.00",Yes
"Housing, Communities & Local Government",MHCLG,05/04/2018,Current (non AEF) Grants to Local Authorities,Local Government & Public Services,NORTH HERTS DC (HOUSING) (HSG),,,,233593917,5000398524,,SBRR Threshold Changes Grant,SG6 3JF,"434,983.00",Yes
"Housing, Communities & Local Government",MHCLG,05/04/2018,Current (non AEF) Grants to Local Authorities,Local Government & Public Services,NORTH HERTS DC (HOUSING) (HSG),,,,233593917,5000398526,,Supporting Small Business,SG6 3JF,"15,939.00",Yes
"Housing, Communities & Local Government",MHCLG,05/04/2018,Current (non AEF) Grants to Local Authorities,Local Government & Public Services,NORTH HERTS DC (HOUSING) (HSG),,,,233593917,5000398528,,Support for Public Houses,SG6 3JF,"22,634.00",Yes
"Housing, Communities & Local Government",MHCLG,05/04/2018,Current (non AEF) Grants to Local Authorities,Local Government & Public Services,NORTH KESTEVEN DC,,,,,5000398586,,SBRR Threshold Changes Grant,NG34 7EF,"261,515.00",Yes
"Housing, Communities & Local Government",MHCLG,05/04/2018,Current (non AEF) Grants to Local Authorities,Local Government & Public Services,NORTH KESTEVEN DC,,,,,5000398588,,Supporting Small Business,NG34 7EF,"13,612.00",Yes
"Housing, Communities & Local Government",MHCLG,05/04/2018,Current (non AEF) Grants to Local Authorities,Local Government & Public Services,NORTH KESTEVEN DC,,,,,5000398590,,Support for Public Houses,NG34 7EF,"23,853.00",Yes
"Housing, Communities & Local Government",MHCLG,05/04/2018,Current (non AEF) Grants to Local Authorities,Local Government & Public Services,NORTH LINCOLNSHIRE DC (HSG),,Public Bodies,,424005502,5000398530,,SBRR Threshold Changes Grant,DN16 1AB,"400,697.00",Yes
"Housing, Communities & Local Government",MHCLG,05/04/2018,Current (non AEF) Grants to Local Authorities,Local Government & Public Services,NORTH LINCOLNSHIRE DC (HSG),,Public Bodies,,424005502,5000398532,,Supporting Small Business,DN16 1AB,"16,356.00",Yes
"Housing, Communities & Local Government",MHCLG,05/04/2018,Current (non AEF) Grants to Local Authorities,Local Government & Public Services,NORTH LINCOLNSHIRE DC (HSG),,Public Bodies,,424005502,5000398533,,Support for Public Houses,DN16 1AB,"31,118.00",Yes
"Housing, Communities & Local Government",MHCLG,05/04/2018,Current (non AEF) Grants to Local Authorities,Local Government & Public Services,NORTH NORFOLK DC,,,,239975964,5000398535,,SBRR Threshold Changes Grant,NR27 9EJ,"391,198.00",Yes
"Housing, Communities & Local Government",MHCLG,05/04/2018,Current (non AEF) Grants to Local Authorities,Local Government & Public Services,NORTH NORFOLK DC,,,,239975964,5000398537,,Supporting Small Business,NR27 9EJ,"56,840.00",Yes
"Housing, Communities & Local Government",MHCLG,05/04/2018,Current (non AEF) Grants to Local Authorities,Local Government & Public Services,NORTH NORFOLK DC,,,,239975964,5000398539,,Support for Public Houses,NR27 9EJ,"33,892.00",Yes
"Housing, Communities & Local Government",MHCLG,05/04/2018,Current (non AEF) Grants to Local Authorities,Local Government & Public Services,NORTH SOMERSET COUNCIL,,Large,,,5000398591,,SBRR Threshold Changes Grant,BS23 1UJ,"673,301.00",Yes
"Housing, Communities & Local Government",MHCLG,05/04/2018,Current (non AEF) Grants to Local Authorities,Local Government & Public Services,NORTH SOMERSET COUNCIL,,Large,,,5000398593,,Supporting Small Business,BS23 1UJ,"15,315.00",Yes
"Housing, Communities & Local Government",MHCLG,05/04/2018,Current (non AEF) Grants to Local Authorities,Local Government & Public Services,NORTH SOMERSET COUNCIL,,Large,,,5000398595,,Support for Public Houses,BS23 1UJ,"31,820.00",Yes
"Housing, Communities & Local Government",MHCLG,05/04/2018,Current (non AEF) Grants to Local Authorities,Local Government & Public Services,NORTH TYNESIDE MBC,,,,,5000398597,,SBRR Threshold Changes Grant,NE27 0BY,"510,453.00",Yes
"Housing, Communities & Local Government",MHCLG,05/04/2018,Current (non AEF) Grants to Local Authorities,Local Government & Public Services,NORTH TYNESIDE MBC,,,,,5000398599,,Supporting Small Business,NE27 0BY,"17,156.00",Yes
"Housing, Communities & Local Government",MHCLG,05/04/2018,Current (non AEF) Grants to Local Authorities,Local Government & Public Services,NORTH TYNESIDE MBC,,,,,5000398601,,Support for Public Houses,NE27 0BY,"35,667.00",Yes
"Housing, Communities & Local Government",MHCLG,05/04/2018,Current (non AEF) Grants to Local Authorities,Local Government & Public Services,NORTH WARWICKSHIRE BC,,Large,,,5000398541,,SBRR Threshold Changes Grant,CV9 1DE,"187,832.00",Yes
"Housing, Communities & Local Government",MHCLG,05/04/2018,Current (non AEF) Grants to Local Authorities,Local Government & Public Services,NORTH WARWICKSHIRE BC,,Large,,,5000398543,,Supporting Small Business,CV9 1DE,"3,559.00",Yes
"Housing, Communities & Local Government",MHCLG,05/04/2018,Current (non AEF) Grants to Local Authorities,Local Government & Public Services,NORTH WARWICKSHIRE BC,,Large,,,5000398545,,Support for Public Houses,CV9 1DE,"24,169.00",Yes
"Housing, Communities & Local Government",MHCLG,05/04/2018,Current (non AEF) Grants to Local Authorities,Local Government & Public Services,NORTH WEST LEICESTERSHIRE DC,,,,232605782,5000398547,,SBRR Threshold Changes Grant,LE67 9SH,"230,953.00",Yes
"Housing, Communities & Local Government",MHCLG,05/04/2018,Current (non AEF) Grants to Local Authorities,Local Government & Public Services,NORTH WEST LEICESTERSHIRE DC,,,,232605782,5000398549,,Supporting Small Business,LE67 9SH,"23,206.00",Yes
"Housing, Communities & Local Government",MHCLG,05/04/2018,Current (non AEF) Grants to Local Authorities,Local Government & Public Services,NORTH WEST LEICESTERSHIRE DC,,,,232605782,5000398551,,Support for Public Houses,LE67 9SH,"22,838.00",Yes
"Housing, Communities & Local Government",MHCLG,05/04/2018,Current (non AEF) Grants to Local Authorities,Local Government & Public Services,NORTHAMPTON BOROUGH COUNCIL,,,,228310017,5000398605,,Support for Public Houses,NN4 4FF,"35,526.00",Yes
"Housing, Communities & Local Government",MHCLG,05/04/2018,Current (non AEF) Grants to Local Authorities,Local Government & Public Services,NORTHAMPTON BOROUGH COUNCIL,,,,228310017,5000398607,,SBRR Threshold Changes Grant,NN4 4FF,"542,229.00",Yes
"Housing, Communities & Local Government",MHCLG,05/04/2018,Current (non AEF) Grants to Local Authorities,Local Government & Public Services,NORTHUMBERLAND COUNTY COUNCIL,,,,210308905,5000399002,,Supporting Small Business,NE61 2EF,"75,503.00",Yes
"Housing, Communities & Local Government",MHCLG,05/04/2018,Current (non AEF) Grants to Local Authorities,Local Government & Public Services,NORTHUMBERLAND COUNTY COUNCIL,,,,210308905,5000399003,,Support for Public Houses,NE61 2EF,"96,840.00",Yes
"Housing, Communities & Local Government",MHCLG,05/04/2018,Current (non AEF) Grants to Local Authorities,Local Government & Public Services,NORTHUMBERLAND COUNTY COUNCIL,,,,210308905,5000399004,,SBRR Threshold Changes Grant,NE61 2EF,"897,444.00",Yes
"Housing, Communities & Local Government",MHCLG,05/04/2018,Current (non AEF) Grants to Local Authorities,Local Government & Public Services,NORWICH CITY CNCL,,,,235981297,5000398609,,SBRR Threshold Changes Grant,NR2 1NH,"537,650.00",Yes
"Housing, Communities & Local Government",MHCLG,05/04/2018,Current (non AEF) Grants to Local Authorities,Local Government & Public Services,NORWICH CITY CNCL,,,,235981297,5000398611,,Supporting Small Business,NR2 1NH,"14,606.00",Yes
"Housing, Communities & Local Government",MHCLG,05/04/2018,Current (non AEF) Grants to Local Authorities,Local Government & Public Services,NORWICH CITY CNCL,,,,235981297,5000398613,,Support for Public Houses,NR2 1NH,"45,864.00",Yes
"Housing, Communities & Local Government",MHCLG,05/04/2018,Current (non AEF) Grants to Local Authorities,Local Government & Public Services,NOTTINGHAM CITY COUNCIL,,,,214495447,5000398615,,SBRR Threshold Changes Grant,NG2 3NG,"758,614.00",Yes
"Housing, Communities & Local Government",MHCLG,05/04/2018,Current (non AEF) Grants to Local Authorities,Local Government & Public Services,NOTTINGHAM CITY COUNCIL,,,,214495447,5000398617,,Supporting Small Business,NG2 3NG,"62,783.00",Yes
"Housing, Communities & Local Government",MHCLG,05/04/2018,Current (non AEF) Grants to Local Authorities,Local Government & Public Services,NOTTINGHAM CITY COUNCIL,,,,214495447,5000398619,,Support for Public Houses,NG2 3NG,"57,514.00",Yes
"Housing, Communities & Local Government",MHCLG,05/04/2018,Current (non AEF) Grants to Local Authorities,Local Government & Public Services,NUNEATON & BEDWORTH BC,,Large,,,5000398621,,SBRR Threshold Changes Grant,CV11 5AA,"326,028.00",Yes
"Housing, Communities & Local Government",MHCLG,05/04/2018,Current (non AEF) Grants to Local Authorities,Local Government & Public Services,NUNEATON & BEDWORTH BC,,Large,,,5000398623,,Supporting Small Business,CV11 5AA,"53,780.00",Yes
"Housing, Communities & Local Government",MHCLG,05/04/2018,Current (non AEF) Grants to Local Authorities,Local Government & Public Services,NUNEATON & BEDWORTH BC,,Large,,,5000398625,,Support for Public Houses,CV11 5AA,"13,115.00",Yes
"Housing, Communities & Local Government",MHCLG,05/04/2018,Current (non AEF) Grants to Local Authorities,Local Government & Public Services,OADBY & WIGSTON BC (HSG),,,,239831878,5000398553,,SBRR Threshold Changes Grant,LE8 2DR,"184,259.00",Yes
"Housing, Communities & Local Government",MHCLG,05/04/2018,Current (non AEF) Grants to Local Authorities,Local Government & Public Services,OADBY & WIGSTON BC (HSG),,,,239831878,5000398555,,Supporting Small Business,LE8 2DR,"1,889.00",Yes
"Housing, Communities & Local Government",MHCLG,05/04/2018,Current (non AEF) Grants to Local Authorities,Local Government & Public Services,OADBY & WIGSTON BC (HSG),,,,239831878,5000398557,,Support for Public Houses,LE8 2DR,"4,290.00",Yes
"Housing, Communities & Local Government",MHCLG,05/04/2018,Current (non AEF) Grants to Local Authorities,Local Government & Public Services,OLDHAM MBC,,,,213015574,5000398627,,Support for Public Houses,OL1 1UH,"78,119.00",Yes
"Housing, Communities & Local Government",MHCLG,05/04/2018,Current (non AEF) Grants to Local Authorities,Local Government & Public Services,OLDHAM MBC,,,,213015574,5000398629,,SBRR Threshold Changes Grant,OL1 1UH,"1,369,734.00",Yes
"Housing, Communities & Local Government",MHCLG,05/04/2018,Current (non AEF) Grants to Local Authorities,Local Government & Public Services,OLDHAM MBC,,,,213015574,5000398630,,Supporting Small Business,OL1 1UH,"14,194.00",Yes
"Housing, Communities & Local Government",MHCLG,05/04/2018,Current (non AEF) Grants to Local Authorities,Local Government & Public Services,OXFORD CITY COUNCIL,,,,212437417,5000398632,,SBRR Threshold Changes Grant,OX1 1DS,"247,457.00",Yes
"Housing, Communities & Local Government",MHCLG,05/04/2018,Current (non AEF) Grants to Local Authorities,Local Government & Public Services,OXFORD CITY COUNCIL,,,,212437417,5000398634,,Supporting Small Business,OX1 1DS,"4,612.00",Yes
"Housing, Communities & Local Government",MHCLG,05/04/2018,Current (non AEF) Grants to Local Authorities,Local Government & Public Services,OXFORD CITY COUNCIL,,,,212437417,5000398636,,Support for Public Houses,OX1 1DS,"30,451.00",Yes
"Housing, Communities & Local Government",MHCLG,05/04/2018,Current (non AEF) Grants to Local Authorities,Local Government & Public Services,PENDLE BC,,,,548605328,5000398638,,Supporting Small Business,BB9 7LG,"7,815.00",Yes
"Housing, Communities & Local Government",MHCLG,05/04/2018,Current (non AEF) Grants to Local Authorities,Local Government & Public Services,PENDLE BC,,,,548605328,5000398640,,Support for Public Houses,BB9 7LG,"9,825.00",Yes
"Housing, Communities & Local Government",MHCLG,05/04/2018,Current (non AEF) Grants to Local Authorities,Local Government & Public Services,PENDLE BC,,,,548605328,5000398642,,SBRR Threshold Changes Grant,BB9 7LG,"209,021.00",Yes
"Housing, Communities & Local Government",MHCLG,05/04/2018,Current (non AEF) Grants to Local Authorities,Local Government & Public Services,PETERBOROUGH CITY CNCL,,,,,5000398644,,SBRR Threshold Changes Grant,PE1 1HG,"635,335.00",Yes
"Housing, Communities & Local Government",MHCLG,05/04/2018,Current (non AEF) Grants to Local Authorities,Local Government & Public Services,PETERBOROUGH CITY CNCL,,,,,5000398646,,Supporting Small Business,PE1 1HG,"7,663.00",Yes
"Housing, Communities & Local Government",MHCLG,05/04/2018,Current (non AEF) Grants to Local Authorities,Local Government & Public Services,PETERBOROUGH CITY CNCL,,,,,5000398648,,Support for Public Houses,PE1 1HG,"22,126.00",Yes
"Housing, Communities & Local Government",MHCLG,05/04/2018,Current (non AEF) Grants to Local Authorities,Local Government & Public Services,PLYMOUTH CITY CNCL,,Public Bodies,,236416095,5000398650,,SBRR Threshold Changes Grant,PL1 2AA,"687,364.00",Yes
"Housing, Communities & Local Government",MHCLG,05/04/2018,Current (non AEF) Grants to Local Authorities,Local Government & Public Services,PLYMOUTH CITY CNCL,,Public Bodies,,236416095,5000398652,,Supporting Small Business,PL1 2AA,"10,659.00",Yes
"Housing, Communities & Local Government",MHCLG,05/04/2018,Current (non AEF) Grants to Local Authorities,Local Government & Public Services,PLYMOUTH CITY CNCL,,Public Bodies,,236416095,5000398654,,Support for Public Houses,PL1 2AA,"37,325.00",Yes
"Housing, Communities & Local Government",MHCLG,05/04/2018,Current (non AEF) Grants to Local Authorities,Local Government & Public Services,POOLE BC (HSG),,,,,5000398558,,SBRR Threshold Changes Grant,BH15 2RU,"511,351.00",Yes
"Housing, Communities & Local Government",MHCLG,05/04/2018,Current (non AEF) Grants to Local Authorities,Local Government & Public Services,POOLE BC (HSG),,,,,5000398560,,Supporting Small Business,BH15 2RU,"10,688.00",Yes
"Housing, Communities & Local Government",MHCLG,05/04/2018,Current (non AEF) Grants to Local Authorities,Local Government & Public Services,POOLE BC (HSG),,,,,5000398562,,Support for Public Houses,BH15 2RU,"21,185.00",Yes
"Housing, Communities & Local Government",MHCLG,05/04/2018,Current (non AEF) Grants to Local Authorities,Local Government & Public Services,PORTSMOUTH CITY COUNCIL,,Large,,211183082,5000398656,,Supporting Small Business,PO1 2AR,"10,150.00",Yes
"Housing, Communities & Local Government",MHCLG,05/04/2018,Current (non AEF) Grants to Local Authorities,Local Government & Public Services,PORTSMOUTH CITY COUNCIL,,Large,,211183082,5000398658,,Support for Public Houses,PO1 2AR,"40,601.00",Yes
"Housing, Communities & Local Government",MHCLG,05/04/2018,Current (non AEF) Grants to Local Authorities,Local Government & Public Services,PORTSMOUTH CITY COUNCIL,,Large,,211183082,5000398660,,SBRR Threshold Changes Grant,PO1 2AR,"724,319.00",Yes
"Housing, Communities & Local Government",MHCLG,05/04/2018,Current (non AEF) Grants to Local Authorities,Local Government & Public Services,PRESTON BC,,,,232604124,5000398662,,SBRR Threshold Changes Grant,PR1 2RL,"409,715.00",Yes
"Housing, Communities & Local Government",MHCLG,05/04/2018,Current (non AEF) Grants to Local Authorities,Local Government & Public Services,PRESTON BC,,,,232604124,5000398664,,Supporting Small Business,PR1 2RL,"2,323.00",Yes
"Housing, Communities & Local Government",MHCLG,05/04/2018,Current (non AEF) Grants to Local Authorities,Local Government & Public Services,PRESTON BC,,,,232604124,5000398667,,Support for Public Houses,PR1 2RL,"45,168.00",Yes
"Housing, Communities & Local Government",MHCLG,05/04/2018,Current (non AEF) Grants to Local Authorities,Local Government & Public Services,PURBECK DC,,,,,5000398564,,SBRR Threshold Changes Grant,BH20 4PP,"184,288.00",Yes
"Housing, Communities & Local Government",MHCLG,05/04/2018,Current (non AEF) Grants to Local Authorities,Local Government & Public Services,PURBECK DC,,,,,5000398566,,Supporting Small Business,BH20 4PP,"13,285.00",Yes
"Housing, Communities & Local Government",MHCLG,05/04/2018,Current (non AEF) Grants to Local Authorities,Local Government & Public Services,PURBECK DC,,,,,5000398568,,Support for Public Houses,BH20 4PP,"22,461.00",Yes
"Housing, Communities & Local Government",MHCLG,05/04/2018,Current (non AEF) Grants to Local Authorities,Local Government & Public Services,READING BC,,,,210220399,5000398669,,SBRR Threshold Changes Grant,RG1 7TD,"341,093.00",Yes
"Housing, Communities & Local Government",MHCLG,05/04/2018,Current (non AEF) Grants to Local Authorities,Local Government & Public Services,READING BC,,,,210220399,5000398671,,Support for Public Houses,RG1 7TD,"13,037.00",Yes
"Housing, Communities & Local Government",MHCLG,05/04/2018,Current (non AEF) Grants to Local Authorities,Local Government & Public Services,READING BC,,,,210220399,5000398673,,Supporting Small Business,RG1 7TD,"27,744.00",Yes
"Housing, Communities & Local Government",MHCLG,05/04/2018,Current (non AEF) Grants to Local Authorities,Local Government & Public Services,REDCAR & CLEVELAND BOROUGH COUNCIL,,,,215175196,5000398681,,SBRR Threshold Changes Grant,TS10 1RT,"242,841.00",Yes
"Housing, Communities & Local Government",MHCLG,05/04/2018,Current (non AEF) Grants to Local Authorities,Local Government & Public Services,REDCAR & CLEVELAND BOROUGH COUNCIL,,,,215175196,5000398682,,Supporting Small Business,TS10 1RT,"5,734.00",Yes
"Housing, Communities & Local Government",MHCLG,05/04/2018,Current (non AEF) Grants to Local Authorities,Local Government & Public Services,REDCAR & CLEVELAND BOROUGH COUNCIL,,,,215175196,5000398684,,Support for Public Houses,TS10 1RT,"15,314.00",Yes
"Housing, Communities & Local Government",MHCLG,05/04/2018,Current (non AEF) Grants to Local Authorities,Local Government & Public Services,REDDITCH BC,,,,231421491,5000398686,,Supporting Small Business,B98 8AH,"3,929.00",Yes
"Housing, Communities & Local Government",MHCLG,05/04/2018,Current (non AEF) Grants to Local Authorities,Local Government & Public Services,REDDITCH BC,,,,231421491,5000398688,,Support for Public Houses,B98 8AH,"11,001.00",Yes
"Housing, Communities & Local Government",MHCLG,05/04/2018,Current (non AEF) Grants to Local Authorities,Local Government & Public Services,REDDITCH BC,,,,231421491,5000398690,,SBRR Threshold Changes Grant,B98 8AH,"213,308.00",Yes
"Housing, Communities & Local Government",MHCLG,05/04/2018,Current (non AEF) Grants to Local Authorities,Local Government & Public Services,REIGATE & BANSTEAD BC,,,,211313515,5000398692,,SBRR Threshold Changes Grant,RH2 OSH,"322,017.00",Yes
"Housing, Communities & Local Government",MHCLG,05/04/2018,Current (non AEF) Grants to Local Authorities,Local Government & Public Services,REIGATE & BANSTEAD BC,,,,211313515,5000398694,,Support for Public Houses,RH2 OSH,"18,270.00",Yes
"Housing, Communities & Local Government",MHCLG,05/04/2018,Current (non AEF) Grants to Local Authorities,Local Government & Public Services,REIGATE & BANSTEAD BC,,,,211313515,5000398696,,Supporting Small Business,RH2 OSH,"15,225.00",Yes
"Housing, Communities & Local Government",MHCLG,05/04/2018,Current (non AEF) Grants to Local Authorities,Local Government & Public Services,RIBBLE VALLEY BC,,,,232617894,5000398570,,Supporting Small Business,BB7 2RA,"7,613.00",Yes
"Housing, Communities & Local Government",MHCLG,05/04/2018,Current (non AEF) Grants to Local Authorities,Local Government & Public Services,RIBBLE VALLEY BC,,,,232617894,5000398572,,Support for Public Houses,BB7 2RA,"25,376.00",Yes
"Housing, Communities & Local Government",MHCLG,05/04/2018,Current (non AEF) Grants to Local Authorities,Local Government & Public Services,RIBBLE VALLEY BC,,,,232617894,5000398574,,SBRR Threshold Changes Grant,BB7 2RA,"239,093.00",Yes
"Housing, Communities & Local Government",MHCLG,05/04/2018,Current (non AEF) Grants to Local Authorities,Local Government & Public Services,RICHMOND UPON THAMES LB,,,,228868535,5000398698,,SBRR Threshold Changes Grant,TW1 3BZ,"814,727.00",Yes
"Housing, Communities & Local Government",MHCLG,05/04/2018,Current (non AEF) Grants to Local Authorities,Local Government & Public Services,RICHMOND UPON THAMES LB,,,,228868535,5000398700,,Supporting Small Business,TW1 3BZ,"19,274.00",Yes
"Housing, Communities & Local Government",MHCLG,05/04/2018,Current (non AEF) Grants to Local Authorities,Local Government & Public Services,RICHMOND UPON THAMES LB,,,,228868535,5000398702,,Support for Public Houses,TW1 3BZ,"33,186.00",Yes
"Housing, Communities & Local Government",MHCLG,05/04/2018,Current (non AEF) Grants to Local Authorities,Local Government & Public Services,RICHMONDSHIRE DC,,,,232245142,5000398576,,SBRR Threshold Changes Grant,DL10 4JX,"185,144.00",Yes
"Housing, Communities & Local Government",MHCLG,05/04/2018,Current (non AEF) Grants to Local Authorities,Local Government & Public Services,RICHMONDSHIRE DC,,,,232245142,5000398578,,Supporting Small Business,DL10 4JX,"19,378.00",Yes
"Housing, Communities & Local Government",MHCLG,05/04/2018,Current (non AEF) Grants to Local Authorities,Local Government & Public Services,RICHMONDSHIRE DC,,,,232245142,5000398580,,Support for Public Houses,DL10 4JX,"25,425.00",Yes
"Housing, Communities & Local Government",MHCLG,05/04/2018,Current (non AEF) Grants to Local Authorities,Local Government & Public Services,ROCHDALE MBC,,,,,5000398704,,SBRR Threshold Changes Grant,OL16 1YG,"1,271,314.00",Yes
"Housing, Communities & Local Government",MHCLG,05/04/2018,Current (non AEF) Grants to Local Authorities,Local Government & Public Services,ROCHDALE MBC,,,,,5000398706,,Support for Public Houses,OL16 1YG,"57,856.00",Yes
"Housing, Communities & Local Government",MHCLG,05/04/2018,Current (non AEF) Grants to Local Authorities,Local Government & Public Services,ROCHDALE MBC,,,,,5000398708,,Supporting Small Business,OL16 1YG,"55,826.00",Yes
"Housing, Communities & Local Government",MHCLG,05/04/2018,Current (non AEF) Grants to Local Authorities,Local Government & Public Services,ROCHFORD DISTRICT COUNCIL,,,,387828767,5000398710,,SBRR Threshold Changes Grant,SS4 1BW,"268,218.00",Yes
"Housing, Communities & Local Government",MHCLG,05/04/2018,Current (non AEF) Grants to Local Authorities,Local Government & Public Services,ROCHFORD DISTRICT COUNCIL,,,,387828767,5000398712,,Supporting Small Business,SS4 1BW,"5,046.00",Yes
"Housing, Communities & Local Government",MHCLG,05/04/2018,Current (non AEF) Grants to Local Authorities,Local Government & Public Services,ROCHFORD DISTRICT COUNCIL,,,,387828767,5000398713,,Support for Public Houses,SS4 1BW,"10,133.00",Yes
"Housing, Communities & Local Government",MHCLG,05/04/2018,Current (non AEF) Grants to Local Authorities,Local Government & Public Services,ROSSENDALE BC,,,,237654020,5000398715,,Supporting Small Business,OL13 0BB,"3,948.00",Yes
"Housing, Communities & Local Government",MHCLG,05/04/2018,Current (non AEF) Grants to Local Authorities,Local Government & Public Services,ROSSENDALE BC,,,,237654020,5000398717,,Support for Public Houses,OL13 0BB,"9,808.00",Yes
"Housing, Communities & Local Government",MHCLG,05/04/2018,Current (non AEF) Grants to Local Authorities,Local Government & Public Services,ROSSENDALE BC,,,,237654020,5000398719,,SBRR Threshold Changes Grant,OL13 0BB,"191,021.00",Yes
"Housing, Communities & Local Government",MHCLG,05/04/2018,Current (non AEF) Grants to Local Authorities,Local Government & Public Services,ROTHER DC (HSG),,,,,5000398583,,SBRR Threshold Changes Grant,TN39 3JX,"334,128.00",Yes
"Housing, Communities & Local Government",MHCLG,05/04/2018,Current (non AEF) Grants to Local Authorities,Local Government & Public Services,ROTHER DC (HSG),,,,,5000398585,,Supporting Small Business,TN39 3JX,"27,007.00",Yes
"Housing, Communities & Local Government",MHCLG,05/04/2018,Current (non AEF) Grants to Local Authorities,Local Government & Public Services,ROTHER DC (HSG),,,,,5000398587,,Support for Public Houses,TN39 3JX,"18,153.00",Yes
"Housing, Communities & Local Government",MHCLG,05/04/2018,Current (non AEF) Grants to Local Authorities,Local Government & Public Services,ROTHERHAM MBC,,,,211266937,5000398721,,SBRR Threshold Changes Grant,S60 1AE,"586,289.00",Yes
"Housing, Communities & Local Government",MHCLG,05/04/2018,Current (non AEF) Grants to Local Authorities,Local Government & Public Services,ROTHERHAM MBC,,,,211266937,5000398723,,Supporting Small Business,S60 1AE,"19,430.00",Yes
"Housing, Communities & Local Government",MHCLG,05/04/2018,Current (non AEF) Grants to Local Authorities,Local Government & Public Services,ROTHERHAM MBC,,,,211266937,5000398725,,Support for Public Houses,S60 1AE,"55,816.00",Yes
"Housing, Communities & Local Government",MHCLG,05/04/2018,Current (non AEF) Grants to Local Authorities,Local Government & Public Services,ROYAL BOROUGH OF KENSINGTON & CHELS,,,,211124466,5000398472,,SBRR Threshold Changes Grant,W8 7NX,"532,114.00",Yes
"Housing, Communities & Local Government",MHCLG,05/04/2018,Current (non AEF) Grants to Local Authorities,Local Government & Public Services,ROYAL BOROUGH OF KENSINGTON & CHELS,,,,211124466,5000398474,,Support for Public Houses,W8 7NX,"12,260.00",Yes
"Housing, Communities & Local Government",MHCLG,05/04/2018,Current (non AEF) Grants to Local Authorities,Local Government & Public Services,ROYAL BOROUGH OF KENSINGTON & CHELS,,,,211124466,5000398476,,Supporting Small Business,W8 7NX,"56,867.00",Yes
